Workbook

Sheet Index
A1: =RIGHT(CELL("filename",$A$1),LEN(CELL("filename",$A$1))-FIND("]",CELL("filename",$A$1))) -> Index
B4: This return "QIS5_NL_1in10_Licensee Shortname" is for completion by the insurer of the QIS5 results for assets and liabilities relating to all lines of business specified in the Technical Specification document - TS(10).
F7: Key
F9: Input Cell
F11: Formula Cell
F13: Input from helper tab
F15: Fixed value cell
F17: Fixed value cell
F19: * Click on cell for information
B22: Tab | C22: Link | D22: Content | F22: Completed?
B24: ='Participant Information'!$A$1 -> Participant Information | C24: Link | D24: Information regarding the insurer completing the QIS. | F24: =IF(ISERROR(MATCH("ERROR",'Participant Information'!J:J,0)),"Complete","Incomplete") -> Incomplete
B27: ='EBS - Assets'!$A$1 -> EBS - Assets | C27: Link | D27: Information on the balance sheet value of assets backing non-life business on the current accounting basis and QIS5 '1in10' regulatory basis. | F27: =IF(ISERROR(MATCH("ERROR",'EBS - Assets'!K:K,0)),IF(ISERROR(MATCH("ZERO",'EBS - Assets'!K:K,0)),"Complete","May be incomplete"),"Incomplete") -> Incomplete
B29: ='EBS - Direct TPs'!$A$1 -> EBS - Direct TPs | C29: Link | D29: Information on the balance sheet value of technical provisions for directly written liabilities both on the current accounting basis and QIS5 '1in10' regulatory basis. | F29: =IF(ISERROR(MATCH("ERROR",'EBS - Direct TPs'!M:M,0)),IF(ISERROR(MATCH("ZERO",'EBS - Direct TPs'!M:M,0)),"Complete","May be incomplete"),"Incomplete") -> Incomplete
B31: ='EBS - Reins TPs'!$A$1 -> EBS - Reins TPs | C31: Link | D31: Information on the balance sheet value of technical provisions for reinsured liabilities both on the current accounting basis and QIS5 '1in10' regulatory basis. | F31: =IF(ISERROR(MATCH("ERROR",'EBS - Reins TPs'!M:M,0)),IF(ISERROR(MATCH("ZERO",'EBS - Reins TPs'!M:M,0)),"Complete","May be incomplete"),"Incomplete") -> Incomplete
B33: ='EBS - Other Liab'!$A$1 -> EBS - Other Liab | C33: Link | D33: Information on the balance sheet value of liabilities other than directly written or reinsured business both on the current accounting basis and QIS5 '1in10' regulatory basis. | F33: =IF(ISERROR(MATCH("ERROR",'EBS - Other Liab'!I:I,0)),IF(ISERROR(MATCH("ZERO",'EBS - Other Liab'!I:I,0)),"Complete","May be incomplete"),"Incomplete") -> Incomplete
B35: ='EBS - Capital'!$A$1 -> EBS - Capital | C35: Link | D35: Information on the balance sheet value of capital and reserves both on the current accounting basis and QIS5 '1in10' regulatory basis. | F35: =IF(ISERROR(MATCH("ERROR",'EBS - Capital'!I:I,0)),IF(ISERROR(MATCH("ZERO",'EBS - Capital'!I:I,0)),"Complete","May be incomplete"),"Incomplete") -> Incomplete
B37: ='Own Funds'!$A$1 -> Own Funds | C37: Link | D37: Breakdown of capital section from the economic balance sheet, determines eligible own funds to cover the SCR. | F37: =IF(ISERROR(MATCH("ERROR",'Own Funds'!M:M,0)),"Complete","Incomplete") -> Incomplete
B39: ='Market Risk Inputs'!$A$1 -> Market Risk Inputs | C39: Link | D39: Input required for "Market Risk" module. Includes exposure to interest rate, foreign exchange and concentration risk scenarios and resulting capital charges. | F39: =IF(ISERROR(MATCH("ERROR",'Market Risk Inputs'!R:R,0)),"Complete","Incomplete") -> Incomplete
B41: ='Credit Spread Risk'!$A$1 -> Credit Spread Risk | C41: Link | D41: Input required for "Credit Spread Risk" submodule. Includes exposure to each credit spread shock scenario and the resulting capital charges. | F41: =IF('Credit Spread Risk'!I34<>0,IF(ISERROR(MATCH("ERROR",'Credit Spread Risk'!M:M,0)),"Complete","Incomplete"),"May be incomplete") -> May be incomplete
B45: ='Counterparty Default Risk'!$A$1 -> Counterparty Default Risk | C45: Link | D45: Input for the calculation of the capital requirement for counterparty default risk. | F45: =IF(ISERROR(MATCH("ERROR",'Counterparty Default Risk'!K:K,0)),IF(ISERROR(MATCH("ZERO",'Counterparty Default Risk'!K:K,0)),"Complete","May be incomplete"),"Incomplete") -> Incomplete
B47: ='Premium and Reserve Risk'!$A$1 -> Premium and Reserve Risk | C47: Link | D47: Input for the calculation of the capital charge for premium and reserve risk. This information is then used in the "Non-Life Underwriting Risk" tab described below. | F47: =IF(ISERROR(MATCH("ERROR",'Premium and Reserve Risk'!AA7:AA18,0)),"Complete","Incomplete") -> Incomplete
B49: =DIV!$A$1 -> DIV | C49: Link | D49: Input for the calculation of the DIV function which can allow for geographical diversification. Set to 100% by default but may be changed by the (re)insurer by entering the appropriate data in this tab. | F49: =IF(ISERROR(MATCH("ERROR",DIV!AU:AU,0)),IF(ISERROR(MATCH("ZERO",DIV!AU:AU,0)),"Complete","May be incomplete"),"Incomplete") -> May be incomplete
B51: ='Lapse Risk'!$A$1 -> Lapse Risk | C51: Link | D51: Calculation of the capital requirement for non-life underwriting risk. | F51: =IF('Lapse Risk'!T100<>"ZERO","Complete","May be incomplete") -> May be incomplete
B53: ='Health_Prem & Reserve Risk'!$A$1 -> Health_Prem & Reserve Risk | C53: Link | D53: Input for the calculation of the capital charge for premium and reserve risk for non similar to life (non SLT) Health risk module. This information is then used in the "Non-SLT Health Risk" tab described below. | F53: =IF(ISERROR(MATCH("ERROR",'Health_Prem & Reserve Risk'!AA7:AA10,0)),"Complete","Incomplete") -> Incomplete
B55: =Health_DIV!$A$1 -> Health_DIV | C55: Link | D55: Input for the calculation of the Health DIV function which can allow for geographical diversification. Set to 100% by default but may be changed by the (re)insurer by entering the appropriate data in this tab. | F55: =IF(ISERROR(MATCH("ERROR",Health_DIV!AU:AU,0)),IF(ISERROR(MATCH("ZERO",Health_DIV!AU:AU,0)),"Complete","May be incomplete"),"Incomplete") -> May be incomplete
B57: ='Health_Lapse Risk'!$A$1 -> Health_Lapse Risk | C57: Link | D57: Calculation of the capital requirement for non-SLT Health risk. Note: input required for non-SLT lapse risk only. | F57: =IF(ISERROR(MATCH("ERROR",'Health_Lapse Risk'!T:T,0)),IF(ISERROR(MATCH("ZERO",'Health_Lapse Risk'!T:T,0)),"Complete","May be incomplete"),"Incomplete") -> Incomplete
B59: ='Market Risk'!A1 -> Market Risk | C59: Link | D59: Calculation of the capital requirement for market risk. | F59: =IF(ISERROR(MATCH("ERROR",'Market Risk'!S:S,0)),IF(ISERROR(MATCH("ZERO",'Market Risk'!S:S,0)),"Complete","May be incomplete"),"Incomplete") -> Incomplete
B61: ='Non-Life Underwriting Risk'!$A$1 -> Non-Life Underwriting Risk | C61: Link | D61: Calculation of the capital requirement for non-life underwriting risk. | F61: =IF(ISERROR(MATCH("ERROR",'Non-Life Underwriting Risk'!R:R,0)),IF(ISERROR(MATCH("ZERO",'Non-Life Underwriting Risk'!R:R,0)),"Complete","May be incomplete"),"Incomplete") -> Incomplete
B63: ='Non-SLT Health Risk'!$A$1 -> Non-SLT Health Risk | C63: Link | D63: Calculation of the capital requirement for non-SLT Health risk. | F63: =IF(ISERROR(MATCH("ERROR",'Non-SLT Health Risk'!Q:Q,0)),IF(ISERROR(MATCH("ZERO",'Non-SLT Health Risk'!Q:Q,0)),"Complete","May be incomplete"),"Incomplete") -> Incomplete
B65: ='SCR Summary'!$A$1 -> SCR Summary | C65: Link | D65: Calculation of the solvency capital requirement, summary of capital resources and the related SCR coverage ratio at a '1in10' level. | F65: =IF(ISERROR(MATCH("ERROR",'SCR Summary'!$G:$G,0)),"Complete","Incomplete") -> Incomplete
B67: Data | C67: Link | D67: Information only. | F67: N/A
B69: =RIGHT(CELL("filename",'SCR Structure'!$A$1),LEN(CELL("filename",'SCR Structure'!$A$1))-FIND("]",CELL("filename",$A$1))) -> SCR Structure | C69: Link | D69: Overall tree structure of the calculation of the SCR. Provided for information. | F69: N/A

Sheet Participant Information
A1: =RIGHT(CELL("filename",$A$1),LEN(CELL("filename",$A$1))-FIND("]",CELL("filename",$A$1))) -> Participant Information | J1: =Insurer_Shortname -> 0
A2: =Insurer_Name & " (" & Insurer_Shortname & ")" -> () | J2: =QIS_YE_Date -> 2017-12-31
B5: QIS5 Information
B7: Date of submission | J7: =IF(D7="","ERROR","OK") -> ERROR
B9: Financial year end used | D9: 2017-12-31 | J9: =IF(D9="","ERROR","OK") -> OK
B11: Reporting currency | D11: United Kingdom Pound | G11: =OFFSET(Data!C5,MATCH(D11,Data!B5:B76,0)-1,) -> GBP | J11: =IF(D11="","ERROR","OK") -> OK
B13: Exchange rate | D13: 1 | J13: =IF(D13="","ERROR",IF(OR(AND($G$11="GBP",$D$13<>1),AND($G$11<>"GBP",$D$13=1),D13=""),"ERROR","OK")) -> OK
B15: Reporting unit used | D15: Units | J15: =IF(D15="","ERROR","OK") -> OK
B19: Insurer Information
B21: Licensee Name | J21: =IF(D21="","ERROR","OK") -> ERROR
B23: Licensee Shortname | J23: =IF(D23="","ERROR","OK") -> ERROR
B25: Is business in run-off? | J25: =IF(D25="","ERROR","OK") -> ERROR
B29: Contact Information
B31: Contact Name | J31: =IF(D31="","ERROR","OK") -> ERROR
B33: Email Address | J33: =IF(D33="","ERROR","OK") -> ERROR
B35: Phone Number | J35: =IF(D35="","ERROR","OK") -> ERROR
B39: Comments
B41: Comments

Sheet EBS - Assets
A1: =RIGHT(CELL("filename",$A$1),LEN(CELL("filename",$A$1))-FIND("]",CELL("filename",$A$1))) -> EBS - Assets | K1: =Insurer_Shortname -> 0
A2: =Insurer_Name & " (" & Insurer_Shortname & ")" -> () | K2: =QIS_YE_Date -> 2017-12-31
B5: Balance Sheet - Assets | C5: * | D5: Accounting basis * | F5: Regulatory basis *
B7: Fixed Assets
B9: Goodwill | F9: 0
B10: Other intangible assets
B11: Property, plant & equipment held for own use
B13: Total | D13: =SUM(D9:D11) -> 0 | F13: =SUM(F9:F11) -> 0 | K13: =IF(OR(ISBLANK(D9:D11),ISBLANK(F10:F11)),"ERROR","OK") -> ERROR
B15: Investments
B17: Property (other than for own use)
B18: Participations
B19: Listed equities/other shares (other than participations)
B20: Unlisted equities/other shares (other than participations)
B21: Bonds - Government and multilateral banks
B22: Bonds - Corporate (asset backed securities)
B23: Bonds - Corporate (other)
B24: Structured notes
B25: Investment funds
B26: Derivatives | D26: =SUM(D27:D31) -> 0 | F26: =SUM(F27:F31) -> 0
B27: Futures
B28: Call Options
B29: Put Options
B30: Swaps
B31: Forwards
B32: Long term bank deposits
B33: Other investments
B35: Total | D35: =SUM(D17:D26,D32:D33) -> 0 | F35: =SUM(F17:F26,F32:F33) -> 0 | K35: =IF(OR(ISBLANK(D17:D25),ISBLANK(D27:D33),ISBLANK(F17:F25),ISBLANK(F27:F33)),"ERROR","OK") -> ERROR
B37: Mortgages and loans made
B39: Uncollateralised loans made to unrelated entities
B40: Uncollateralised loans made to group/related entities
B41: Collateralised loans made (other than loans on policies)
B42: Loans on policies
B44: Total | D44: =SUM(D39:D42) -> 0 | F44: =SUM(F39:F42) -> 0 | K44: =IF(OR(ISBLANK(D39:D42),ISBLANK(F39:F42)),"ERROR","OK") -> ERROR
B46: Reinsurance recoverables
B48: Reinsurance share of premium reserves
B49: Reinsurance share of claim reserves
B50: Other reinsurance recoverables
B52: Total | D52: =SUM(D48:D50) -> 0 | F52: =SUM(F48:F50) -> 0 | K52: =IF(OR(ISBLANK(D48:D50),ISBLANK(F48:F50)),"ERROR","OK") -> ERROR
B54: Other Assets
B56: SPV recoverables
B57: Intermediaries recoverables
B58: Insurance recoverables (Excluding intermediaries)
B59: Deferred acquisition costs | F59: 0
B60: Receivables (trade, not insurance)
B61: Pension benefit surplus
B62: Cash and cash equivalents
B63: Short term bank deposits
B64: Amounts due in respect of called but unpaid capital
B65: Other assets, not shown elsewhere
B67: Total | D67: =SUM(D56:D65) -> 0 | F67: =SUM(F56:F65) -> 0 | K67: =IF(OR(ISBLANK(D56:D65),ISBLANK(F56:F65)),"ERROR","OK") -> ERROR
B69: Total Assets
B71: TOTAL | D71: =SUM(D13,D35,D44,D52,D67) -> 0 | F71: =SUM(F13,F35,F44,F52,F67) -> 0 | K71: =IF(ISERROR(MATCH("ERROR",$K$13:$K$67,0)),"OK","ERROR") -> ERROR

Sheet EBS - Direct TPs
A1: =RIGHT(CELL("filename",$A$1),LEN(CELL("filename",$A$1))-FIND("]",CELL("filename",$A$1))) -> EBS - Direct TPs | M1: =Insurer_Shortname -> 0
A2: =Insurer_Name & " (" & Insurer_Shortname & ")" -> () | M2: =QIS_YE_Date -> 2017-12-31
B6: Balance Sheet - Direct Written Liabilities | C6: * | D6: Accounting basis | F6: Regulatory Basis * | J6: Reinsurance recoverables - Reg Basis *
F7: 1 in 10
B9: TPs - 1 - Motor vehicle liability insurance
B11: Premium reserves
B12: Claim Reserves
B13: Best Estimate Provision | D13: =SUM(D11:D12) -> 0 | F13: =SUM(F11:F12) -> 0
B14: Risk Margin | D14: 0
B16: Total | D16: =SUM(D13:D14) -> 0 | F16: =SUM(F13:F14) -> 0 | M16: =IF(OR(ISBLANK(D11:D12),ISBLANK(F11:F12),ISBLANK(F14),ISBLANK(J12)),"ERROR","OK") -> ERROR
B18: TPs - 2 - Other motor insurance
B20: Premium reserves
B21: Claim Reserves
B22: Best Estimate Provision | D22: =SUM(D20:D21) -> 0 | F22: =SUM(F20:F21) -> 0
B23: Risk Margin | D23: 0
B25: Total | D25: =SUM(D22:D23) -> 0 | F25: =SUM(F22:F23) -> 0 | M25: =IF(OR(ISBLANK(D20:D21),ISBLANK(F20:F21),ISBLANK(F23),ISBLANK(J21)),"ERROR","OK") -> ERROR
B27: TPs - 3 - Marine, aviation & transport (MAT) insurance
B29: Premium reserves
B30: Claim Reserves
B31: Best Estimate Provision | D31: =SUM(D29:D30) -> 0 | F31: =SUM(F29:F30) -> 0
B32: Risk Margin | D32: 0
B34: Total | D34: =SUM(D31:D32) -> 0 | F34: =SUM(F31:F32) -> 0 | M34: =IF(OR(ISBLANK(D29:D30),ISBLANK(F29:F30),ISBLANK(F32),ISBLANK(J30)),"ERROR","OK") -> ERROR
B36: TPs - 4 - Fire & other damage to property insurance
B38: Premium reserves
B39: Claim Reserves
B40: Best Estimate Provision | D40: =SUM(D38:D39) -> 0 | F40: =SUM(F38:F39) -> 0
B41: Risk Margin | D41: 0
B43: Total | D43: =SUM(D40:D41) -> 0 | F43: =SUM(F40:F41) -> 0 | M43: =IF(OR(ISBLANK(D38:D39),ISBLANK(F38:F39),ISBLANK(F41),ISBLANK(J39)),"ERROR","OK") -> ERROR
B45: TPs - 5 - General liability insurance
B47: Premium reserves
B48: Claim Reserves
B49: Best Estimate Provision | D49: =SUM(D47:D48) -> 0 | F49: =SUM(F47:F48) -> 0
B50: Risk Margin | D50: 0
B52: Total | D52: =SUM(D49:D50) -> 0 | F52: =SUM(F49:F50) -> 0 | M52: =IF(OR(ISBLANK(D47:D48),ISBLANK(F47:F48),ISBLANK(F50),ISBLANK(J48)),"ERROR","OK") -> ERROR
B54: TPs - 6 - Credit & Suretyship insurance
B56: Premium reserves
B57: Claim Reserves
B58: Best Estimate Provision | D58: =SUM(D56:D57) -> 0 | F58: =SUM(F56:F57) -> 0
B59: Risk Margin | D59: 0
B61: Total | D61: =SUM(D58:D59) -> 0 | F61: =SUM(F58:F59) -> 0 | M61: =IF(OR(ISBLANK(D56:D57),ISBLANK(F56:F57),ISBLANK(F59),ISBLANK(J57)),"ERROR","OK") -> ERROR
B63: TPs - 7 - Legal expenses insurance
B65: Premium reserves
B66: Claim Reserves
B67: Best Estimate Provision | D67: =SUM(D65:D66) -> 0 | F67: =SUM(F65:F66) -> 0
B68: Risk Margin | D68: 0
B70: Total | D70: =SUM(D67:D68) -> 0 | F70: =SUM(F67:F68) -> 0 | M70: =IF(OR(ISBLANK(D65:D66),ISBLANK(F65:F66),ISBLANK(F68),ISBLANK(J66)),"ERROR","OK") -> ERROR
B72: TPs - 8 - Assistance insurance
B74: Premium reserves
B75: Claim Reserves
B76: Best Estimate Provision | D76: =SUM(D74:D75) -> 0 | F76: =SUM(F74:F75) -> 0
B77: Risk Margin | D77: 0
B79: Total | D79: =SUM(D76:D77) -> 0 | F79: =SUM(F76:F77) -> 0 | M79: =IF(OR(ISBLANK(D74:D75),ISBLANK(F74:F75),ISBLANK(F77),ISBLANK(J75)),"ERROR","OK") -> ERROR
B81: TPs - 9 - Miscellaneous financial loss insurance
B83: Premium reserves
B84: Claim Reserves
B85: Best Estimate Provision | D85: =SUM(D83:D84) -> 0 | F85: =SUM(F83:F84) -> 0
B86: Risk Margin | D86: 0
B88: Total | D88: =SUM(D85:D86) -> 0 | F88: =SUM(F85:F86) -> 0 | M88: =IF(OR(ISBLANK(D83:D84),ISBLANK(F83:F84),ISBLANK(F86),ISBLANK(J84)),"ERROR","OK") -> ERROR
B90: TPs - 10 - Medical expense insurance
B92: Premium reserves
B93: Claim Reserves
B94: Best Estimate Provision | D94: =SUM(D92:D93) -> 0 | F94: =SUM(F92:F93) -> 0
B95: Risk Margin | D95: 0
B97: Total | D97: =SUM(D94:D95) -> 0 | F97: =SUM(F94:F95) -> 0 | M97: =IF(OR(ISBLANK(D92:D93),ISBLANK(F92:F93),ISBLANK(F95),ISBLANK(J93)),"ERROR","OK") -> ERROR
B99: TPs - 11 - Income protection insurance
B101: Premium reserves
B102: Claim Reserves
B103: Best Estimate Provision | D103: =SUM(D101:D102) -> 0 | F103: =SUM(F101:F102) -> 0
B104: Risk Margin | D104: 0
B106: Total | D106: =SUM(D103:D104) -> 0 | F106: =SUM(F103:F104) -> 0 | M106: =IF(OR(ISBLANK(D101:D102),ISBLANK(F101:F102),ISBLANK(F104),ISBLANK(J102)),"ERROR","OK") -> ERROR
B108: TPs - 12 - Workers' compensation insurance
B110: Premium reserves
B111: Claim Reserves
B112: Best Estimate Provision | D112: =SUM(D110:D111) -> 0 | F112: =SUM(F110:F111) -> 0
B113: Risk Margin | D113: 0
B115: Total | D115: =SUM(D112:D113) -> 0 | F115: =SUM(F112:F113) -> 0 | M115: =IF(OR(ISBLANK(D110:D111),ISBLANK(F110:F111),ISBLANK(F113),ISBLANK(J111)),"ERROR","OK") -> ERROR
B117: Total Liabilities
B119: TOTAL | D119: =SUM(Acc_TP_1,Acc_TP_2,Acc_TP_3,Acc_TP_4,Acc_TP_5,Acc_TP_6,Acc_TP_7,Acc_TP_8,Acc_TP_9,Acc_TP_10,Acc_TP_11,Acc_TP_12) -> 0 | F119: =SUM(Reg_TP_1_10,Reg_TP_2_10,Reg_TP_3_10,Reg_TP_4_10,Reg_TP_5_10,Reg_TP_6_10,Reg_TP_7_10,Reg_TP_8_10,Reg_TP_9_10,Reg_TP_10_10,Reg_TP_11_10,Reg_TP_12_10) -> 0 | M119: =IF(ISERROR(MATCH("ERROR",$M$16:$M$115,0)),"OK","ERROR") -> ERROR

Sheet EBS - Reins TPs
A1: =RIGHT(CELL("filename",$A$1),LEN(CELL("filename",$A$1))-FIND("]",CELL("filename",$A$1))) -> EBS - Reins TPs | M1: =Insurer_Shortname -> 0
A2: =Insurer_Name & " (" & Insurer_Shortname & ")" -> () | M2: =QIS_YE_Date -> 2017-12-31
B6: Balance Sheet - Reinsurances | C6: * | D6: Accounting basis | F6: Regulatory Basis * | J6: Reinsurance recoverables - Reg Basis *
F7: 1 in 10
B9: TPs - 13 - Motor vehicle liability proportional reinsurance
B11: Premium reserves
B12: Claim Reserves
B13: Best Estimate Provision | D13: =SUM(D11:D12) -> 0 | F13: =SUM(F11:F12) -> 0
B14: Risk Margin | D14: 0
B16: Total | D16: =SUM(D13:D14) -> 0 | F16: =SUM(F13:F14) -> 0 | M16: =IF(OR(ISBLANK(D11:D12),ISBLANK(F11:F12),ISBLANK(F14),ISBLANK(J12)),"ERROR","OK") -> ERROR
B18: TPs - 14 - Other motor proportional reinsurance
B20: Premium reserves
B21: Claim Reserves
B22: Best Estimate Provision | D22: =SUM(D20:D21) -> 0 | F22: =SUM(F20:F21) -> 0
B23: Risk Margin | D23: 0
B25: Total | D25: =SUM(D22:D23) -> 0 | F25: =SUM(F22:F23) -> 0 | M25: =IF(OR(ISBLANK(D20:D21),ISBLANK(F20:F21),ISBLANK(F23),ISBLANK(J21)),"ERROR","OK") -> ERROR
B27: TPs - 15 - Marine, aviation & transport (MAT) proportional reinsurance
B29: Premium reserves
B30: Claim Reserves
B31: Best Estimate Provision | D31: =SUM(D29:D30) -> 0 | F31: =SUM(F29:F30) -> 0
B32: Risk Margin | D32: 0
B34: Total | D34: =SUM(D31:D32) -> 0 | F34: =SUM(F31:F32) -> 0 | M34: =IF(OR(ISBLANK(D29:D30),ISBLANK(F29:F30),ISBLANK(F32),ISBLANK(J30)),"ERROR","OK") -> ERROR
B36: TPs - 16 - Fire & other damage to property proportional reinsurance
B38: Premium reserves
B39: Claim Reserves
B40: Best Estimate Provision | D40: =SUM(D38:D39) -> 0 | F40: =SUM(F38:F39) -> 0
B41: Risk Margin | D41: 0
B43: Total | D43: =SUM(D40:D41) -> 0 | F43: =SUM(F40:F41) -> 0 | M43: =IF(OR(ISBLANK(D38:D39),ISBLANK(F38:F39),ISBLANK(F41),ISBLANK(J39)),"ERROR","OK") -> ERROR
B45: TPs - 17 - General liability proportional reinsurance
B47: Premium reserves
B48: Claim Reserves
B49: Best Estimate Provision | D49: =SUM(D47:D48) -> 0 | F49: =SUM(F47:F48) -> 0
B50: Risk Margin | D50: 0
B52: Total | D52: =SUM(D49:D50) -> 0 | F52: =SUM(F49:F50) -> 0 | M52: =IF(OR(ISBLANK(D47:D48),ISBLANK(F47:F48),ISBLANK(F50),ISBLANK(J48)),"ERROR","OK") -> ERROR
B54: TPs - 18 - Credit & Suretyship proportional reinsurance
B56: Premium reserves
B57: Claim Reserves
B58: Best Estimate Provision | D58: =SUM(D56:D57) -> 0 | F58: =SUM(F56:F57) -> 0
B59: Risk Margin | D59: 0
B61: Total | D61: =SUM(D58:D59) -> 0 | F61: =SUM(F58:F59) -> 0 | M61: =IF(OR(ISBLANK(D56:D57),ISBLANK(F56:F57),ISBLANK(F59),ISBLANK(J57)),"ERROR","OK") -> ERROR
B63: TPs - 19 - Legal expenses proportional reinsurance
B65: Premium reserves
B66: Claim Reserves
B67: Best Estimate Provision | D67: =SUM(D65:D66) -> 0 | F67: =SUM(F65:F66) -> 0
B68: Risk Margin | D68: 0
B70: Total | D70: =SUM(D67:D68) -> 0 | F70: =SUM(F67:F68) -> 0 | M70: =IF(OR(ISBLANK(D65:D66),ISBLANK(F65:F66),ISBLANK(F68),ISBLANK(J66)),"ERROR","OK") -> ERROR
B72: TPs - 20 - Assistance proportional reinsurance
B74: Premium reserves
B75: Claim Reserves
B76: Best Estimate Provision | D76: =SUM(D74:D75) -> 0 | F76: =SUM(F74:F75) -> 0
B77: Risk Margin | D77: 0
B79: Total | D79: =SUM(D76:D77) -> 0 | F79: =SUM(F76:F77) -> 0 | M79: =IF(OR(ISBLANK(D74:D75),ISBLANK(F74:F75),ISBLANK(F77),ISBLANK(J75)),"ERROR","OK") -> ERROR
B81: TPs - 21 - Miscellaneous financial loss proportional reinsurance
B83: Premium reserves
B84: Claim Reserves
B85: Best Estimate Provision | D85: =SUM(D83:D84) -> 0 | F85: =SUM(F83:F84) -> 0
B86: Risk Margin | D86: 0
B88: Total | D88: =SUM(D85:D86) -> 0 | F88: =SUM(F85:F86) -> 0 | M88: =IF(OR(ISBLANK(D83:D84),ISBLANK(F83:F84),ISBLANK(F86),ISBLANK(J84)),"ERROR","OK") -> ERROR
B90: TPs - 22 - Medical expense proportional reinsurance
B92: Premium reserves
B93: Claim Reserves
B94: Best Estimate Provision | D94: =SUM(D92:D93) -> 0 | F94: =SUM(F92:F93) -> 0
B95: Risk Margin | D95: 0
B97: Total | D97: =SUM(D94:D95) -> 0 | F97: =SUM(F94:F95) -> 0 | M97: =IF(OR(ISBLANK(D92:D93),ISBLANK(F92:F93),ISBLANK(F95),ISBLANK(J93)),"ERROR","OK") -> ERROR
B99: TPs - 23 - Income Protection proportional reinsurance
B101: Premium reserves
B102: Claim Reserves
B103: Best Estimate Provision | D103: =SUM(D101:D102) -> 0 | F103: =SUM(F101:F102) -> 0
B104: Risk Margin | D104: 0
B106: Total | D106: =SUM(D103:D104) -> 0 | F106: =SUM(F103:F104) -> 0 | M106: =IF(OR(ISBLANK(D101:D102),ISBLANK(F101:F102),ISBLANK(F104),ISBLANK(J102)),"ERROR","OK") -> ERROR
B108: TPs - 24 - Workers' compensation proportional reinsurance
B110: Premium reserves
B111: Claim Reserves
B112: Best Estimate Provision | D112: =SUM(D110:D111) -> 0 | F112: =SUM(F110:F111) -> 0
B113: Risk Margin | D113: 0
B115: Total | D115: =SUM(D112:D113) -> 0 | F115: =SUM(F112:F113) -> 0 | M115: =IF(OR(ISBLANK(D110:D111),ISBLANK(F110:F111),ISBLANK(F113),ISBLANK(J111)),"ERROR","OK") -> ERROR
B117: TPs - 25 - Non-proportional casualty reinsurance
B119: Premium reserves
B120: Claim Reserves
B121: Best Estimate Provision | D121: =SUM(D119:D120) -> 0 | F121: =SUM(F119:F120) -> 0
B122: Risk Margin | D122: 0
B124: Total | D124: =SUM(D121:D122) -> 0 | F124: =SUM(F121:F122) -> 0 | M124: =IF(OR(ISBLANK(D119:D120),ISBLANK(F119:F120),ISBLANK(F122),ISBLANK(J120)),"ERROR","OK") -> ERROR
B126: TPs - 26 - Non-proportional marine, aviation & transport (MAT) reinsurance
B128: Premium reserves
B129: Claim Reserves
B130: Best Estimate Provision | D130: =SUM(D128:D129) -> 0 | F130: =SUM(F128:F129) -> 0
B131: Risk Margin | D131: 0
B133: Total | D133: =SUM(D130:D131) -> 0 | F133: =SUM(F130:F131) -> 0 | M133: =IF(OR(ISBLANK(D128:D129),ISBLANK(F128:F129),ISBLANK(F131),ISBLANK(J129)),"ERROR","OK") -> ERROR
B135: TPs - 27 - Non-proportional property reinsurance
B137: Premium reserves
B138: Claim Reserves
B139: Best Estimate Provision | D139: =SUM(D137:D138) -> 0 | F139: =SUM(F137:F138) -> 0
B140: Risk Margin | D140: 0
B142: Total | D142: =SUM(D139:D140) -> 0 | F142: =SUM(F139:F140) -> 0 | M142: =IF(OR(ISBLANK(D137:D138),ISBLANK(F137:F138),ISBLANK(F140),ISBLANK(J138)),"ERROR","OK") -> ERROR
B144: TPs - 28 - Non-proportional health reinsurance
B146: Premium reserves
B147: Claim Reserves
B148: Best Estimate Provision | D148: =SUM(D146:D147) -> 0 | F148: =SUM(F146:F147) -> 0
B149: Risk Margin | D149: 0
B151: Total | D151: =SUM(D148:D149) -> 0 | F151: =SUM(F148:F149) -> 0 | M151: =IF(OR(ISBLANK(D146:D147),ISBLANK(F146:F147),ISBLANK(F149),ISBLANK(J147)),"ERROR","OK") -> ERROR
B153: Total Liabilities - LOB 1-28
B155: TOTAL - LOB 1 to 28 | D155: =SUM('EBS - Direct TPs'!Acc_Total_Direct_Liabs,Acc_TP_13,Acc_TP_14,Acc_TP_15,Acc_TP_16,Acc_TP_17,Acc_TP_18,Acc_TP_19,Acc_TP_20,Acc_TP_21,Acc_TP_22,Acc_TP_23,Acc_TP_24,Acc_TP_25,Acc_TP_26,Acc_TP_27,Acc_TP_28) -> 0 | F155: =SUM('EBS - Direct TPs'!Reg_Total_Direct_Liabs,Reg_TP_13_10,Reg_TP_14_10,Reg_TP_15_10,Reg_TP_16_10,Reg_TP_17_10,Reg_TP_18_10,Reg_TP_19_10,Reg_TP_20_10,Reg_TP_21_10,Reg_TP_22_10,Reg_TP_23_10,Reg_TP_24_10,Reg_TP_25_10,Reg_TP_26_10,Reg_TP_27_10,Reg_TP_28_10) -> 0 | M155: =IF(ISERROR(MATCH("ERROR",$M$11:$M$151,0)),"OK","ERROR") -> ERROR

Sheet EBS - Other Liab
A1: =RIGHT(CELL("filename",$A$1),LEN(CELL("filename",$A$1))-FIND("]",CELL("filename",$A$1))) -> EBS - Other Liab | I1: =Insurer_Shortname -> 0
A2: =Insurer_Name & " (" & Insurer_Shortname & ")" -> () | I2: =QIS_YE_Date -> 2017-12-31
B6: Balance Sheet - Other Liabilities & Net Assets | C6: * | D6: Accounting basis | F6: Regulatory Basis *
B9: Other Liabilities
B11: Cash deposits from reinsurers
B12: (Re)insurance accounts payable
B13: Derivatives
B14: Provisions other than technical provisions
B15: Amounts owed to credit institutions
B16: Financial liabs (other than owed to credit institutions)
B17: Payables (trade, not insurance)
B18: Pensions benefit obligations
B19: Uncalled investments
B20: Contingent liabilities
B21: Any other liabilities not shown elsewhere
B23: Total Other Liabilities | D23: =SUM(D11:D21) -> 0 | F23: =SUM(F11:F21) -> 0 | I23: =IF(OR(ISBLANK(D11:D21),ISBLANK(F11:F21)),"ERROR","OK") -> ERROR
B25: Total Liabilities
B27: TOTAL | D27: =SUM('EBS - Reins TPs'!Acc_Total_1_to_28_Liabs,Acc_Other_Liabs) -> 0 | F27: =SUM('EBS - Reins TPs'!Reg_Total_1_to_28_Liabs_10,Reg_Other_Liabs_10) -> 0 | I27: =IF(ISERROR(MATCH("ERROR",$I$9:$I$23,0)),"OK","ERROR") -> ERROR
B31: Net Assets | D31: Accounting basis | F31: Regulatory
F32: basis
B34: TOTAL | D34: =Acc_Total_Assets-Acc_Total_Liabs -> 0 | F34: =Reg_Total_Assets-Reg_Total_Liabs_10 -> 0 | I34: =IF(OR('EBS - Assets'!K71="ERROR",'EBS - Direct TPs'!M119="ERROR",'EBS - Reins TPs'!M155="ERROR",I27="ERROR"),"ERROR","OK") -> ERROR

Sheet EBS - Capital
A1: =RIGHT(CELL("filename",$A$1),LEN(CELL("filename",$A$1))-FIND("]",CELL("filename",$A$1))) -> EBS - Capital | I1: =Insurer_Shortname -> 0
A2: =Insurer_Name & " (" & Insurer_Shortname & ")" -> () | I2: =QIS_YE_Date -> 2017-12-31
B5: Capital | C5: * | D5: Accounting basis | F5: Regulatory Basis
B8: Capital and Reserves
B10: Share Capital | F10: ='Own Funds'!J12 -> 0
B11: Initial fund | F11: ='Own Funds'!J20 -> 0
B12: Share premium | F12: ='Own Funds'!J24 -> 0
B13: Retained earnings | F13: ='Own Funds'!J28 -> 0
B14: Other reserves from accounting balance sheet | F14: ='Own Funds'!J32 -> 0
B15: Surplus funds | F15: ='Own Funds'!J46 -> 0
B16: EPIFP | D16: 0 | F16: ='Own Funds'!J50 -> 0
B17: Preference Shares | F17: ='Own Funds'!J58 -> 0
B18: Subordinated liabilities | F18: ='Own Funds'!J66 -> 0
B19: Other items not specified above | F19: ='Own Funds'!J74 -> 0
B21: Total | D21: =SUM(D10:D19) -> 0 | F21: =SUM(F10:F19) -> 0 | I21: =IF(OR(ISBLANK(D10:D19)),"ERROR",IF(OR(SUMPRODUCT(D10:D19,D10:D19)=0,SUMPRODUCT(F10:F19,F10:F19)=0),"ZERO","OK")) -> ERROR
B23: Reconciliation reserve
B25: Adjustment to assets | D25: 0 | F25: ='Own Funds'!J36 -> 0
B26: Adjustment to technical provisions | D26: 0 | F26: ='Own Funds'!J37 -> 0
B27: less expected profit in future premiums (EPIFP) | D27: 0 | F27: ='Own Funds'!J38 -> 0
B28: Adjustments to other liabilities | D28: 0 | F28: ='Own Funds'!J39 -> 0
B29: Others | D29: 0 | F29: ='Own Funds'!J40 -> 0
B31: Total | D31: =SUM(D25:D29) -> 0 | F31: =SUM(F25:F29) -> 0 | I31: =IF(SUMPRODUCT(F25:F29,F25:F29)=0,"ZERO","OK") -> ZERO
B33: Total Capital and Reserves
B35: TOTAL | D35: =D21 -> 0 | F35: =SUM(F31,F21) -> 0 | I35: =IF(OR($I$21="ERROR",AND($I$21="ZERO",$I$31="ZERO")),"ERROR",IF(OR($I$21="ZERO",$I$31="ZERO"),"ZERO","OK")) -> ERROR
B40: Check balance sheet is balanced | D40: =IF(AND(ABS('EBS - Other Liab'!D34-Acc_Capital)<0.001,'EBS - Assets'!$K$71<>"ERROR",'EBS - Direct TPs'!$M$119<>"ERROR",$I35<>"ERROR"),"OK","ERROR") -> ERROR | F40: =IF(AND(ABS('EBS - Other Liab'!F34-Reg_Capital_10)<0.001,'EBS - Assets'!$K$71<>"ERROR",'EBS - Direct TPs'!$M$119<>"ERROR",$I35<>"ERROR"),"OK","ERROR") -> ERROR

Sheet Own Funds
A1: =RIGHT(CELL("filename",$A$1),LEN(CELL("filename",$A$1))-FIND("]",CELL("filename",$A$1))) -> Own Funds | M1: =Insurer_Shortname -> 0
A2: =Insurer_Name & " (" & Insurer_Shortname & ")" -> () | M2: =QIS_YE_Date -> 2017-12-31
B5: Basic Own Funds * | D5: Tier 1 | F5: Tier 2 | H5: Tier 3 | J5: Total
B7: Ordinary Share Capital (net of own shares)
B9: Paid up | H9: 0 | J9: =SUM(D9,F9,H9) -> 0
B10: Called up | D10: 0 | H10: 0 | J10: =SUM(D10,F10,H10) -> 0
B12: Total | D12: =SUM(D9:D10) -> 0 | F12: =SUM(F9:F10) -> 0 | H12: =SUM(H9:H10) -> 0 | J12: =SUM(J9:J10) -> 0 | M12: =IF(OR(ISBLANK(D9:D10),ISBLANK(F9:F10),ISBLANK(H9:H10)),"ERROR","OK") -> ERROR
B14: Initial Fund (less item of the same type held)
B16: Paid up | J16: =SUM(D16,F16,H16) -> 0
B17: Called up | D17: 0 | J17: =SUM(D17,F17,H17) -> 0
B18: Callable | D18: 0 | J18: =SUM(D18,F18,H18) -> 0
B20: Total | D20: =SUM(D16:D18) -> 0 | F20: =SUM(F16:F18) -> 0 | H20: =SUM(H16:H18) -> 0 | J20: =SUM(J16:J18) -> 0 | M20: =IF(OR(ISBLANK(D16:D18),ISBLANK(F16:F18),ISBLANK(H16:H18)),"ERROR","OK") -> ERROR
B22: Share Premium Account
B24: Share Premium Account | H24: 0 | J24: =SUM(D24,F24,H24) -> 0 | M24: =IF(OR(D24="",F24="",H24=""),"ERROR","OK") -> ERROR
B26: Retained earnings including profits from the year net of foreseeable dividends
B28: Retained earnings | F28: 0 | H28: 0 | J28: =SUM(D28,F28,H28) -> 0 | M28: =IF(OR(D28="",F28="",H28=""),"ERROR","OK") -> ERROR
B30: Other reserves from accounting balance sheet
B32: Other reserves | H32: 0 | J32: =SUM(D32,F32,H32) -> 0 | M32: =IF(OR(D32="",F32="",H32=""),"ERROR","OK") -> ERROR
B34: Reconciliation reserve - 1 in 10
B36: Adjustment to assets | D36: =Reg_Total_Assets-Acc_Total_Assets -> 0 | F36: 0 | H36: 0 | J36: =SUM(D36,F36,H36) -> 0
B37: Adjustments to technical provisions | D37: =('EBS - Other Liab'!Acc_Total_Liabs-'EBS - Other Liab'!Acc_Other_Liabs)-('EBS - Other Liab'!Reg_Total_Liabs_10-'EBS - Other Liab'!Reg_Other_Liabs_10) -> 0 | F37: 0 | H37: 0 | J37: =SUM(D37,F37,H37) -> 0
B38: less expected profit in future premiums | D38: =-D50 -> 0 | F38: 0 | H38: 0 | J38: 0
B39: Adjustments to other liabilities | D39: ='EBS - Other Liab'!Acc_Other_Liabs-'EBS - Other Liab'!Reg_Other_Liabs_10 -> 0 | F39: 0 | H39: 0 | J39: 0
B40: Others | J40: 0
B42: Total | D42: =SUM(D36:D40) -> 0 | F42: =SUM(F36:F40) -> 0 | H42: =SUM(H36:H40) -> 0 | J42: =SUM(J36:J40) -> 0 | M42: =IF(OR(D40="",F40="",H40=""),"ERROR",IF(SUMPRODUCT(D36:D39,D36:D39)=0,"ZERO","OK")) -> ERROR
B44: Surplus funds
B46: Surplus funds | F46: 0 | H46: 0 | J46: =SUM(D46,F46,H46) -> 0 | M46: =IF(OR(D46="",F46="",H46=""),"ERROR","OK") -> ERROR
B48: Expected profit in future premiums
B50: EPIFP | F50: 0 | H50: 0 | J50: =SUM(D50,F50,H50) -> 0 | M50: =IF(OR(D50="",F50="",H50=""),"ERROR","OK") -> ERROR
B52: Preference shares
B54: Dated | J54: =SUM(D54,F54,H54) -> 0
B55: Undated with a call option | J55: =SUM(D55,F55,H55) -> 0
B56: Undated with no contractual opportunity to redeem | J56: 0
B58: Total | D58: =SUM(D54:D56) -> 0 | F58: =SUM(F54:F56) -> 0 | H58: =SUM(H54:H56) -> 0 | J58: =SUM(J54:J56) -> 0 | M58: =IF(OR(ISBLANK(D54:D56),ISBLANK(F54:F56),ISBLANK(H54:H56)),"ERROR","OK") -> ERROR
B60: Subordinated liabilities
B62: Dated | J62: =SUM(D62,F62,H62) -> 0
B63: Undated with a call option | J63: =SUM(D63,F63,H63) -> 0
B64: Undated with no contractual opportunity to redeem | J64: 0
B66: Total | D66: =SUM(D62:D64) -> 0 | F66: =SUM(F62:F64) -> 0 | H66: =SUM(H62:H64) -> 0 | J66: =SUM(J62:J64) -> 0 | M66: =IF(OR(ISBLANK(D62:D64),ISBLANK(F62:F64),ISBLANK(H62:H64)),"ERROR","OK") -> ERROR
B68: Subordinated mutual member accounts
B70: Subordinated mutual member accounts | J70: =SUM(D70,F70,H70) -> 0 | M70: =IF(OR(D70="",F70="",H70=""),"ERROR","OK") -> ERROR
B72: Other items not specified elsewhere
B74: Other items | J74: =SUM(D74,F74,H74) -> 0 | M74: =IF(OR(D74="",F74="",H74=""),"ERROR","OK") -> ERROR
B76: Total Basic Own Funds
B78: TOTAL | D78: =SUM(D12,D20,D24,D28,D32,D42,D46,D50,D58,D66,D70,D74) -> 0 | F78: =SUM(F12,F20,F24,F28,F32,F42,F46,F50,F58,F66,F70,F74) -> 0 | H78: =SUM(H12,H20,H24,H28,H32,H42,H46,H50,H58,H66,H70,H74) -> 0 | J78: =SUM(D78,F78,H78) -> 0 | M78: =IF(ISERROR(MATCH("ERROR",$M$12:$M$74,0)),"OK","ERROR") -> ERROR
B82: Adjustments to BOF | D82: Tier 1 | F82: Tier 2 | H82: Tier 3 | J82: Total
B84: Deductions
B86: Restricted reserves | F86: 0 | H86: 0 | J86: =SUM(D86,F86,H86) -> 0
B87: Ring fenced funds (excess OF over notional SCR) | F87: 0 | H87: 0 | J87: =SUM(D87,F87,H87) -> 0
B89: Total | D89: =SUM(D86:D87) -> 0 | F89: =SUM(F86:F87) -> 0 | H89: =SUM(H86:H87) -> 0 | J89: =SUM(J86:J87) -> 0 | M89: =IF(OR(ISBLANK(D86:D87),ISBLANK(F86:F87),ISBLANK(H86:H87)),"ERROR","OK") -> ERROR
B91: Change of tier
B93: Restricted reserves | F93: =-D93 -> 0 | H93: 0 | J93: =SUM(D93,F93,H93) -> 0
B94: Other adjustments | J94: =SUM(D94,F94,H94) -> 0 | M94: =IF(OR(J94<>0,D94="",F94="",H94=""),"ERROR","OK") -> ERROR
B96: Total | D96: =SUM(D93:D94) -> 0 | F96: =SUM(F93:F94) -> 0 | H96: =SUM(H93:H94) -> 0 | J96: =SUM(J93:J94) -> 0 | M96: =IF(OR(ISBLANK(D93:D94),ISBLANK(F93:F94),ISBLANK(H93:H94)),"ERROR","OK") -> ERROR
B98: Total Adjustments
B100: TOTAL | D100: =D96-D89 -> 0 | F100: =F96-F89 -> 0 | H100: =H96-H89 -> 0 | J100: =SUM(D100,F100,H100) -> 0 | M100: =IF(ISERROR(MATCH("ERROR",$M$89:$M$96,0)),"OK","ERROR") -> ERROR
B104: Total Eligible Own Funds to meet SCR
B106: Eligible Own Funds | D106: =SUM(BOF_Tier_1_10,BOF_Adj_Tier_1) -> 0 | F106: =SUM(BOF_Tier_2_10,BOF_Adj_Tier_2) -> 0 | H106: =SUM(BOF_Tier_3_10,BOF_Adj_Tier_3) -> 0 | J106: =SUM(BOF_Total_10,BOF_Adj_Total) -> 0 | M106: =IF(AND(M78="OK",M100="OK"),"OK","ERROR") -> ERROR
B110: Ancillary own fund items - for information | D110: Tier 1 | F110: Tier 2 | H110: Tier 3 | J110: Total
B112: Unpaid share capital or initial fund that has not been paid up
B114: Total | D114: 0 | J114: =SUM(D114,F114,H114) -> 0 | M114: =IF(OR(F114="",H114=""),"ERROR","OK") -> ERROR
B116: Letters of credit and guarantees held in trust (TS(10) 4.10.)
B118: Letter of credit | D118: 0 | J118: =SUM(D118,F118,H118) -> 0
B119: Guarantees held in trust | D119: 0 | J119: =SUM(D119,F119,H119) -> 0
B121: Total | D121: =SUM(D118:D119) -> 0 | F121: =SUM(F118:F119) -> 0 | H121: =SUM(H118:H119) -> 0 | J121: =SUM(J118:J119) -> 0 | M121: =IF(OR(ISBLANK(F118:F119),ISBLANK(H118:H119)),"ERROR","OK") -> ERROR
B123: Other items currently eligible to meet requirements under current solvency regime
B125: Other items | D125: 0 | J125: =SUM(D125,F125,H125) -> 0 | M125: =IF(OR(F125="",H125=""),"ERROR","OK") -> ERROR
B127: Total Ancillary Own Funds
B129: TOTAL | D129: =SUM(D114,D121,D125,) -> 0 | F129: =SUM(F114,F121,F125,) -> 0 | H129: =SUM(H114,H121,H125,) -> 0 | J129: =SUM(J114,J121,J125,) -> 0 | M129: =IF(ISERROR(MATCH("ERROR",$M$114:$M$125,0)),"OK","ERROR") -> ERROR

Sheet Market Risk Inputs
A1: =RIGHT(CELL("filename",$A$1),LEN(CELL("filename",$A$1))-FIND("]",CELL("filename",$A$1))) -> Market Risk Inputs | R1: =Insurer_Shortname -> 0
A2: =Insurer_Name & " (" & Insurer_Shortname & ")" -> () | R2: =QIS_YE_Date -> 2017-12-31
B5: Interest Rate Risk * | D5: Assets | F5: Liabilities | H5: BOF
B7: Base | H7: =ABS(D7-F7) -> 0 | R7: =IF(OR(D7="",F7=""),"ERROR","OK") -> ERROR
B9: 1 in 10 year Shock | D9: Assets | F9: Liabilities | H9: BOF | K9: Capital
B11: MarketInterestUp (10) * | H11: =ABS($D11-$F11) -> 0 | K11: =MAX(0,-(H11-$H$7)) -> 0 | R11: =IF(OR(D11="",F11=""),"ERROR","OK") -> ERROR
B12: MarketInterestDown (10) * | H12: =ABS($D12-$F12) -> 0 | K12: =MAX(0,-(H12-$H$7)) -> 0 | R12: =IF(OR(D12="",F12=""),"ERROR","OK") -> ERROR
B16: Currency Risk * | D16: Assets | F16: Liabilities | H16: Exposure | K16: 1 in 10 year shock
K17: θ | M17: Capital
B19: Marketfx * | H19: =ABS($D19-$F19) -> 0 | K19: 0.12 | M19: =$H19*K19 -> 0 | R19: =IF(OR(D19="",F19=""),"ERROR","OK") -> ERROR
B24: Concentration Risk * | D24: Capital
B26: 1 in 10 year Shock
B28: Marketconc (10) * | R28: =IF(D28="","ERROR","OK") -> ERROR

Sheet Credit Spread Risk
A1: =RIGHT(CELL("filename",$A$1),LEN(CELL("filename",$A$1))-FIND("]",CELL("filename",$A$1))) -> Credit Spread Risk | M1: =Insurer_Shortname -> 0
M2: =QIS_YE_Date -> 2017-12-31
C4: 1 in 10 simplification
C6: Bonds and loans with credit ratings
C8: CQ Step (i) | E8: % MV (i) | G8: F(up) | I8: Duration (years) *
C10: 0 | G10: =Data!D147 -> 0.004 | M10: =IF(AND($E$47<>0,OR(E10="",I10="")),"ERROR","OK") -> OK
C11: 1 | G11: =Data!E147 -> 0.005 | M11: =IF(AND($E$47<>0,OR(E11="",I11="")),"ERROR","OK") -> OK
C12: 2 | G12: =Data!F147 -> 0.007 | M12: =IF(AND($E$47<>0,OR(E12="",I12="")),"ERROR","OK") -> OK
C13: 3 | G13: =Data!G147 -> 0.012 | M13: OK
C14: 4 | G14: =Data!H147 -> 0.022 | M14: OK
C15: 5 | G15: =Data!I147 -> 0.037 | M15: OK
C16: 6 | G16: =Data!J147 -> 0.037 | M16: OK
C18: Total Rated | E18: =SUM(E10:E16) -> 0 | I18: =SUMPRODUCT($E$10:$E$16,$G$10:$G$16,$I$10:$I$16)/SUMPRODUCT($E$10:$E$16,$G$10:$G$16) -> 
C21: Bonds and loans without credit ratings
E23: % MV | I23: Duration (years) *
G25: 0.015 | M25: =IF(AND(E34<>0,E18+E25<>1),"ERROR","OK") -> OK
E28: MV | G28: MV post stress | I28: ∆ MV
C30: Gilts | E30: ='EBS - Assets'!F21 -> 0 | G30: =E30 -> 0 | I30: =G30-E30 -> 0 | M30: =IF(OR(E30="",G30=""),"ERROR","OK") -> OK
C31: Rated Bonds and Loans | E31: =SUM('EBS - Assets'!F18,'EBS - Assets'!F22,'EBS - Assets'!F23,'EBS - Assets'!F24,'EBS - Assets'!F39,'EBS - Assets'!F41,'EBS - Assets'!F42)*(1-'Credit Spread Risk'!E25) -> 0 | G31: =E31-E31*SUMPRODUCT(E10:E16,G10:G16,I10:I16) -> 0 | I31: =G31-E31 -> 0 | M31: =IF(OR(E31="",G31=""),"ERROR","OK") -> OK
C32: Unrated Bonds and Loans | E32: =SUM('EBS - Assets'!F18,'EBS - Assets'!F22,'EBS - Assets'!F23,'EBS - Assets'!F24,'EBS - Assets'!F39,'EBS - Assets'!F41,'EBS - Assets'!F42)*'Credit Spread Risk'!E25 -> 0 | G32: =E32-E32*MIN(G25*I25,1) -> 0 | I32: =G32-E32 -> 0 | M32: OK
C34: Total | E34: =SUM(E30:E32) -> 0 | G34: =SUM(G30:G32) -> 0 | I34: =SUM(I30:I32) -> 0

Sheet Counterparty Default Risk
A1: =RIGHT(CELL("filename",$A$1),LEN(CELL("filename",$A$1))-FIND("]",CELL("filename",$A$1))) -> Counterparty Default Risk | K1: =Insurer_Shortname -> 0
A2: =Insurer_Name & " (" & Insurer_Shortname & ")" -> () | K2: =QIS_YE_Date -> 2017-12-31
B5: Counterparty Default Risk | F5: 1 in 10
B7: Capital Requirement (before diversification effects) | F7: =SUM(D19:D20) -> 0
B9: Diversification | E9: * | F9: =D22-F7 -> 0
B11: SCRdefault | E11: * | F11: =SUM(F7,F9) -> 0 | K11: =IF(ISERROR(MATCH("ERROR",K19:K20,0)),IF(SCR_Default_10=0,"ZERO","OK"),"ERROR") -> ERROR
B15: Inputs. See instructions in D19 and D20 below.
B16: Counterparty Default Risk | D16: Capital
D17: 1 in 10
B19: SCRdefault,1* | K19: =IF(SCR_Def_1_10="","ERROR","OK") -> ERROR
B20: SCRdefault,2* | K20: =IF(SCR_Def_2_10="","ERROR","OK") -> ERROR
B22: SCRdefault | D22: =IF(ISBLANK(D19:D20),0,SQRT(MMULT(MMULT(TRANSPOSE(D19:D20),DefaultCorr10),D19:D20))) -> 0

Sheet Premium and Reserve Risk
A1: =RIGHT(CELL("filename",$A$1),LEN(CELL("filename",$A$1))-FIND("]",CELL("filename",$A$1))) -> Premium and Reserve Risk | AA1: =Insurer_Shortname -> 0
A2: =Insurer_Name & " (" & Insurer_Shortname & ")" -> () | AA2: =QIS_YE_Date -> 2017-12-31
B5: Volume Measure * | G5: Ps * | I5: P(last,s) * | K5: FP(existing,s) * | M5: FP(future,s) * | O5: V(prem,s) * | Q5: V(res,s) * | S5: DIVs * | U5: Vs | X5: Number of aggregate caps | Y5: *
B7: 1 - Motor Vehicle Liability & Prop. Reins. | O7: =MAX(G7,I7)+K7+M7 -> 0 | Q7: =SUM('EBS - Direct TPs'!F12,'EBS - Reins TPs'!F12,-'EBS - Direct TPs'!J12,-'EBS - Reins TPs'!J12) -> 0 | S7: =DIV!D39 -> 1 | U7: =(O7+Q7)*(0.75+0.25*S7) -> 0 | AA7: =IF(OR(G7="",I7="",K7="",M7="",Q7="",AND(O7<>DIV!F9,S7<>100%),AND(Q7<>DIV!F24,S7<>100%)),"ERROR","OK") -> ERROR
B8: 2 - Other Motor & Prop. Reins. | O8: =MAX(G8,I8)+K8+M8 -> 0 | Q8: =SUM('EBS - Direct TPs'!F21,'EBS - Reins TPs'!F21,-'EBS - Direct TPs'!J21,-'EBS - Reins TPs'!J21) -> 0 | S8: =DIV!D40 -> 1 | U8: =(O8+Q8)*(0.75+0.25*S8) -> 0 | AA8: =IF(OR(G8="",I8="",K8="",M8="",Q8="",AND(O8<>DIV!F10,S8<>100%),AND(Q8<>DIV!F25,S8<>100%)),"ERROR","OK") -> ERROR
B9: 3 - Marine, Aviation & Transport (MAT) & Prop. Reins. | O9: 0 | Q9: =SUM('EBS - Direct TPs'!F30,'EBS - Reins TPs'!F30,-'EBS - Direct TPs'!J30,-'EBS - Reins TPs'!J30) -> 0 | S9: =DIV!D41 -> 1 | U9: 0 | AA9: =IF(OR(G9="",I9="",K9="",M9="",Q9="",AND(O9<>DIV!F11,S9<>100%),AND(Q9<>DIV!F26,S9<>100%)),"ERROR","OK") -> ERROR
B10: 4 - Fire & Other Damage to Property & Prop. Reins. | O10: 0 | Q10: =SUM('EBS - Direct TPs'!F39,'EBS - Reins TPs'!F39,-'EBS - Direct TPs'!J39,-'EBS - Reins TPs'!J39) -> 0 | S10: =DIV!D42 -> 1 | U10: 0 | AA10: =IF(OR(G10="",I10="",K10="",M10="",Q10="",AND(O10<>DIV!F12,S10<>100%),AND(Q10<>DIV!F27,S10<>100%)),"ERROR","OK") -> ERROR
B11: 5 - General Liability & Prop. Reins. | O11: 0 | Q11: =SUM('EBS - Direct TPs'!F48,'EBS - Reins TPs'!F48,-'EBS - Direct TPs'!J48,-'EBS - Reins TPs'!J48) -> 0 | S11: =DIV!D43 -> 1 | U11: 0 | AA11: =IF(OR(G11="",I11="",K11="",M11="",Q11="",AND(O11<>DIV!F13,S11<>100%),AND(Q11<>DIV!F28,S11<>100%)),"ERROR","OK") -> ERROR
B12: 6 - Credit & Suretyship & Prop. Reins. | O12: 0 | Q12: =SUM('EBS - Direct TPs'!F57,'EBS - Reins TPs'!F57,-'EBS - Direct TPs'!J57,-'EBS - Reins TPs'!J57) -> 0 | S12: =DIV!D44 -> 1 | U12: 0 | AA12: =IF(OR(G12="",I12="",K12="",M12="",Q12="",AND(O12<>DIV!F14,S12<>100%),AND(Q12<>DIV!F29,S12<>100%)),"ERROR","OK") -> ERROR
B13: 7 - Legal Expenses & Prop. Reins. | O13: 0 | Q13: =SUM('EBS - Direct TPs'!F66,'EBS - Reins TPs'!F66,-'EBS - Direct TPs'!J66,-'EBS - Reins TPs'!J66) -> 0 | S13: =DIV!D45 -> 1 | U13: 0 | AA13: =IF(OR(G13="",I13="",K13="",M13="",Q13="",AND(O13<>DIV!F15,S13<>100%),AND(Q13<>DIV!F30,S13<>100%)),"ERROR","OK") -> ERROR
B14: 8 - Assistance & Prop. Reins. | O14: 0 | Q14: =SUM('EBS - Direct TPs'!F75,'EBS - Reins TPs'!F75,-'EBS - Direct TPs'!J75,-'EBS - Reins TPs'!J75) -> 0 | S14: =DIV!D46 -> 1 | U14: 0 | AA14: =IF(OR(G14="",I14="",K14="",M14="",Q14="",AND(O14<>DIV!F16,S14<>100%),AND(Q14<>DIV!F31,S14<>100%)),"ERROR","OK") -> ERROR
B15: 9 - Miscellaneous Financial Loss & Prop. Reins. | O15: 0 | Q15: =SUM('EBS - Direct TPs'!F84,'EBS - Reins TPs'!F84,-'EBS - Direct TPs'!J84,-'EBS - Reins TPs'!J84) -> 0 | S15: =DIV!D47 -> 1 | U15: 0 | AA15: =IF(OR(G15="",I15="",K15="",M15="",Q15="",AND(O15<>DIV!F17,S15<>100%),AND(Q15<>DIV!F32,S15<>100%)),"ERROR","OK") -> ERROR
B16: 25 - Non-prop. reinsurance - Casualty | O16: 0 | Q16: ='EBS - Reins TPs'!F120-'EBS - Reins TPs'!J120 -> 0 | S16: =DIV!D48 -> 1 | U16: 0 | AA16: =IF(OR(G16="",I16="",K16="",M16="",Q16="",AND(O16<>DIV!F18,S16<>100%),AND(Q16<>DIV!F33,S16<>100%)),"ERROR","OK") -> ERROR
B17: 26 - Non-prop. reinsurance - MAT | O17: 0 | Q17: ='EBS - Reins TPs'!F129-'EBS - Reins TPs'!J129 -> 0 | S17: =DIV!D49 -> 1 | U17: 0 | AA17: =IF(OR(G17="",I17="",K17="",M17="",Q17="",AND(O17<>DIV!F19,S17<>100%),AND(Q17<>DIV!F34,S17<>100%)),"ERROR","OK") -> ERROR
B18: 27 - Non-prop. reinsurance - Property | O18: 0 | Q18: ='EBS - Reins TPs'!F138-'EBS - Reins TPs'!J138 -> 0 | S18: =DIV!D50 -> 1 | U18: 0 | AA18: =IF(OR(G18="",I18="",K18="",M18="",Q18="",AND(O18<>DIV!F20,S18<>100%),AND(Q18<>DIV!F35,S18<>100%)),"ERROR","OK") -> ERROR
C22: Aggregate caps
B24: 1 | C24: =RIGHT(OFFSET($B$7,B24-1,0),LEN(OFFSET($B$7,B24-1,0))-5) -> Motor Vehicle Liability & Prop. Reins. | X24: σ(prem,s) | AA24: σ(res,s)
C25: Contract identifier * | F25: =IF(OFFSET($X$7,B24-1,0)=0,1,0) -> 1 | G25: Ps | I25: P(last,s) | K25: FP(existing,s) | M25: FP(future,s) | O25: V(prem,) | Q25: Max exposure from V(prem) * | S25: Claims reserve * | U25: Max exposure from in-force * | X25: =OFFSET('Non-Life Underwriting Risk'!$K$55,'Premium and Reserve Risk'!B24-1,0) -> 0.08 | AA25: =OFFSET('Non-Life Underwriting Risk'!$M$55,'Premium and Reserve Risk'!B24-1,0) -> 0.09
F26: =IF(OFFSET($X$7,B24-1,0)=0,1,0) -> 1
B27: 1 | F27: =IF(B27<=OFFSET($X$7,B24-1,0),0,1) -> 1 | O27: =MAX(G27,I27)+K27+M27 -> 0 | X27: =MAX(0%,IF(O27<>0,MIN((Q27-O27)/O27/'Non-Life Underwriting Risk'!$E$27,'Premium and Reserve Risk'!$X$25),'Premium and Reserve Risk'!$X$25)) -> 0.08 | AA27: =MAX(0%,IF(S27<>0,MIN((U27-S27)/S27/'Non-Life Underwriting Risk'!$E$27,'Premium and Reserve Risk'!$AA$25),'Premium and Reserve Risk'!$AA$25)) -> 0.09
B28: 2 | F28: =IF(B28<=OFFSET($X$7,B24-1,0),0,1) -> 1 | O28: 0 | X28: =MAX(0%,IF(O28<>0,MIN((Q28-O28)/O28/'Non-Life Underwriting Risk'!$E$27,'Premium and Reserve Risk'!$X$25),'Premium and Reserve Risk'!$X$25)) -> 0.08 | AA28: =MAX(0%,IF(S28<>0,MIN((U28-S28)/S28/'Non-Life Underwriting Risk'!$E$27,'Premium and Reserve Risk'!$AA$25),'Premium and Reserve Risk'!$AA$25)) -> 0.09
B29: 3 | F29: =IF(B29<=OFFSET($X$7,B24-1,0),0,1) -> 1 | O29: 0 | X29: =MAX(0%,IF(O29<>0,MIN((Q29-O29)/O29/'Non-Life Underwriting Risk'!$E$27,'Premium and Reserve Risk'!$X$25),'Premium and Reserve Risk'!$X$25)) -> 0.08 | AA29: =MAX(0%,IF(S29<>0,MIN((U29-S29)/S29/'Non-Life Underwriting Risk'!$E$27,'Premium and Reserve Risk'!$AA$25),'Premium and Reserve Risk'!$AA$25)) -> 0.09
B30: 4 | F30: =IF(B30<=OFFSET($X$7,B24-1,0),0,1) -> 1 | O30: 0 | X30: =MAX(0%,IF(O30<>0,MIN((Q30-O30)/O30/'Non-Life Underwriting Risk'!$E$27,'Premium and Reserve Risk'!$X$25),'Premium and Reserve Risk'!$X$25)) -> 0.08 | AA30: =MAX(0%,IF(S30<>0,MIN((U30-S30)/S30/'Non-Life Underwriting Risk'!$E$27,'Premium and Reserve Risk'!$AA$25),'Premium and Reserve Risk'!$AA$25)) -> 0.09
B31: 5 | F31: =IF(B31<=OFFSET($X$7,B24-1,0),0,1) -> 1 | O31: 0 | X31: =MAX(0%,IF(O31<>0,MIN((Q31-O31)/O31/'Non-Life Underwriting Risk'!$E$27,'Premium and Reserve Risk'!$X$25),'Premium and Reserve Risk'!$X$25)) -> 0.08 | AA31: =MAX(0%,IF(S31<>0,MIN((U31-S31)/S31/'Non-Life Underwriting Risk'!$E$27,'Premium and Reserve Risk'!$AA$25),'Premium and Reserve Risk'!$AA$25)) -> 0.09
B32: 6 | F32: =IF(B32<=OFFSET($X$7,B24-1,0),0,1) -> 1 | O32: 0 | X32: =MAX(0%,IF(O32<>0,MIN((Q32-O32)/O32/'Non-Life Underwriting Risk'!$E$27,'Premium and Reserve Risk'!$X$25),'Premium and Reserve Risk'!$X$25)) -> 0.08 | AA32: =MAX(0%,IF(S32<>0,MIN((U32-S32)/S32/'Non-Life Underwriting Risk'!$E$27,'Premium and Reserve Risk'!$AA$25),'Premium and Reserve Risk'!$AA$25)) -> 0.09
B33: 7 | F33: =IF(B33<=OFFSET($X$7,B24-1,0),0,1) -> 1 | O33: 0 | X33: =MAX(0%,IF(O33<>0,MIN((Q33-O33)/O33/'Non-Life Underwriting Risk'!$E$27,'Premium and Reserve Risk'!$X$25),'Premium and Reserve Risk'!$X$25)) -> 0.08 | AA33: =MAX(0%,IF(S33<>0,MIN((U33-S33)/S33/'Non-Life Underwriting Risk'!$E$27,'Premium and Reserve Risk'!$AA$25),'Premium and Reserve Risk'!$AA$25)) -> 0.09
B34: 8 | F34: =IF(B34<=OFFSET($X$7,B24-1,0),0,1) -> 1 | O34: 0 | X34: =MAX(0%,IF(O34<>0,MIN((Q34-O34)/O34/'Non-Life Underwriting Risk'!$E$27,'Premium and Reserve Risk'!$X$25),'Premium and Reserve Risk'!$X$25)) -> 0.08 | AA34: =MAX(0%,IF(S34<>0,MIN((U34-S34)/S34/'Non-Life Underwriting Risk'!$E$27,'Premium and Reserve Risk'!$AA$25),'Premium and Reserve Risk'!$AA$25)) -> 0.09
B35: 9 | F35: =IF(B35<=OFFSET($X$7,B24-1,0),0,1) -> 1 | O35: 0 | X35: =MAX(0%,IF(O35<>0,MIN((Q35-O35)/O35/'Non-Life Underwriting Risk'!$E$27,'Premium and Reserve Risk'!$X$25),'Premium and Reserve Risk'!$X$25)) -> 0.08 | AA35: =MAX(0%,IF(S35<>0,MIN((U35-S35)/S35/'Non-Life Underwriting Risk'!$E$27,'Premium and Reserve Risk'!$AA$25),'Premium and Reserve Risk'!$AA$25)) -> 0.09
B36: 10 | F36: =IF(B36<=OFFSET($X$7,B24-1,0),0,1) -> 1 | O36: 0 | X36: =MAX(0%,IF(O36<>0,MIN((Q36-O36)/O36/'Non-Life Underwriting Risk'!$E$27,'Premium and Reserve Risk'!$X$25),'Premium and Reserve Risk'!$X$25)) -> 0.08 | AA36: =MAX(0%,IF(S36<>0,MIN((U36-S36)/S36/'Non-Life Underwriting Risk'!$E$27,'Premium and Reserve Risk'!$AA$25),'Premium and Reserve Risk'!$AA$25)) -> 0.09
B37: 11 | F37: =IF(B37<=OFFSET($X$7,B24-1,0),0,1) -> 1 | O37: 0 | X37: =MAX(0%,IF(O37<>0,MIN((Q37-O37)/O37/'Non-Life Underwriting Risk'!$E$27,'Premium and Reserve Risk'!$X$25),'Premium and Reserve Risk'!$X$25)) -> 0.08 | AA37: =MAX(0%,IF(S37<>0,MIN((U37-S37)/S37/'Non-Life Underwriting Risk'!$E$27,'Premium and Reserve Risk'!$AA$25),'Premium and Reserve Risk'!$AA$25)) -> 0.09
B38: 12 | F38: =IF(B38<=OFFSET($X$7,B24-1,0),0,1) -> 1 | O38: 0 | X38: =MAX(0%,IF(O38<>0,MIN((Q38-O38)/O38/'Non-Life Underwriting Risk'!$E$27,'Premium and Reserve Risk'!$X$25),'Premium and Reserve Risk'!$X$25)) -> 0.08 | AA38: =MAX(0%,IF(S38<>0,MIN((U38-S38)/S38/'Non-Life Underwriting Risk'!$E$27,'Premium and Reserve Risk'!$AA$25),'Premium and Reserve Risk'!$AA$25)) -> 0.09
B39: 13 | F39: =IF(B39<=OFFSET($X$7,B24-1,0),0,1) -> 1 | O39: 0 | X39: =MAX(0%,IF(O39<>0,MIN((Q39-O39)/O39/'Non-Life Underwriting Risk'!$E$27,'Premium and Reserve Risk'!$X$25),'Premium and Reserve Risk'!$X$25)) -> 0.08 | AA39: =MAX(0%,IF(S39<>0,MIN((U39-S39)/S39/'Non-Life Underwriting Risk'!$E$27,'Premium and Reserve Risk'!$AA$25),'Premium and Reserve Risk'!$AA$25)) -> 0.09
B40: 14 | F40: =IF(B40<=OFFSET($X$7,B24-1,0),0,1) -> 1 | O40: 0 | X40: =MAX(0%,IF(O40<>0,MIN((Q40-O40)/O40/'Non-Life Underwriting Risk'!$E$27,'Premium and Reserve Risk'!$X$25),'Premium and Reserve Risk'!$X$25)) -> 0.08 | AA40: =MAX(0%,IF(S40<>0,MIN((U40-S40)/S40/'Non-Life Underwriting Risk'!$E$27,'Premium and Reserve Risk'!$AA$25),'Premium and Reserve Risk'!$AA$25)) -> 0.09
B41: 15 | F41: =IF(B41<=OFFSET($X$7,B24-1,0),0,1) -> 1 | O41: 0 | X41: =MAX(0%,IF(O41<>0,MIN((Q41-O41)/O41/'Non-Life Underwriting Risk'!$E$27,'Premium and Reserve Risk'!$X$25),'Premium and Reserve Risk'!$X$25)) -> 0.08 | AA41: =MAX(0%,IF(S41<>0,MIN((U41-S41)/S41/'Non-Life Underwriting Risk'!$E$27,'Premium and Reserve Risk'!$AA$25),'Premium and Reserve Risk'!$AA$25)) -> 0.09
B42: 16 | F42: =IF(B42<=OFFSET($X$7,B24-1,0),0,1) -> 1 | O42: 0 | X42: =MAX(0%,IF(O42<>0,MIN((Q42-O42)/O42/'Non-Life Underwriting Risk'!$E$27,'Premium and Reserve Risk'!$X$25),'Premium and Reserve Risk'!$X$25)) -> 0.08 | AA42: =MAX(0%,IF(S42<>0,MIN((U42-S42)/S42/'Non-Life Underwriting Risk'!$E$27,'Premium and Reserve Risk'!$AA$25),'Premium and Reserve Risk'!$AA$25)) -> 0.09
B43: 17 | F43: =IF(B43<=OFFSET($X$7,B24-1,0),0,1) -> 1 | O43: 0 | X43: =MAX(0%,IF(O43<>0,MIN((Q43-O43)/O43/'Non-Life Underwriting Risk'!$E$27,'Premium and Reserve Risk'!$X$25),'Premium and Reserve Risk'!$X$25)) -> 0.08 | AA43: =MAX(0%,IF(S43<>0,MIN((U43-S43)/S43/'Non-Life Underwriting Risk'!$E$27,'Premium and Reserve Risk'!$AA$25),'Premium and Reserve Risk'!$AA$25)) -> 0.09
B44: 18 | F44: =IF(B44<=OFFSET($X$7,B24-1,0),0,1) -> 1 | O44: 0 | X44: =MAX(0%,IF(O44<>0,MIN((Q44-O44)/O44/'Non-Life Underwriting Risk'!$E$27,'Premium and Reserve Risk'!$X$25),'Premium and Reserve Risk'!$X$25)) -> 0.08 | AA44: =MAX(0%,IF(S44<>0,MIN((U44-S44)/S44/'Non-Life Underwriting Risk'!$E$27,'Premium and Reserve Risk'!$AA$25),'Premium and Reserve Risk'!$AA$25)) -> 0.09
B45: 19 | F45: =IF(B45<=OFFSET($X$7,B24-1,0),0,1) -> 1 | O45: 0 | X45: =MAX(0%,IF(O45<>0,MIN((Q45-O45)/O45/'Non-Life Underwriting Risk'!$E$27,'Premium and Reserve Risk'!$X$25),'Premium and Reserve Risk'!$X$25)) -> 0.08 | AA45: =MAX(0%,IF(S45<>0,MIN((U45-S45)/S45/'Non-Life Underwriting Risk'!$E$27,'Premium and Reserve Risk'!$AA$25),'Premium and Reserve Risk'!$AA$25)) -> 0.09
B46: 20 | F46: =IF(B46<=OFFSET($X$7,B24-1,0),0,1) -> 1 | O46: 0 | X46: =MAX(0%,IF(O46<>0,MIN((Q46-O46)/O46/'Non-Life Underwriting Risk'!$E$27,'Premium and Reserve Risk'!$X$25),'Premium and Reserve Risk'!$X$25)) -> 0.08 | AA46: =MAX(0%,IF(S46<>0,MIN((U46-S46)/S46/'Non-Life Underwriting Risk'!$E$27,'Premium and Reserve Risk'!$AA$25),'Premium and Reserve Risk'!$AA$25)) -> 0.09
B47: 21 | F47: =IF(B47<=OFFSET($X$7,B24-1,0),0,1) -> 1 | O47: =MAX(G47,I47)+K47+M47 -> 0 | X47: =MAX(0%,IF(O47<>0,MIN((Q47-O47)/O47/'Non-Life Underwriting Risk'!$E$27,'Premium and Reserve Risk'!$X$25),'Premium and Reserve Risk'!$X$25)) -> 0.08 | AA47: =MAX(0%,IF(S47<>0,MIN((U47-S47)/S47/'Non-Life Underwriting Risk'!$E$27,'Premium and Reserve Risk'!$AA$25),'Premium and Reserve Risk'!$AA$25)) -> 0.09
B48: 22 | F48: =IF(B48<=OFFSET($X$7,B24-1,0),0,1) -> 1 | O48: 0 | X48: =MAX(0%,IF(O48<>0,MIN((Q48-O48)/O48/'Non-Life Underwriting Risk'!$E$27,'Premium and Reserve Risk'!$X$25),'Premium and Reserve Risk'!$X$25)) -> 0.08 | AA48: =MAX(0%,IF(S48<>0,MIN((U48-S48)/S48/'Non-Life Underwriting Risk'!$E$27,'Premium and Reserve Risk'!$AA$25),'Premium and Reserve Risk'!$AA$25)) -> 0.09
B49: 23 | F49: =IF(B49<=OFFSET($X$7,B24-1,0),0,1) -> 1 | O49: 0 | X49: =MAX(0%,IF(O49<>0,MIN((Q49-O49)/O49/'Non-Life Underwriting Risk'!$E$27,'Premium and Reserve Risk'!$X$25),'Premium and Reserve Risk'!$X$25)) -> 0.08 | AA49: =MAX(0%,IF(S49<>0,MIN((U49-S49)/S49/'Non-Life Underwriting Risk'!$E$27,'Premium and Reserve Risk'!$AA$25),'Premium and Reserve Risk'!$AA$25)) -> 0.09
B50: 24 | F50: =IF(B50<=OFFSET($X$7,B24-1,0),0,1) -> 1 | O50: 0 | X50: =MAX(0%,IF(O50<>0,MIN((Q50-O50)/O50/'Non-Life Underwriting Risk'!$E$27,'Premium and Reserve Risk'!$X$25),'Premium and Reserve Risk'!$X$25)) -> 0.08 | AA50: =MAX(0%,IF(S50<>0,MIN((U50-S50)/S50/'Non-Life Underwriting Risk'!$E$27,'Premium and Reserve Risk'!$AA$25),'Premium and Reserve Risk'!$AA$25)) -> 0.09
B51: 25 | F51: =IF(B51<=OFFSET($X$7,B24-1,0),0,1) -> 1 | O51: 0 | X51: =MAX(0%,IF(O51<>0,MIN((Q51-O51)/O51/'Non-Life Underwriting Risk'!$E$27,'Premium and Reserve Risk'!$X$25),'Premium and Reserve Risk'!$X$25)) -> 0.08 | AA51: =MAX(0%,IF(S51<>0,MIN((U51-S51)/S51/'Non-Life Underwriting Risk'!$E$27,'Premium and Reserve Risk'!$AA$25),'Premium and Reserve Risk'!$AA$25)) -> 0.09
B52: 26 | F52: =IF(B52<=OFFSET($X$7,B24-1,0),0,1) -> 1 | O52: 0 | X52: =MAX(0%,IF(O52<>0,MIN((Q52-O52)/O52/'Non-Life Underwriting Risk'!$E$27,'Premium and Reserve Risk'!$X$25),'Premium and Reserve Risk'!$X$25)) -> 0.08 | AA52: =MAX(0%,IF(S52<>0,MIN((U52-S52)/S52/'Non-Life Underwriting Risk'!$E$27,'Premium and Reserve Risk'!$AA$25),'Premium and Reserve Risk'!$AA$25)) -> 0.09
B53: 27 | F53: =IF(B53<=OFFSET($X$7,B24-1,0),0,1) -> 1 | O53: 0 | X53: =MAX(0%,IF(O53<>0,MIN((Q53-O53)/O53/'Non-Life Underwriting Risk'!$E$27,'Premium and Reserve Risk'!$X$25),'Premium and Reserve Risk'!$X$25)) -> 0.08 | AA53: =MAX(0%,IF(S53<>0,MIN((U53-S53)/S53/'Non-Life Underwriting Risk'!$E$27,'Premium and Reserve Risk'!$AA$25),'Premium and Reserve Risk'!$AA$25)) -> 0.09
B54: 28 | F54: =IF(B54<=OFFSET($X$7,B24-1,0),0,1) -> 1 | O54: 0 | X54: =MAX(0%,IF(O54<>0,MIN((Q54-O54)/O54/'Non-Life Underwriting Risk'!$E$27,'Premium and Reserve Risk'!$X$25),'Premium and Reserve Risk'!$X$25)) -> 0.08 | AA54: =MAX(0%,IF(S54<>0,MIN((U54-S54)/S54/'Non-Life Underwriting Risk'!$E$27,'Premium and Reserve Risk'!$AA$25),'Premium and Reserve Risk'!$AA$25)) -> 0.09
B55: 29 | F55: =IF(B55<=OFFSET($X$7,B24-1,0),0,1) -> 1 | O55: 0 | X55: =MAX(0%,IF(O55<>0,MIN((Q55-O55)/O55/'Non-Life Underwriting Risk'!$E$27,'Premium and Reserve Risk'!$X$25),'Premium and Reserve Risk'!$X$25)) -> 0.08 | AA55: =MAX(0%,IF(S55<>0,MIN((U55-S55)/S55/'Non-Life Underwriting Risk'!$E$27,'Premium and Reserve Risk'!$AA$25),'Premium and Reserve Risk'!$AA$25)) -> 0.09
B56: 30 | F56: =IF(B56<=OFFSET($X$7,B24-1,0),0,1) -> 1 | O56: 0 | X56: =MAX(0%,IF(O56<>0,MIN((Q56-O56)/O56/'Non-Life Underwriting Risk'!$E$27,'Premium and Reserve Risk'!$X$25),'Premium and Reserve Risk'!$X$25)) -> 0.08 | AA56: =MAX(0%,IF(S56<>0,MIN((U56-S56)/S56/'Non-Life Underwriting Risk'!$E$27,'Premium and Reserve Risk'!$AA$25),'Premium and Reserve Risk'!$AA$25)) -> 0.09
B57: 31 | F57: =IF(B57<=OFFSET($X$7,B24-1,0),0,1) -> 1 | O57: 0 | X57: =MAX(0%,IF(O57<>0,MIN((Q57-O57)/O57/'Non-Life Underwriting Risk'!$E$27,'Premium and Reserve Risk'!$X$25),'Premium and Reserve Risk'!$X$25)) -> 0.08 | AA57: =MAX(0%,IF(S57<>0,MIN((U57-S57)/S57/'Non-Life Underwriting Risk'!$E$27,'Premium and Reserve Risk'!$AA$25),'Premium and Reserve Risk'!$AA$25)) -> 0.09
B58: 32 | F58: =IF(B58<=OFFSET($X$7,B24-1,0),0,1) -> 1 | O58: 0 | X58: =MAX(0%,IF(O58<>0,MIN((Q58-O58)/O58/'Non-Life Underwriting Risk'!$E$27,'Premium and Reserve Risk'!$X$25),'Premium and Reserve Risk'!$X$25)) -> 0.08 | AA58: =MAX(0%,IF(S58<>0,MIN((U58-S58)/S58/'Non-Life Underwriting Risk'!$E$27,'Premium and Reserve Risk'!$AA$25),'Premium and Reserve Risk'!$AA$25)) -> 0.09
B59: 33 | F59: =IF(B59<=OFFSET($X$7,B24-1,0),0,1) -> 1 | O59: 0 | X59: =MAX(0%,IF(O59<>0,MIN((Q59-O59)/O59/'Non-Life Underwriting Risk'!$E$27,'Premium and Reserve Risk'!$X$25),'Premium and Reserve Risk'!$X$25)) -> 0.08 | AA59: =MAX(0%,IF(S59<>0,MIN((U59-S59)/S59/'Non-Life Underwriting Risk'!$E$27,'Premium and Reserve Risk'!$AA$25),'Premium and Reserve Risk'!$AA$25)) -> 0.09
B60: 34 | F60: =IF(B60<=OFFSET($X$7,B24-1,0),0,1) -> 1 | O60: 0 | X60: =MAX(0%,IF(O60<>0,MIN((Q60-O60)/O60/'Non-Life Underwriting Risk'!$E$27,'Premium and Reserve Risk'!$X$25),'Premium and Reserve Risk'!$X$25)) -> 0.08 | AA60: =MAX(0%,IF(S60<>0,MIN((U60-S60)/S60/'Non-Life Underwriting Risk'!$E$27,'Premium and Reserve Risk'!$AA$25),'Premium and Reserve Risk'!$AA$25)) -> 0.09
B61: 35 | F61: =IF(B61<=OFFSET($X$7,B24-1,0),0,1) -> 1 | O61: 0 | X61: =MAX(0%,IF(O61<>0,MIN((Q61-O61)/O61/'Non-Life Underwriting Risk'!$E$27,'Premium and Reserve Risk'!$X$25),'Premium and Reserve Risk'!$X$25)) -> 0.08 | AA61: =MAX(0%,IF(S61<>0,MIN((U61-S61)/S61/'Non-Life Underwriting Risk'!$E$27,'Premium and Reserve Risk'!$AA$25),'Premium and Reserve Risk'!$AA$25)) -> 0.09
B62: 36 | F62: =IF(B62<=OFFSET($X$7,B24-1,0),0,1) -> 1 | O62: 0 | X62: =MAX(0%,IF(O62<>0,MIN((Q62-O62)/O62/'Non-Life Underwriting Risk'!$E$27,'Premium and Reserve Risk'!$X$25),'Premium and Reserve Risk'!$X$25)) -> 0.08 | AA62: =MAX(0%,IF(S62<>0,MIN((U62-S62)/S62/'Non-Life Underwriting Risk'!$E$27,'Premium and Reserve Risk'!$AA$25),'Premium and Reserve Risk'!$AA$25)) -> 0.09
B63: 37 | F63: =IF(B63<=OFFSET($X$7,B24-1,0),0,1) -> 1 | O63: 0 | X63: =MAX(0%,IF(O63<>0,MIN((Q63-O63)/O63/'Non-Life Underwriting Risk'!$E$27,'Premium and Reserve Risk'!$X$25),'Premium and Reserve Risk'!$X$25)) -> 0.08 | AA63: =MAX(0%,IF(S63<>0,MIN((U63-S63)/S63/'Non-Life Underwriting Risk'!$E$27,'Premium and Reserve Risk'!$AA$25),'Premium and Reserve Risk'!$AA$25)) -> 0.09
B64: 38 | F64: =IF(B64<=OFFSET($X$7,B24-1,0),0,1) -> 1 | O64: 0 | X64: =MAX(0%,IF(O64<>0,MIN((Q64-O64)/O64/'Non-Life Underwriting Risk'!$E$27,'Premium and Reserve Risk'!$X$25),'Premium and Reserve Risk'!$X$25)) -> 0.08 | AA64: =MAX(0%,IF(S64<>0,MIN((U64-S64)/S64/'Non-Life Underwriting Risk'!$E$27,'Premium and Reserve Risk'!$AA$25),'Premium and Reserve Risk'!$AA$25)) -> 0.09
B65: 39 | F65: =IF(B65<=OFFSET($X$7,B24-1,0),0,1) -> 1 | O65: 0 | X65: =MAX(0%,IF(O65<>0,MIN((Q65-O65)/O65/'Non-Life Underwriting Risk'!$E$27,'Premium and Reserve Risk'!$X$25),'Premium and Reserve Risk'!$X$25)) -> 0.08 | AA65: =MAX(0%,IF(S65<>0,MIN((U65-S65)/S65/'Non-Life Underwriting Risk'!$E$27,'Premium and Reserve Risk'!$AA$25),'Premium and Reserve Risk'!$AA$25)) -> 0.09
B66: 40 | F66: =IF(B66<=OFFSET($X$7,B24-1,0),0,1) -> 1 | O66: 0 | X66: =MAX(0%,IF(O66<>0,MIN((Q66-O66)/O66/'Non-Life Underwriting Risk'!$E$27,'Premium and Reserve Risk'!$X$25),'Premium and Reserve Risk'!$X$25)) -> 0.08 | AA66: =MAX(0%,IF(S66<>0,MIN((U66-S66)/S66/'Non-Life Underwriting Risk'!$E$27,'Premium and Reserve Risk'!$AA$25),'Premium and Reserve Risk'!$AA$25)) -> 0.09
B67: 41 | F67: =IF(B67<=OFFSET($X$7,B24-1,0),0,1) -> 1 | O67: 0 | X67: =MAX(0%,IF(O67<>0,MIN((Q67-O67)/O67/'Non-Life Underwriting Risk'!$E$27,'Premium and Reserve Risk'!$X$25),'Premium and Reserve Risk'!$X$25)) -> 0.08 | AA67: =MAX(0%,IF(S67<>0,MIN((U67-S67)/S67/'Non-Life Underwriting Risk'!$E$27,'Premium and Reserve Risk'!$AA$25),'Premium and Reserve Risk'!$AA$25)) -> 0.09
B68: 42 | F68: =IF(B68<=OFFSET($X$7,B24-1,0),0,1) -> 1 | O68: 0 | X68: =MAX(0%,IF(O68<>0,MIN((Q68-O68)/O68/'Non-Life Underwriting Risk'!$E$27,'Premium and Reserve Risk'!$X$25),'Premium and Reserve Risk'!$X$25)) -> 0.08 | AA68: =MAX(0%,IF(S68<>0,MIN((U68-S68)/S68/'Non-Life Underwriting Risk'!$E$27,'Premium and Reserve Risk'!$AA$25),'Premium and Reserve Risk'!$AA$25)) -> 0.09
B69: 43 | F69: =IF(B69<=OFFSET($X$7,B24-1,0),0,1) -> 1 | O69: 0 | X69: =MAX(0%,IF(O69<>0,MIN((Q69-O69)/O69/'Non-Life Underwriting Risk'!$E$27,'Premium and Reserve Risk'!$X$25),'Premium and Reserve Risk'!$X$25)) -> 0.08 | AA69: =MAX(0%,IF(S69<>0,MIN((U69-S69)/S69/'Non-Life Underwriting Risk'!$E$27,'Premium and Reserve Risk'!$AA$25),'Premium and Reserve Risk'!$AA$25)) -> 0.09
B70: 44 | F70: =IF(B70<=OFFSET($X$7,B24-1,0),0,1) -> 1 | O70: 0 | X70: =MAX(0%,IF(O70<>0,MIN((Q70-O70)/O70/'Non-Life Underwriting Risk'!$E$27,'Premium and Reserve Risk'!$X$25),'Premium and Reserve Risk'!$X$25)) -> 0.08 | AA70: =MAX(0%,IF(S70<>0,MIN((U70-S70)/S70/'Non-Life Underwriting Risk'!$E$27,'Premium and Reserve Risk'!$AA$25),'Premium and Reserve Risk'!$AA$25)) -> 0.09
B71: 45 | F71: =IF(B71<=OFFSET($X$7,B24-1,0),0,1) -> 1 | O71: 0 | X71: =MAX(0%,IF(O71<>0,MIN((Q71-O71)/O71/'Non-Life Underwriting Risk'!$E$27,'Premium and Reserve Risk'!$X$25),'Premium and Reserve Risk'!$X$25)) -> 0.08 | AA71: =MAX(0%,IF(S71<>0,MIN((U71-S71)/S71/'Non-Life Underwriting Risk'!$E$27,'Premium and Reserve Risk'!$AA$25),'Premium and Reserve Risk'!$AA$25)) -> 0.09
B72: 46 | F72: =IF(B72<=OFFSET($X$7,B24-1,0),0,1) -> 1 | O72: 0 | X72: =MAX(0%,IF(O72<>0,MIN((Q72-O72)/O72/'Non-Life Underwriting Risk'!$E$27,'Premium and Reserve Risk'!$X$25),'Premium and Reserve Risk'!$X$25)) -> 0.08 | AA72: =MAX(0%,IF(S72<>0,MIN((U72-S72)/S72/'Non-Life Underwriting Risk'!$E$27,'Premium and Reserve Risk'!$AA$25),'Premium and Reserve Risk'!$AA$25)) -> 0.09
B73: 47 | F73: =IF(B73<=OFFSET($X$7,B24-1,0),0,1) -> 1 | O73: 0 | X73: =MAX(0%,IF(O73<>0,MIN((Q73-O73)/O73/'Non-Life Underwriting Risk'!$E$27,'Premium and Reserve Risk'!$X$25),'Premium and Reserve Risk'!$X$25)) -> 0.08 | AA73: =MAX(0%,IF(S73<>0,MIN((U73-S73)/S73/'Non-Life Underwriting Risk'!$E$27,'Premium and Reserve Risk'!$AA$25),'Premium and Reserve Risk'!$AA$25)) -> 0.09
B74: 48 | F74: =IF(B74<=OFFSET($X$7,B24-1,0),0,1) -> 1 | O74: 0 | X74: =MAX(0%,IF(O74<>0,MIN((Q74-O74)/O74/'Non-Life Underwriting Risk'!$E$27,'Premium and Reserve Risk'!$X$25),'Premium and Reserve Risk'!$X$25)) -> 0.08 | AA74: =MAX(0%,IF(S74<>0,MIN((U74-S74)/S74/'Non-Life Underwriting Risk'!$E$27,'Premium and Reserve Risk'!$AA$25),'Premium and Reserve Risk'!$AA$25)) -> 0.09
B75: 49 | F75: =IF(B75<=OFFSET($X$7,B24-1,0),0,1) -> 1 | O75: =MAX(G75,I75)+K75+M75 -> 0 | X75: =MAX(0%,IF(O75<>0,MIN((Q75-O75)/O75/'Non-Life Underwriting Risk'!$E$27,'Premium and Reserve Risk'!$X$25),'Premium and Reserve Risk'!$X$25)) -> 0.08 | AA75: =MAX(0%,IF(S75<>0,MIN((U75-S75)/S75/'Non-Life Underwriting Risk'!$E$27,'Premium and Reserve Risk'!$AA$25),'Premium and Reserve Risk'!$AA$25)) -> 0.09
B76: 50 | F76: =IF(B76<=OFFSET($X$7,B24-1,0),0,1) -> 1 | O76: 0 | X76: =MAX(0%,IF(O76<>0,MIN((Q76-O76)/O76/'Non-Life Underwriting Risk'!$E$27,'Premium and Reserve Risk'!$X$25),'Premium and Reserve Risk'!$X$25)) -> 0.08 | AA76: =MAX(0%,IF(S76<>0,MIN((U76-S76)/S76/'Non-Life Underwriting Risk'!$E$27,'Premium and Reserve Risk'!$AA$25),'Premium and Reserve Risk'!$AA$25)) -> 0.09
B77: 51 | F77: =IF(B77<=OFFSET($X$7,B24-1,0),0,1) -> 1 | O77: 0 | X77: =MAX(0%,IF(O77<>0,MIN((Q77-O77)/O77/'Non-Life Underwriting Risk'!$E$27,'Premium and Reserve Risk'!$X$25),'Premium and Reserve Risk'!$X$25)) -> 0.08 | AA77: =MAX(0%,IF(S77<>0,MIN((U77-S77)/S77/'Non-Life Underwriting Risk'!$E$27,'Premium and Reserve Risk'!$AA$25),'Premium and Reserve Risk'!$AA$25)) -> 0.09
B78: 52 | F78: =IF(B78<=OFFSET($X$7,B24-1,0),0,1) -> 1 | O78: 0 | X78: =MAX(0%,IF(O78<>0,MIN((Q78-O78)/O78/'Non-Life Underwriting Risk'!$E$27,'Premium and Reserve Risk'!$X$25),'Premium and Reserve Risk'!$X$25)) -> 0.08 | AA78: =MAX(0%,IF(S78<>0,MIN((U78-S78)/S78/'Non-Life Underwriting Risk'!$E$27,'Premium and Reserve Risk'!$AA$25),'Premium and Reserve Risk'!$AA$25)) -> 0.09
B79: 53 | F79: =IF(B79<=OFFSET($X$7,B24-1,0),0,1) -> 1 | O79: 0 | X79: =MAX(0%,IF(O79<>0,MIN((Q79-O79)/O79/'Non-Life Underwriting Risk'!$E$27,'Premium and Reserve Risk'!$X$25),'Premium and Reserve Risk'!$X$25)) -> 0.08 | AA79: =MAX(0%,IF(S79<>0,MIN((U79-S79)/S79/'Non-Life Underwriting Risk'!$E$27,'Premium and Reserve Risk'!$AA$25),'Premium and Reserve Risk'!$AA$25)) -> 0.09
B80: 54 | F80: =IF(B80<=OFFSET($X$7,B24-1,0),0,1) -> 1 | O80: 0 | X80: =MAX(0%,IF(O80<>0,MIN((Q80-O80)/O80/'Non-Life Underwriting Risk'!$E$27,'Premium and Reserve Risk'!$X$25),'Premium and Reserve Risk'!$X$25)) -> 0.08 | AA80: =MAX(0%,IF(S80<>0,MIN((U80-S80)/S80/'Non-Life Underwriting Risk'!$E$27,'Premium and Reserve Risk'!$AA$25),'Premium and Reserve Risk'!$AA$25)) -> 0.09
B81: 55 | F81: =IF(B81<=OFFSET($X$7,B24-1,0),0,1) -> 1 | O81: 0 | X81: =MAX(0%,IF(O81<>0,MIN((Q81-O81)/O81/'Non-Life Underwriting Risk'!$E$27,'Premium and Reserve Risk'!$X$25),'Premium and Reserve Risk'!$X$25)) -> 0.08 | AA81: =MAX(0%,IF(S81<>0,MIN((U81-S81)/S81/'Non-Life Underwriting Risk'!$E$27,'Premium and Reserve Risk'!$AA$25),'Premium and Reserve Risk'!$AA$25)) -> 0.09
B82: 56 | F82: =IF(B82<=OFFSET($X$7,B24-1,0),0,1) -> 1 | O82: 0 | X82: =MAX(0%,IF(O82<>0,MIN((Q82-O82)/O82/'Non-Life Underwriting Risk'!$E$27,'Premium and Reserve Risk'!$X$25),'Premium and Reserve Risk'!$X$25)) -> 0.08 | AA82: =MAX(0%,IF(S82<>0,MIN((U82-S82)/S82/'Non-Life Underwriting Risk'!$E$27,'Premium and Reserve Risk'!$AA$25),'Premium and Reserve Risk'!$AA$25)) -> 0.09
B83: 57 | F83: =IF(B83<=OFFSET($X$7,B24-1,0),0,1) -> 1 | O83: 0 | X83: =MAX(0%,IF(O83<>0,MIN((Q83-O83)/O83/'Non-Life Underwriting Risk'!$E$27,'Premium and Reserve Risk'!$X$25),'Premium and Reserve Risk'!$X$25)) -> 0.08 | AA83: =MAX(0%,IF(S83<>0,MIN((U83-S83)/S83/'Non-Life Underwriting Risk'!$E$27,'Premium and Reserve Risk'!$AA$25),'Premium and Reserve Risk'!$AA$25)) -> 0.09
B84: 58 | F84: =IF(B84<=OFFSET($X$7,B24-1,0),0,1) -> 1 | O84: 0 | X84: =MAX(0%,IF(O84<>0,MIN((Q84-O84)/O84/'Non-Life Underwriting Risk'!$E$27,'Premium and Reserve Risk'!$X$25),'Premium and Reserve Risk'!$X$25)) -> 0.08 | AA84: =MAX(0%,IF(S84<>0,MIN((U84-S84)/S84/'Non-Life Underwriting Risk'!$E$27,'Premium and Reserve Risk'!$AA$25),'Premium and Reserve Risk'!$AA$25)) -> 0.09
B85: 59 | F85: =IF(B85<=OFFSET($X$7,B24-1,0),0,1) -> 1 | O85: 0 | X85: =MAX(0%,IF(O85<>0,MIN((Q85-O85)/O85/'Non-Life Underwriting Risk'!$E$27,'Premium and Reserve Risk'!$X$25),'Premium and Reserve Risk'!$X$25)) -> 0.08 | AA85: =MAX(0%,IF(S85<>0,MIN((U85-S85)/S85/'Non-Life Underwriting Risk'!$E$27,'Premium and Reserve Risk'!$AA$25),'Premium and Reserve Risk'!$AA$25)) -> 0.09
B86: 60 | F86: =IF(B86<=OFFSET($X$7,B24-1,0),0,1) -> 1 | O86: 0 | X86: =MAX(0%,IF(O86<>0,MIN((Q86-O86)/O86/'Non-Life Underwriting Risk'!$E$27,'Premium and Reserve Risk'!$X$25),'Premium and Reserve Risk'!$X$25)) -> 0.08 | AA86: =MAX(0%,IF(S86<>0,MIN((U86-S86)/S86/'Non-Life Underwriting Risk'!$E$27,'Premium and Reserve Risk'!$AA$25),'Premium and Reserve Risk'!$AA$25)) -> 0.09
F87: =IF(OFFSET($X$7,B24-1,0)=0,1,0) -> 1
B89: 2 | C89: =RIGHT(OFFSET($B$7,B89-1,0),LEN(OFFSET($B$7,B89-1,0))-5) -> Other Motor & Prop. Reins. | X89: σ(prem,s) | AA89: σ(res,s)
C90: Contract identifier * | F90: =IF(OFFSET($X$7,B89-1,0)=0,1,0) -> 1 | G90: Ps | I90: P(last,s) | K90: FP(existing,s) | M90: FP(future,s) | O90: V(prem,) | Q90: Max exposure from V(prem) * | S90: Claims reserve * | U90: Max exposure from in-force * | X90: =OFFSET('Non-Life Underwriting Risk'!$K$55,'Premium and Reserve Risk'!B89-1,0) -> 0.08 | AA90: =OFFSET('Non-Life Underwriting Risk'!$M$55,'Premium and Reserve Risk'!B89-1,0) -> 0.08
F91: =IF(OFFSET($X$7,B89-1,0)=0,1,0) -> 1
B92: 1 | F92: =IF(B92<=OFFSET($X$7,B89-1,0),0,1) -> 1 | O92: =MAX(G92,I92)+K92+M92 -> 0 | X92: =MAX(0%,IF(O92<>0,MIN((Q92-O92)/O92/'Non-Life Underwriting Risk'!$E$27,'Premium and Reserve Risk'!$X$90),'Premium and Reserve Risk'!$X$90)) -> 0.08 | AA92: =MAX(0%,IF(S92<>0,MIN((U92-S92)/S92/'Non-Life Underwriting Risk'!$E$27,'Premium and Reserve Risk'!$AA$90),'Premium and Reserve Risk'!$AA$90)) -> 0.08
B93: 2 | F93: =IF(B93<=OFFSET($X$7,B89-1,0),0,1) -> 1 | O93: 0 | X93: =MAX(0%,IF(O93<>0,MIN((Q93-O93)/O93/'Non-Life Underwriting Risk'!$E$27,'Premium and Reserve Risk'!$X$90),'Premium and Reserve Risk'!$X$90)) -> 0.08 | AA93: =MAX(0%,IF(S93<>0,MIN((U93-S93)/S93/'Non-Life Underwriting Risk'!$E$27,'Premium and Reserve Risk'!$AA$90),'Premium and Reserve Risk'!$AA$90)) -> 0.08
B94: 3 | F94: =IF(B94<=OFFSET($X$7,B89-1,0),0,1) -> 1 | O94: 0 | X94: =MAX(0%,IF(O94<>0,MIN((Q94-O94)/O94/'Non-Life Underwriting Risk'!$E$27,'Premium and Reserve Risk'!$X$90),'Premium and Reserve Risk'!$X$90)) -> 0.08 | AA94: =MAX(0%,IF(S94<>0,MIN((U94-S94)/S94/'Non-Life Underwriting Risk'!$E$27,'Premium and Reserve Risk'!$AA$90),'Premium and Reserve Risk'!$AA$90)) -> 0.08
B95: 4 | F95: =IF(B95<=OFFSET($X$7,B89-1,0),0,1) -> 1 | O95: 0 | X95: =MAX(0%,IF(O95<>0,MIN((Q95-O95)/O95/'Non-Life Underwriting Risk'!$E$27,'Premium and Reserve Risk'!$X$90),'Premium and Reserve Risk'!$X$90)) -> 0.08 | AA95: =MAX(0%,IF(S95<>0,MIN((U95-S95)/S95/'Non-Life Underwriting Risk'!$E$27,'Premium and Reserve Risk'!$AA$90),'Premium and Reserve Risk'!$AA$90)) -> 0.08
B96: 5 | F96: =IF(B96<=OFFSET($X$7,B89-1,0),0,1) -> 1 | O96: 0 | X96: =MAX(0%,IF(O96<>0,MIN((Q96-O96)/O96/'Non-Life Underwriting Risk'!$E$27,'Premium and Reserve Risk'!$X$90),'Premium and Reserve Risk'!$X$90)) -> 0.08 | AA96: =MAX(0%,IF(S96<>0,MIN((U96-S96)/S96/'Non-Life Underwriting Risk'!$E$27,'Premium and Reserve Risk'!$AA$90),'Premium and Reserve Risk'!$AA$90)) -> 0.08
B97: 6 | F97: =IF(B97<=OFFSET($X$7,B89-1,0),0,1) -> 1 | O97: 0 | X97: =MAX(0%,IF(O97<>0,MIN((Q97-O97)/O97/'Non-Life Underwriting Risk'!$E$27,'Premium and Reserve Risk'!$X$90),'Premium and Reserve Risk'!$X$90)) -> 0.08 | AA97: =MAX(0%,IF(S97<>0,MIN((U97-S97)/S97/'Non-Life Underwriting Risk'!$E$27,'Premium and Reserve Risk'!$AA$90),'Premium and Reserve Risk'!$AA$90)) -> 0.08
B98: 7 | F98: =IF(B98<=OFFSET($X$7,B89-1,0),0,1) -> 1 | O98: 0 | X98: =MAX(0%,IF(O98<>0,MIN((Q98-O98)/O98/'Non-Life Underwriting Risk'!$E$27,'Premium and Reserve Risk'!$X$90),'Premium and Reserve Risk'!$X$90)) -> 0.08 | AA98: =MAX(0%,IF(S98<>0,MIN((U98-S98)/S98/'Non-Life Underwriting Risk'!$E$27,'Premium and Reserve Risk'!$AA$90),'Premium and Reserve Risk'!$AA$90)) -> 0.08
B99: 8 | F99: =IF(B99<=OFFSET($X$7,B89-1,0),0,1) -> 1 | O99: 0 | X99: =MAX(0%,IF(O99<>0,MIN((Q99-O99)/O99/'Non-Life Underwriting Risk'!$E$27,'Premium and Reserve Risk'!$X$90),'Premium and Reserve Risk'!$X$90)) -> 0.08 | AA99: =MAX(0%,IF(S99<>0,MIN((U99-S99)/S99/'Non-Life Underwriting Risk'!$E$27,'Premium and Reserve Risk'!$AA$90),'Premium and Reserve Risk'!$AA$90)) -> 0.08
B100: 9 | F100: =IF(B100<=OFFSET($X$7,B89-1,0),0,1) -> 1 | O100: 0 | X100: =MAX(0%,IF(O100<>0,MIN((Q100-O100)/O100/'Non-Life Underwriting Risk'!$E$27,'Premium and Reserve Risk'!$X$90),'Premium and Reserve Risk'!$X$90)) -> 0.08 | AA100: =MAX(0%,IF(S100<>0,MIN((U100-S100)/S100/'Non-Life Underwriting Risk'!$E$27,'Premium and Reserve Risk'!$AA$90),'Premium and Reserve Risk'!$AA$90)) -> 0.08
B101: 10 | F101: =IF(B101<=OFFSET($X$7,B89-1,0),0,1) -> 1 | O101: 0 | X101: =MAX(0%,IF(O101<>0,MIN((Q101-O101)/O101/'Non-Life Underwriting Risk'!$E$27,'Premium and Reserve Risk'!$X$90),'Premium and Reserve Risk'!$X$90)) -> 0.08 | AA101: =MAX(0%,IF(S101<>0,MIN((U101-S101)/S101/'Non-Life Underwriting Risk'!$E$27,'Premium and Reserve Risk'!$AA$90),'Premium and Reserve Risk'!$AA$90)) -> 0.08
B102: 11 | F102: =IF(B102<=OFFSET($X$7,B89-1,0),0,1) -> 1 | O102: 0 | X102: =MAX(0%,IF(O102<>0,MIN((Q102-O102)/O102/'Non-Life Underwriting Risk'!$E$27,'Premium and Reserve Risk'!$X$90),'Premium and Reserve Risk'!$X$90)) -> 0.08 | AA102: =MAX(0%,IF(S102<>0,MIN((U102-S102)/S102/'Non-Life Underwriting Risk'!$E$27,'Premium and Reserve Risk'!$AA$90),'Premium and Reserve Risk'!$AA$90)) -> 0.08
B103: 12 | F103: =IF(B103<=OFFSET($X$7,B89-1,0),0,1) -> 1 | O103: 0 | X103: =MAX(0%,IF(O103<>0,MIN((Q103-O103)/O103/'Non-Life Underwriting Risk'!$E$27,'Premium and Reserve Risk'!$X$90),'Premium and Reserve Risk'!$X$90)) -> 0.08 | AA103: =MAX(0%,IF(S103<>0,MIN((U103-S103)/S103/'Non-Life Underwriting Risk'!$E$27,'Premium and Reserve Risk'!$AA$90),'Premium and Reserve Risk'!$AA$90)) -> 0.08
B104: 13 | F104: =IF(B104<=OFFSET($X$7,B89-1,0),0,1) -> 1 | O104: 0 | X104: =MAX(0%,IF(O104<>0,MIN((Q104-O104)/O104/'Non-Life Underwriting Risk'!$E$27,'Premium and Reserve Risk'!$X$90),'Premium and Reserve Risk'!$X$90)) -> 0.08 | AA104: =MAX(0%,IF(S104<>0,MIN((U104-S104)/S104/'Non-Life Underwriting Risk'!$E$27,'Premium and Reserve Risk'!$AA$90),'Premium and Reserve Risk'!$AA$90)) -> 0.08
B105: 14 | F105: =IF(B105<=OFFSET($X$7,B89-1,0),0,1) -> 1 | O105: 0 | X105: =MAX(0%,IF(O105<>0,MIN((Q105-O105)/O105/'Non-Life Underwriting Risk'!$E$27,'Premium and Reserve Risk'!$X$90),'Premium and Reserve Risk'!$X$90)) -> 0.08 | AA105: =MAX(0%,IF(S105<>0,MIN((U105-S105)/S105/'Non-Life Underwriting Risk'!$E$27,'Premium and Reserve Risk'!$AA$90),'Premium and Reserve Risk'!$AA$90)) -> 0.08
B106: 15 | F106: =IF(B106<=OFFSET($X$7,B89-1,0),0,1) -> 1 | O106: 0 | X106: =MAX(0%,IF(O106<>0,MIN((Q106-O106)/O106/'Non-Life Underwriting Risk'!$E$27,'Premium and Reserve Risk'!$X$90),'Premium and Reserve Risk'!$X$90)) -> 0.08 | AA106: =MAX(0%,IF(S106<>0,MIN((U106-S106)/S106/'Non-Life Underwriting Risk'!$E$27,'Premium and Reserve Risk'!$AA$90),'Premium and Reserve Risk'!$AA$90)) -> 0.08
B107: 16 | F107: =IF(B107<=OFFSET($X$7,B89-1,0),0,1) -> 1 | O107: 0 | X107: =MAX(0%,IF(O107<>0,MIN((Q107-O107)/O107/'Non-Life Underwriting Risk'!$E$27,'Premium and Reserve Risk'!$X$90),'Premium and Reserve Risk'!$X$90)) -> 0.08 | AA107: =MAX(0%,IF(S107<>0,MIN((U107-S107)/S107/'Non-Life Underwriting Risk'!$E$27,'Premium and Reserve Risk'!$AA$90),'Premium and Reserve Risk'!$AA$90)) -> 0.08
B108: 17 | F108: =IF(B108<=OFFSET($X$7,B89-1,0),0,1) -> 1 | O108: 0 | X108: =MAX(0%,IF(O108<>0,MIN((Q108-O108)/O108/'Non-Life Underwriting Risk'!$E$27,'Premium and Reserve Risk'!$X$90),'Premium and Reserve Risk'!$X$90)) -> 0.08 | AA108: =MAX(0%,IF(S108<>0,MIN((U108-S108)/S108/'Non-Life Underwriting Risk'!$E$27,'Premium and Reserve Risk'!$AA$90),'Premium and Reserve Risk'!$AA$90)) -> 0.08
B109: 18 | F109: =IF(B109<=OFFSET($X$7,B89-1,0),0,1) -> 1 | O109: 0 | X109: =MAX(0%,IF(O109<>0,MIN((Q109-O109)/O109/'Non-Life Underwriting Risk'!$E$27,'Premium and Reserve Risk'!$X$90),'Premium and Reserve Risk'!$X$90)) -> 0.08 | AA109: =MAX(0%,IF(S109<>0,MIN((U109-S109)/S109/'Non-Life Underwriting Risk'!$E$27,'Premium and Reserve Risk'!$AA$90),'Premium and Reserve Risk'!$AA$90)) -> 0.08
B110: 19 | F110: =IF(B110<=OFFSET($X$7,B89-1,0),0,1) -> 1 | O110: 0 | X110: =MAX(0%,IF(O110<>0,MIN((Q110-O110)/O110/'Non-Life Underwriting Risk'!$E$27,'Premium and Reserve Risk'!$X$90),'Premium and Reserve Risk'!$X$90)) -> 0.08 | AA110: =MAX(0%,IF(S110<>0,MIN((U110-S110)/S110/'Non-Life Underwriting Risk'!$E$27,'Premium and Reserve Risk'!$AA$90),'Premium and Reserve Risk'!$AA$90)) -> 0.08
B111: 20 | F111: =IF(B111<=OFFSET($X$7,B89-1,0),0,1) -> 1 | O111: 0 | X111: =MAX(0%,IF(O111<>0,MIN((Q111-O111)/O111/'Non-Life Underwriting Risk'!$E$27,'Premium and Reserve Risk'!$X$90),'Premium and Reserve Risk'!$X$90)) -> 0.08 | AA111: =MAX(0%,IF(S111<>0,MIN((U111-S111)/S111/'Non-Life Underwriting Risk'!$E$27,'Premium and Reserve Risk'!$AA$90),'Premium and Reserve Risk'!$AA$90)) -> 0.08
B112: 21 | F112: =IF(B112<=OFFSET($X$7,B89-1,0),0,1) -> 1 | O112: =MAX(G112,I112)+K112+M112 -> 0 | X112: =MAX(0%,IF(O112<>0,MIN((Q112-O112)/O112/'Non-Life Underwriting Risk'!$E$27,'Premium and Reserve Risk'!$X$90),'Premium and Reserve Risk'!$X$90)) -> 0.08 | AA112: =MAX(0%,IF(S112<>0,MIN((U112-S112)/S112/'Non-Life Underwriting Risk'!$E$27,'Premium and Reserve Risk'!$AA$90),'Premium and Reserve Risk'!$AA$90)) -> 0.08
B113: 22 | F113: =IF(B113<=OFFSET($X$7,B89-1,0),0,1) -> 1 | O113: 0 | X113: =MAX(0%,IF(O113<>0,MIN((Q113-O113)/O113/'Non-Life Underwriting Risk'!$E$27,'Premium and Reserve Risk'!$X$90),'Premium and Reserve Risk'!$X$90)) -> 0.08 | AA113: =MAX(0%,IF(S113<>0,MIN((U113-S113)/S113/'Non-Life Underwriting Risk'!$E$27,'Premium and Reserve Risk'!$AA$90),'Premium and Reserve Risk'!$AA$90)) -> 0.08
B114: 23 | F114: =IF(B114<=OFFSET($X$7,B89-1,0),0,1) -> 1 | O114: 0 | X114: =MAX(0%,IF(O114<>0,MIN((Q114-O114)/O114/'Non-Life Underwriting Risk'!$E$27,'Premium and Reserve Risk'!$X$90),'Premium and Reserve Risk'!$X$90)) -> 0.08 | AA114: =MAX(0%,IF(S114<>0,MIN((U114-S114)/S114/'Non-Life Underwriting Risk'!$E$27,'Premium and Reserve Risk'!$AA$90),'Premium and Reserve Risk'!$AA$90)) -> 0.08
B115: 24 | F115: =IF(B115<=OFFSET($X$7,B89-1,0),0,1) -> 1 | O115: 0 | X115: =MAX(0%,IF(O115<>0,MIN((Q115-O115)/O115/'Non-Life Underwriting Risk'!$E$27,'Premium and Reserve Risk'!$X$90),'Premium and Reserve Risk'!$X$90)) -> 0.08 | AA115: =MAX(0%,IF(S115<>0,MIN((U115-S115)/S115/'Non-Life Underwriting Risk'!$E$27,'Premium and Reserve Risk'!$AA$90),'Premium and Reserve Risk'!$AA$90)) -> 0.08
B116: 25 | F116: =IF(B116<=OFFSET($X$7,B89-1,0),0,1) -> 1 | O116: 0 | X116: =MAX(0%,IF(O116<>0,MIN((Q116-O116)/O116/'Non-Life Underwriting Risk'!$E$27,'Premium and Reserve Risk'!$X$90),'Premium and Reserve Risk'!$X$90)) -> 0.08 | AA116: =MAX(0%,IF(S116<>0,MIN((U116-S116)/S116/'Non-Life Underwriting Risk'!$E$27,'Premium and Reserve Risk'!$AA$90),'Premium and Reserve Risk'!$AA$90)) -> 0.08
B117: 26 | F117: =IF(B117<=OFFSET($X$7,B89-1,0),0,1) -> 1 | O117: 0 | X117: =MAX(0%,IF(O117<>0,MIN((Q117-O117)/O117/'Non-Life Underwriting Risk'!$E$27,'Premium and Reserve Risk'!$X$90),'Premium and Reserve Risk'!$X$90)) -> 0.08 | AA117: =MAX(0%,IF(S117<>0,MIN((U117-S117)/S117/'Non-Life Underwriting Risk'!$E$27,'Premium and Reserve Risk'!$AA$90),'Premium and Reserve Risk'!$AA$90)) -> 0.08
B118: 27 | F118: =IF(B118<=OFFSET($X$7,B89-1,0),0,1) -> 1 | O118: 0 | X118: =MAX(0%,IF(O118<>0,MIN((Q118-O118)/O118/'Non-Life Underwriting Risk'!$E$27,'Premium and Reserve Risk'!$X$90),'Premium and Reserve Risk'!$X$90)) -> 0.08 | AA118: =MAX(0%,IF(S118<>0,MIN((U118-S118)/S118/'Non-Life Underwriting Risk'!$E$27,'Premium and Reserve Risk'!$AA$90),'Premium and Reserve Risk'!$AA$90)) -> 0.08
B119: 28 | F119: =IF(B119<=OFFSET($X$7,B89-1,0),0,1) -> 1 | O119: 0 | X119: =MAX(0%,IF(O119<>0,MIN((Q119-O119)/O119/'Non-Life Underwriting Risk'!$E$27,'Premium and Reserve Risk'!$X$90),'Premium and Reserve Risk'!$X$90)) -> 0.08 | AA119: =MAX(0%,IF(S119<>0,MIN((U119-S119)/S119/'Non-Life Underwriting Risk'!$E$27,'Premium and Reserve Risk'!$AA$90),'Premium and Reserve Risk'!$AA$90)) -> 0.08
B120: 29 | F120: =IF(B120<=OFFSET($X$7,B89-1,0),0,1) -> 1 | O120: 0 | X120: =MAX(0%,IF(O120<>0,MIN((Q120-O120)/O120/'Non-Life Underwriting Risk'!$E$27,'Premium and Reserve Risk'!$X$90),'Premium and Reserve Risk'!$X$90)) -> 0.08 | AA120: =MAX(0%,IF(S120<>0,MIN((U120-S120)/S120/'Non-Life Underwriting Risk'!$E$27,'Premium and Reserve Risk'!$AA$90),'Premium and Reserve Risk'!$AA$90)) -> 0.08
B121: 30 | F121: =IF(B121<=OFFSET($X$7,B89-1,0),0,1) -> 1 | O121: 0 | X121: =MAX(0%,IF(O121<>0,MIN((Q121-O121)/O121/'Non-Life Underwriting Risk'!$E$27,'Premium and Reserve Risk'!$X$90),'Premium and Reserve Risk'!$X$90)) -> 0.08 | AA121: =MAX(0%,IF(S121<>0,MIN((U121-S121)/S121/'Non-Life Underwriting Risk'!$E$27,'Premium and Reserve Risk'!$AA$90),'Premium and Reserve Risk'!$AA$90)) -> 0.08
B122: 31 | F122: =IF(B122<=OFFSET($X$7,B89-1,0),0,1) -> 1 | O122: 0 | X122: =MAX(0%,IF(O122<>0,MIN((Q122-O122)/O122/'Non-Life Underwriting Risk'!$E$27,'Premium and Reserve Risk'!$X$90),'Premium and Reserve Risk'!$X$90)) -> 0.08 | AA122: =MAX(0%,IF(S122<>0,MIN((U122-S122)/S122/'Non-Life Underwriting Risk'!$E$27,'Premium and Reserve Risk'!$AA$90),'Premium and Reserve Risk'!$AA$90)) -> 0.08
B123: 32 | F123: =IF(B123<=OFFSET($X$7,B89-1,0),0,1) -> 1 | O123: 0 | X123: =MAX(0%,IF(O123<>0,MIN((Q123-O123)/O123/'Non-Life Underwriting Risk'!$E$27,'Premium and Reserve Risk'!$X$90),'Premium and Reserve Risk'!$X$90)) -> 0.08 | AA123: =MAX(0%,IF(S123<>0,MIN((U123-S123)/S123/'Non-Life Underwriting Risk'!$E$27,'Premium and Reserve Risk'!$AA$90),'Premium and Reserve Risk'!$AA$90)) -> 0.08
B124: 33 | F124: =IF(B124<=OFFSET($X$7,B89-1,0),0,1) -> 1 | O124: 0 | X124: =MAX(0%,IF(O124<>0,MIN((Q124-O124)/O124/'Non-Life Underwriting Risk'!$E$27,'Premium and Reserve Risk'!$X$90),'Premium and Reserve Risk'!$X$90)) -> 0.08 | AA124: =MAX(0%,IF(S124<>0,MIN((U124-S124)/S124/'Non-Life Underwriting Risk'!$E$27,'Premium and Reserve Risk'!$AA$90),'Premium and Reserve Risk'!$AA$90)) -> 0.08
B125: 34 | F125: =IF(B125<=OFFSET($X$7,B89-1,0),0,1) -> 1 | O125: 0 | X125: =MAX(0%,IF(O125<>0,MIN((Q125-O125)/O125/'Non-Life Underwriting Risk'!$E$27,'Premium and Reserve Risk'!$X$90),'Premium and Reserve Risk'!$X$90)) -> 0.08 | AA125: =MAX(0%,IF(S125<>0,MIN((U125-S125)/S125/'Non-Life Underwriting Risk'!$E$27,'Premium and Reserve Risk'!$AA$90),'Premium and Reserve Risk'!$AA$90)) -> 0.08
B126: 35 | F126: =IF(B126<=OFFSET($X$7,B89-1,0),0,1) -> 1 | O126: 0 | X126: =MAX(0%,IF(O126<>0,MIN((Q126-O126)/O126/'Non-Life Underwriting Risk'!$E$27,'Premium and Reserve Risk'!$X$90),'Premium and Reserve Risk'!$X$90)) -> 0.08 | AA126: =MAX(0%,IF(S126<>0,MIN((U126-S126)/S126/'Non-Life Underwriting Risk'!$E$27,'Premium and Reserve Risk'!$AA$90),'Premium and Reserve Risk'!$AA$90)) -> 0.08
B127: 36 | F127: =IF(B127<=OFFSET($X$7,B89-1,0),0,1) -> 1 | O127: 0 | X127: =MAX(0%,IF(O127<>0,MIN((Q127-O127)/O127/'Non-Life Underwriting Risk'!$E$27,'Premium and Reserve Risk'!$X$90),'Premium and Reserve Risk'!$X$90)) -> 0.08 | AA127: =MAX(0%,IF(S127<>0,MIN((U127-S127)/S127/'Non-Life Underwriting Risk'!$E$27,'Premium and Reserve Risk'!$AA$90),'Premium and Reserve Risk'!$AA$90)) -> 0.08
B128: 37 | F128: =IF(B128<=OFFSET($X$7,B89-1,0),0,1) -> 1 | O128: 0 | X128: =MAX(0%,IF(O128<>0,MIN((Q128-O128)/O128/'Non-Life Underwriting Risk'!$E$27,'Premium and Reserve Risk'!$X$90),'Premium and Reserve Risk'!$X$90)) -> 0.08 | AA128: =MAX(0%,IF(S128<>0,MIN((U128-S128)/S128/'Non-Life Underwriting Risk'!$E$27,'Premium and Reserve Risk'!$AA$90),'Premium and Reserve Risk'!$AA$90)) -> 0.08
B129: 38 | F129: =IF(B129<=OFFSET($X$7,B89-1,0),0,1) -> 1 | O129: 0 | X129: =MAX(0%,IF(O129<>0,MIN((Q129-O129)/O129/'Non-Life Underwriting Risk'!$E$27,'Premium and Reserve Risk'!$X$90),'Premium and Reserve Risk'!$X$90)) -> 0.08 | AA129: =MAX(0%,IF(S129<>0,MIN((U129-S129)/S129/'Non-Life Underwriting Risk'!$E$27,'Premium and Reserve Risk'!$AA$90),'Premium and Reserve Risk'!$AA$90)) -> 0.08
B130: 39 | F130: =IF(B130<=OFFSET($X$7,B89-1,0),0,1) -> 1 | O130: 0 | X130: =MAX(0%,IF(O130<>0,MIN((Q130-O130)/O130/'Non-Life Underwriting Risk'!$E$27,'Premium and Reserve Risk'!$X$90),'Premium and Reserve Risk'!$X$90)) -> 0.08 | AA130: =MAX(0%,IF(S130<>0,MIN((U130-S130)/S130/'Non-Life Underwriting Risk'!$E$27,'Premium and Reserve Risk'!$AA$90),'Premium and Reserve Risk'!$AA$90)) -> 0.08
B131: 40 | F131: =IF(B131<=OFFSET($X$7,B89-1,0),0,1) -> 1 | O131: 0 | X131: =MAX(0%,IF(O131<>0,MIN((Q131-O131)/O131/'Non-Life Underwriting Risk'!$E$27,'Premium and Reserve Risk'!$X$90),'Premium and Reserve Risk'!$X$90)) -> 0.08 | AA131: =MAX(0%,IF(S131<>0,MIN((U131-S131)/S131/'Non-Life Underwriting Risk'!$E$27,'Premium and Reserve Risk'!$AA$90),'Premium and Reserve Risk'!$AA$90)) -> 0.08
B132: 41 | F132: =IF(B132<=OFFSET($X$7,B89-1,0),0,1) -> 1 | O132: 0 | X132: =MAX(0%,IF(O132<>0,MIN((Q132-O132)/O132/'Non-Life Underwriting Risk'!$E$27,'Premium and Reserve Risk'!$X$90),'Premium and Reserve Risk'!$X$90)) -> 0.08 | AA132: =MAX(0%,IF(S132<>0,MIN((U132-S132)/S132/'Non-Life Underwriting Risk'!$E$27,'Premium and Reserve Risk'!$AA$90),'Premium and Reserve Risk'!$AA$90)) -> 0.08
B133: 42 | F133: =IF(B133<=OFFSET($X$7,B89-1,0),0,1) -> 1 | O133: 0 | X133: =MAX(0%,IF(O133<>0,MIN((Q133-O133)/O133/'Non-Life Underwriting Risk'!$E$27,'Premium and Reserve Risk'!$X$90),'Premium and Reserve Risk'!$X$90)) -> 0.08 | AA133: =MAX(0%,IF(S133<>0,MIN((U133-S133)/S133/'Non-Life Underwriting Risk'!$E$27,'Premium and Reserve Risk'!$AA$90),'Premium and Reserve Risk'!$AA$90)) -> 0.08
B134: 43 | F134: =IF(B134<=OFFSET($X$7,B89-1,0),0,1) -> 1 | O134: 0 | X134: =MAX(0%,IF(O134<>0,MIN((Q134-O134)/O134/'Non-Life Underwriting Risk'!$E$27,'Premium and Reserve Risk'!$X$90),'Premium and Reserve Risk'!$X$90)) -> 0.08 | AA134: =MAX(0%,IF(S134<>0,MIN((U134-S134)/S134/'Non-Life Underwriting Risk'!$E$27,'Premium and Reserve Risk'!$AA$90),'Premium and Reserve Risk'!$AA$90)) -> 0.08
B135: 44 | F135: =IF(B135<=OFFSET($X$7,B89-1,0),0,1) -> 1 | O135: 0 | X135: =MAX(0%,IF(O135<>0,MIN((Q135-O135)/O135/'Non-Life Underwriting Risk'!$E$27,'Premium and Reserve Risk'!$X$90),'Premium and Reserve Risk'!$X$90)) -> 0.08 | AA135: =MAX(0%,IF(S135<>0,MIN((U135-S135)/S135/'Non-Life Underwriting Risk'!$E$27,'Premium and Reserve Risk'!$AA$90),'Premium and Reserve Risk'!$AA$90)) -> 0.08
B136: 45 | F136: =IF(B136<=OFFSET($X$7,B89-1,0),0,1) -> 1 | O136: 0 | X136: =MAX(0%,IF(O136<>0,MIN((Q136-O136)/O136/'Non-Life Underwriting Risk'!$E$27,'Premium and Reserve Risk'!$X$90),'Premium and Reserve Risk'!$X$90)) -> 0.08 | AA136: =MAX(0%,IF(S136<>0,MIN((U136-S136)/S136/'Non-Life Underwriting Risk'!$E$27,'Premium and Reserve Risk'!$AA$90),'Premium and Reserve Risk'!$AA$90)) -> 0.08
B137: 46 | F137: =IF(B137<=OFFSET($X$7,B89-1,0),0,1) -> 1 | O137: 0 | X137: =MAX(0%,IF(O137<>0,MIN((Q137-O137)/O137/'Non-Life Underwriting Risk'!$E$27,'Premium and Reserve Risk'!$X$90),'Premium and Reserve Risk'!$X$90)) -> 0.08 | AA137: =MAX(0%,IF(S137<>0,MIN((U137-S137)/S137/'Non-Life Underwriting Risk'!$E$27,'Premium and Reserve Risk'!$AA$90),'Premium and Reserve Risk'!$AA$90)) -> 0.08
B138: 47 | F138: =IF(B138<=OFFSET($X$7,B89-1,0),0,1) -> 1 | O138: 0 | X138: =MAX(0%,IF(O138<>0,MIN((Q138-O138)/O138/'Non-Life Underwriting Risk'!$E$27,'Premium and Reserve Risk'!$X$90),'Premium and Reserve Risk'!$X$90)) -> 0.08 | AA138: =MAX(0%,IF(S138<>0,MIN((U138-S138)/S138/'Non-Life Underwriting Risk'!$E$27,'Premium and Reserve Risk'!$AA$90),'Premium and Reserve Risk'!$AA$90)) -> 0.08
B139: 48 | F139: =IF(B139<=OFFSET($X$7,B89-1,0),0,1) -> 1 | O139: 0 | X139: =MAX(0%,IF(O139<>0,MIN((Q139-O139)/O139/'Non-Life Underwriting Risk'!$E$27,'Premium and Reserve Risk'!$X$90),'Premium and Reserve Risk'!$X$90)) -> 0.08 | AA139: =MAX(0%,IF(S139<>0,MIN((U139-S139)/S139/'Non-Life Underwriting Risk'!$E$27,'Premium and Reserve Risk'!$AA$90),'Premium and Reserve Risk'!$AA$90)) -> 0.08
B140: 49 | F140: =IF(B140<=OFFSET($X$7,B89-1,0),0,1) -> 1 | O140: 0 | X140: =MAX(0%,IF(O140<>0,MIN((Q140-O140)/O140/'Non-Life Underwriting Risk'!$E$27,'Premium and Reserve Risk'!$X$90),'Premium and Reserve Risk'!$X$90)) -> 0.08 | AA140: =MAX(0%,IF(S140<>0,MIN((U140-S140)/S140/'Non-Life Underwriting Risk'!$E$27,'Premium and Reserve Risk'!$AA$90),'Premium and Reserve Risk'!$AA$90)) -> 0.08
B141: 50 | F141: =IF(B141<=OFFSET($X$7,B89-1,0),0,1) -> 1 | O141: 0 | X141: =MAX(0%,IF(O141<>0,MIN((Q141-O141)/O141/'Non-Life Underwriting Risk'!$E$27,'Premium and Reserve Risk'!$X$90),'Premium and Reserve Risk'!$X$90)) -> 0.08 | AA141: =MAX(0%,IF(S141<>0,MIN((U141-S141)/S141/'Non-Life Underwriting Risk'!$E$27,'Premium and Reserve Risk'!$AA$90),'Premium and Reserve Risk'!$AA$90)) -> 0.08
B142: 51 | F142: =IF(B142<=OFFSET($X$7,B89-1,0),0,1) -> 1 | O142: 0 | X142: =MAX(0%,IF(O142<>0,MIN((Q142-O142)/O142/'Non-Life Underwriting Risk'!$E$27,'Premium and Reserve Risk'!$X$90),'Premium and Reserve Risk'!$X$90)) -> 0.08 | AA142: =MAX(0%,IF(S142<>0,MIN((U142-S142)/S142/'Non-Life Underwriting Risk'!$E$27,'Premium and Reserve Risk'!$AA$90),'Premium and Reserve Risk'!$AA$90)) -> 0.08
B143: 52 | F143: =IF(B143<=OFFSET($X$7,B89-1,0),0,1) -> 1 | O143: 0 | X143: =MAX(0%,IF(O143<>0,MIN((Q143-O143)/O143/'Non-Life Underwriting Risk'!$E$27,'Premium and Reserve Risk'!$X$90),'Premium and Reserve Risk'!$X$90)) -> 0.08 | AA143: =MAX(0%,IF(S143<>0,MIN((U143-S143)/S143/'Non-Life Underwriting Risk'!$E$27,'Premium and Reserve Risk'!$AA$90),'Premium and Reserve Risk'!$AA$90)) -> 0.08
B144: 53 | F144: =IF(B144<=OFFSET($X$7,B89-1,0),0,1) -> 1 | O144: 0 | X144: =MAX(0%,IF(O144<>0,MIN((Q144-O144)/O144/'Non-Life Underwriting Risk'!$E$27,'Premium and Reserve Risk'!$X$90),'Premium and Reserve Risk'!$X$90)) -> 0.08 | AA144: =MAX(0%,IF(S144<>0,MIN((U144-S144)/S144/'Non-Life Underwriting Risk'!$E$27,'Premium and Reserve Risk'!$AA$90),'Premium and Reserve Risk'!$AA$90)) -> 0.08
B145: 54 | F145: =IF(B145<=OFFSET($X$7,B89-1,0),0,1) -> 1 | O145: 0 | X145: =MAX(0%,IF(O145<>0,MIN((Q145-O145)/O145/'Non-Life Underwriting Risk'!$E$27,'Premium and Reserve Risk'!$X$90),'Premium and Reserve Risk'!$X$90)) -> 0.08 | AA145: =MAX(0%,IF(S145<>0,MIN((U145-S145)/S145/'Non-Life Underwriting Risk'!$E$27,'Premium and Reserve Risk'!$AA$90),'Premium and Reserve Risk'!$AA$90)) -> 0.08
B146: 55 | F146: =IF(B146<=OFFSET($X$7,B89-1,0),0,1) -> 1 | O146: 0 | X146: =MAX(0%,IF(O146<>0,MIN((Q146-O146)/O146/'Non-Life Underwriting Risk'!$E$27,'Premium and Reserve Risk'!$X$90),'Premium and Reserve Risk'!$X$90)) -> 0.08 | AA146: =MAX(0%,IF(S146<>0,MIN((U146-S146)/S146/'Non-Life Underwriting Risk'!$E$27,'Premium and Reserve Risk'!$AA$90),'Premium and Reserve Risk'!$AA$90)) -> 0.08
B147: 56 | F147: =IF(B147<=OFFSET($X$7,B89-1,0),0,1) -> 1 | O147: 0 | X147: =MAX(0%,IF(O147<>0,MIN((Q147-O147)/O147/'Non-Life Underwriting Risk'!$E$27,'Premium and Reserve Risk'!$X$90),'Premium and Reserve Risk'!$X$90)) -> 0.08 | AA147: =MAX(0%,IF(S147<>0,MIN((U147-S147)/S147/'Non-Life Underwriting Risk'!$E$27,'Premium and Reserve Risk'!$AA$90),'Premium and Reserve Risk'!$AA$90)) -> 0.08
B148: 57 | F148: =IF(B148<=OFFSET($X$7,B89-1,0),0,1) -> 1 | O148: 0 | X148: =MAX(0%,IF(O148<>0,MIN((Q148-O148)/O148/'Non-Life Underwriting Risk'!$E$27,'Premium and Reserve Risk'!$X$90),'Premium and Reserve Risk'!$X$90)) -> 0.08 | AA148: =MAX(0%,IF(S148<>0,MIN((U148-S148)/S148/'Non-Life Underwriting Risk'!$E$27,'Premium and Reserve Risk'!$AA$90),'Premium and Reserve Risk'!$AA$90)) -> 0.08
B149: 58 | F149: =IF(B149<=OFFSET($X$7,B89-1,0),0,1) -> 1 | O149: 0 | X149: =MAX(0%,IF(O149<>0,MIN((Q149-O149)/O149/'Non-Life Underwriting Risk'!$E$27,'Premium and Reserve Risk'!$X$90),'Premium and Reserve Risk'!$X$90)) -> 0.08 | AA149: =MAX(0%,IF(S149<>0,MIN((U149-S149)/S149/'Non-Life Underwriting Risk'!$E$27,'Premium and Reserve Risk'!$AA$90),'Premium and Reserve Risk'!$AA$90)) -> 0.08
B150: 59 | F150: =IF(B150<=OFFSET($X$7,B89-1,0),0,1) -> 1 | O150: 0 | X150: =MAX(0%,IF(O150<>0,MIN((Q150-O150)/O150/'Non-Life Underwriting Risk'!$E$27,'Premium and Reserve Risk'!$X$90),'Premium and Reserve Risk'!$X$90)) -> 0.08 | AA150: =MAX(0%,IF(S150<>0,MIN((U150-S150)/S150/'Non-Life Underwriting Risk'!$E$27,'Premium and Reserve Risk'!$AA$90),'Premium and Reserve Risk'!$AA$90)) -> 0.08
B151: 60 | F151: =IF(B151<=OFFSET($X$7,B89-1,0),0,1) -> 1 | O151: 0 | X151: =MAX(0%,IF(O151<>0,MIN((Q151-O151)/O151/'Non-Life Underwriting Risk'!$E$27,'Premium and Reserve Risk'!$X$90),'Premium and Reserve Risk'!$X$90)) -> 0.08 | AA151: =MAX(0%,IF(S151<>0,MIN((U151-S151)/S151/'Non-Life Underwriting Risk'!$E$27,'Premium and Reserve Risk'!$AA$90),'Premium and Reserve Risk'!$AA$90)) -> 0.08
F152: =IF(OFFSET($X$7,B89-1,0)=0,1,0) -> 1
B154: 3 | C154: =RIGHT(OFFSET($B$7,B154-1,0),LEN(OFFSET($B$7,B154-1,0))-5) -> Marine, Aviation & Transport (MAT) & Prop. Reins. | X154: σ(prem,s) | AA154: σ(res,s)
C155: Contract identifier * | F155: =IF(OFFSET($X$7,B154-1,0)=0,1,0) -> 1 | G155: Ps | I155: P(last,s) | K155: FP(existing,s) | M155: FP(future,s) | O155: V(prem,) | Q155: Max exposure from V(prem) * | S155: Claims reserve * | U155: Max exposure from in-force * | X155: =OFFSET('Non-Life Underwriting Risk'!$K$55,'Premium and Reserve Risk'!B154-1,0) -> 0.15 | AA155: =OFFSET('Non-Life Underwriting Risk'!$M$55,'Premium and Reserve Risk'!B154-1,0) -> 0.11
F156: =IF(OFFSET($X$7,B154-1,0)=0,1,0) -> 1
B157: 1 | F157: =IF(B157<=OFFSET($X$7,B154-1,0),0,1) -> 1 | O157: =MAX(G157,I157)+K157+M157 -> 0 | X157: =MAX(0%,IF(O157<>0,MIN((Q157-O157)/O157/'Non-Life Underwriting Risk'!$E$27,'Premium and Reserve Risk'!$X$155),'Premium and Reserve Risk'!$X$155)) -> 0.15 | AA157: =MAX(0%,IF(S157<>0,MIN((U157-S157)/S157/'Non-Life Underwriting Risk'!$E$27,'Premium and Reserve Risk'!$AA$155),'Premium and Reserve Risk'!$AA$155)) -> 0.11
B158: 2 | F158: =IF(B158<=OFFSET($X$7,B154-1,0),0,1) -> 1 | O158: 0 | X158: =MAX(0%,IF(O158<>0,MIN((Q158-O158)/O158/'Non-Life Underwriting Risk'!$E$27,'Premium and Reserve Risk'!$X$155),'Premium and Reserve Risk'!$X$155)) -> 0.15 | AA158: =MAX(0%,IF(S158<>0,MIN((U158-S158)/S158/'Non-Life Underwriting Risk'!$E$27,'Premium and Reserve Risk'!$AA$155),'Premium and Reserve Risk'!$AA$155)) -> 0.11
B159: 3 | F159: =IF(B159<=OFFSET($X$7,B154-1,0),0,1) -> 1 | O159: 0 | X159: =MAX(0%,IF(O159<>0,MIN((Q159-O159)/O159/'Non-Life Underwriting Risk'!$E$27,'Premium and Reserve Risk'!$X$155),'Premium and Reserve Risk'!$X$155)) -> 0.15 | AA159: =MAX(0%,IF(S159<>0,MIN((U159-S159)/S159/'Non-Life Underwriting Risk'!$E$27,'Premium and Reserve Risk'!$AA$155),'Premium and Reserve Risk'!$AA$155)) -> 0.11
B160: 4 | F160: =IF(B160<=OFFSET($X$7,B154-1,0),0,1) -> 1 | O160: 0 | X160: =MAX(0%,IF(O160<>0,MIN((Q160-O160)/O160/'Non-Life Underwriting Risk'!$E$27,'Premium and Reserve Risk'!$X$155),'Premium and Reserve Risk'!$X$155)) -> 0.15 | AA160: =MAX(0%,IF(S160<>0,MIN((U160-S160)/S160/'Non-Life Underwriting Risk'!$E$27,'Premium and Reserve Risk'!$AA$155),'Premium and Reserve Risk'!$AA$155)) -> 0.11
B161: 5 | F161: =IF(B161<=OFFSET($X$7,B154-1,0),0,1) -> 1 | O161: 0 | X161: =MAX(0%,IF(O161<>0,MIN((Q161-O161)/O161/'Non-Life Underwriting Risk'!$E$27,'Premium and Reserve Risk'!$X$155),'Premium and Reserve Risk'!$X$155)) -> 0.15 | AA161: =MAX(0%,IF(S161<>0,MIN((U161-S161)/S161/'Non-Life Underwriting Risk'!$E$27,'Premium and Reserve Risk'!$AA$155),'Premium and Reserve Risk'!$AA$155)) -> 0.11
B162: 6 | F162: =IF(B162<=OFFSET($X$7,B154-1,0),0,1) -> 1 | O162: 0 | X162: =MAX(0%,IF(O162<>0,MIN((Q162-O162)/O162/'Non-Life Underwriting Risk'!$E$27,'Premium and Reserve Risk'!$X$155),'Premium and Reserve Risk'!$X$155)) -> 0.15 | AA162: =MAX(0%,IF(S162<>0,MIN((U162-S162)/S162/'Non-Life Underwriting Risk'!$E$27,'Premium and Reserve Risk'!$AA$155),'Premium and Reserve Risk'!$AA$155)) -> 0.11
B163: 7 | F163: =IF(B163<=OFFSET($X$7,B154-1,0),0,1) -> 1 | O163: 0 | X163: =MAX(0%,IF(O163<>0,MIN((Q163-O163)/O163/'Non-Life Underwriting Risk'!$E$27,'Premium and Reserve Risk'!$X$155),'Premium and Reserve Risk'!$X$155)) -> 0.15 | AA163: =MAX(0%,IF(S163<>0,MIN((U163-S163)/S163/'Non-Life Underwriting Risk'!$E$27,'Premium and Reserve Risk'!$AA$155),'Premium and Reserve Risk'!$AA$155)) -> 0.11
B164: 8 | F164: =IF(B164<=OFFSET($X$7,B154-1,0),0,1) -> 1 | O164: 0 | X164: =MAX(0%,IF(O164<>0,MIN((Q164-O164)/O164/'Non-Life Underwriting Risk'!$E$27,'Premium and Reserve Risk'!$X$155),'Premium and Reserve Risk'!$X$155)) -> 0.15 | AA164: =MAX(0%,IF(S164<>0,MIN((U164-S164)/S164/'Non-Life Underwriting Risk'!$E$27,'Premium and Reserve Risk'!$AA$155),'Premium and Reserve Risk'!$AA$155)) -> 0.11
B165: 9 | F165: =IF(B165<=OFFSET($X$7,B154-1,0),0,1) -> 1 | O165: 0 | X165: =MAX(0%,IF(O165<>0,MIN((Q165-O165)/O165/'Non-Life Underwriting Risk'!$E$27,'Premium and Reserve Risk'!$X$155),'Premium and Reserve Risk'!$X$155)) -> 0.15 | AA165: =MAX(0%,IF(S165<>0,MIN((U165-S165)/S165/'Non-Life Underwriting Risk'!$E$27,'Premium and Reserve Risk'!$AA$155),'Premium and Reserve Risk'!$AA$155)) -> 0.11
B166: 10 | F166: =IF(B166<=OFFSET($X$7,B154-1,0),0,1) -> 1 | O166: 0 | X166: =MAX(0%,IF(O166<>0,MIN((Q166-O166)/O166/'Non-Life Underwriting Risk'!$E$27,'Premium and Reserve Risk'!$X$155),'Premium and Reserve Risk'!$X$155)) -> 0.15 | AA166: =MAX(0%,IF(S166<>0,MIN((U166-S166)/S166/'Non-Life Underwriting Risk'!$E$27,'Premium and Reserve Risk'!$AA$155),'Premium and Reserve Risk'!$AA$155)) -> 0.11
B167: 11 | F167: =IF(B167<=OFFSET($X$7,B154-1,0),0,1) -> 1 | O167: 0 | X167: =MAX(0%,IF(O167<>0,MIN((Q167-O167)/O167/'Non-Life Underwriting Risk'!$E$27,'Premium and Reserve Risk'!$X$155),'Premium and Reserve Risk'!$X$155)) -> 0.15 | AA167: =MAX(0%,IF(S167<>0,MIN((U167-S167)/S167/'Non-Life Underwriting Risk'!$E$27,'Premium and Reserve Risk'!$AA$155),'Premium and Reserve Risk'!$AA$155)) -> 0.11
B168: 12 | F168: =IF(B168<=OFFSET($X$7,B154-1,0),0,1) -> 1 | O168: 0 | X168: =MAX(0%,IF(O168<>0,MIN((Q168-O168)/O168/'Non-Life Underwriting Risk'!$E$27,'Premium and Reserve Risk'!$X$155),'Premium and Reserve Risk'!$X$155)) -> 0.15 | AA168: =MAX(0%,IF(S168<>0,MIN((U168-S168)/S168/'Non-Life Underwriting Risk'!$E$27,'Premium and Reserve Risk'!$AA$155),'Premium and Reserve Risk'!$AA$155)) -> 0.11
B169: 13 | F169: =IF(B169<=OFFSET($X$7,B154-1,0),0,1) -> 1 | O169: 0 | X169: =MAX(0%,IF(O169<>0,MIN((Q169-O169)/O169/'Non-Life Underwriting Risk'!$E$27,'Premium and Reserve Risk'!$X$155),'Premium and Reserve Risk'!$X$155)) -> 0.15 | AA169: =MAX(0%,IF(S169<>0,MIN((U169-S169)/S169/'Non-Life Underwriting Risk'!$E$27,'Premium and Reserve Risk'!$AA$155),'Premium and Reserve Risk'!$AA$155)) -> 0.11
B170: 14 | F170: =IF(B170<=OFFSET($X$7,B154-1,0),0,1) -> 1 | O170: 0 | X170: =MAX(0%,IF(O170<>0,MIN((Q170-O170)/O170/'Non-Life Underwriting Risk'!$E$27,'Premium and Reserve Risk'!$X$155),'Premium and Reserve Risk'!$X$155)) -> 0.15 | AA170: =MAX(0%,IF(S170<>0,MIN((U170-S170)/S170/'Non-Life Underwriting Risk'!$E$27,'Premium and Reserve Risk'!$AA$155),'Premium and Reserve Risk'!$AA$155)) -> 0.11
B171: 15 | F171: =IF(B171<=OFFSET($X$7,B154-1,0),0,1) -> 1 | O171: 0 | X171: =MAX(0%,IF(O171<>0,MIN((Q171-O171)/O171/'Non-Life Underwriting Risk'!$E$27,'Premium and Reserve Risk'!$X$155),'Premium and Reserve Risk'!$X$155)) -> 0.15 | AA171: =MAX(0%,IF(S171<>0,MIN((U171-S171)/S171/'Non-Life Underwriting Risk'!$E$27,'Premium and Reserve Risk'!$AA$155),'Premium and Reserve Risk'!$AA$155)) -> 0.11
B172: 16 | F172: =IF(B172<=OFFSET($X$7,B154-1,0),0,1) -> 1 | O172: 0 | X172: =MAX(0%,IF(O172<>0,MIN((Q172-O172)/O172/'Non-Life Underwriting Risk'!$E$27,'Premium and Reserve Risk'!$X$155),'Premium and Reserve Risk'!$X$155)) -> 0.15 | AA172: =MAX(0%,IF(S172<>0,MIN((U172-S172)/S172/'Non-Life Underwriting Risk'!$E$27,'Premium and Reserve Risk'!$AA$155),'Premium and Reserve Risk'!$AA$155)) -> 0.11
B173: 17 | F173: =IF(B173<=OFFSET($X$7,B154-1,0),0,1) -> 1 | O173: 0 | X173: =MAX(0%,IF(O173<>0,MIN((Q173-O173)/O173/'Non-Life Underwriting Risk'!$E$27,'Premium and Reserve Risk'!$X$155),'Premium and Reserve Risk'!$X$155)) -> 0.15 | AA173: =MAX(0%,IF(S173<>0,MIN((U173-S173)/S173/'Non-Life Underwriting Risk'!$E$27,'Premium and Reserve Risk'!$AA$155),'Premium and Reserve Risk'!$AA$155)) -> 0.11
B174: 18 | F174: =IF(B174<=OFFSET($X$7,B154-1,0),0,1) -> 1 | O174: 0 | X174: =MAX(0%,IF(O174<>0,MIN((Q174-O174)/O174/'Non-Life Underwriting Risk'!$E$27,'Premium and Reserve Risk'!$X$155),'Premium and Reserve Risk'!$X$155)) -> 0.15 | AA174: =MAX(0%,IF(S174<>0,MIN((U174-S174)/S174/'Non-Life Underwriting Risk'!$E$27,'Premium and Reserve Risk'!$AA$155),'Premium and Reserve Risk'!$AA$155)) -> 0.11
B175: 19 | F175: =IF(B175<=OFFSET($X$7,B154-1,0),0,1) -> 1 | O175: 0 | X175: =MAX(0%,IF(O175<>0,MIN((Q175-O175)/O175/'Non-Life Underwriting Risk'!$E$27,'Premium and Reserve Risk'!$X$155),'Premium and Reserve Risk'!$X$155)) -> 0.15 | AA175: =MAX(0%,IF(S175<>0,MIN((U175-S175)/S175/'Non-Life Underwriting Risk'!$E$27,'Premium and Reserve Risk'!$AA$155),'Premium and Reserve Risk'!$AA$155)) -> 0.11
B176: 20 | F176: =IF(B176<=OFFSET($X$7,B154-1,0),0,1) -> 1 | O176: 0 | X176: =MAX(0%,IF(O176<>0,MIN((Q176-O176)/O176/'Non-Life Underwriting Risk'!$E$27,'Premium and Reserve Risk'!$X$155),'Premium and Reserve Risk'!$X$155)) -> 0.15 | AA176: =MAX(0%,IF(S176<>0,MIN((U176-S176)/S176/'Non-Life Underwriting Risk'!$E$27,'Premium and Reserve Risk'!$AA$155),'Premium and Reserve Risk'!$AA$155)) -> 0.11
B177: 21 | F177: =IF(B177<=OFFSET($X$7,B154-1,0),0,1) -> 1 | O177: =MAX(G177,I177)+K177+M177 -> 0 | X177: =MAX(0%,IF(O177<>0,MIN((Q177-O177)/O177/'Non-Life Underwriting Risk'!$E$27,'Premium and Reserve Risk'!$X$155),'Premium and Reserve Risk'!$X$155)) -> 0.15 | AA177: =MAX(0%,IF(S177<>0,MIN((U177-S177)/S177/'Non-Life Underwriting Risk'!$E$27,'Premium and Reserve Risk'!$AA$155),'Premium and Reserve Risk'!$AA$155)) -> 0.11
B178: 22 | F178: =IF(B178<=OFFSET($X$7,B154-1,0),0,1) -> 1 | O178: 0 | X178: =MAX(0%,IF(O178<>0,MIN((Q178-O178)/O178/'Non-Life Underwriting Risk'!$E$27,'Premium and Reserve Risk'!$X$155),'Premium and Reserve Risk'!$X$155)) -> 0.15 | AA178: =MAX(0%,IF(S178<>0,MIN((U178-S178)/S178/'Non-Life Underwriting Risk'!$E$27,'Premium and Reserve Risk'!$AA$155),'Premium and Reserve Risk'!$AA$155)) -> 0.11
B179: 23 | F179: =IF(B179<=OFFSET($X$7,B154-1,0),0,1) -> 1 | O179: 0 | X179: =MAX(0%,IF(O179<>0,MIN((Q179-O179)/O179/'Non-Life Underwriting Risk'!$E$27,'Premium and Reserve Risk'!$X$155),'Premium and Reserve Risk'!$X$155)) -> 0.15 | AA179: =MAX(0%,IF(S179<>0,MIN((U179-S179)/S179/'Non-Life Underwriting Risk'!$E$27,'Premium and Reserve Risk'!$AA$155),'Premium and Reserve Risk'!$AA$155)) -> 0.11
B180: 24 | F180: =IF(B180<=OFFSET($X$7,B154-1,0),0,1) -> 1 | O180: 0 | X180: =MAX(0%,IF(O180<>0,MIN((Q180-O180)/O180/'Non-Life Underwriting Risk'!$E$27,'Premium and Reserve Risk'!$X$155),'Premium and Reserve Risk'!$X$155)) -> 0.15 | AA180: =MAX(0%,IF(S180<>0,MIN((U180-S180)/S180/'Non-Life Underwriting Risk'!$E$27,'Premium and Reserve Risk'!$AA$155),'Premium and Reserve Risk'!$AA$155)) -> 0.11
B181: 25 | F181: =IF(B181<=OFFSET($X$7,B154-1,0),0,1) -> 1 | O181: 0 | X181: =MAX(0%,IF(O181<>0,MIN((Q181-O181)/O181/'Non-Life Underwriting Risk'!$E$27,'Premium and Reserve Risk'!$X$155),'Premium and Reserve Risk'!$X$155)) -> 0.15 | AA181: =MAX(0%,IF(S181<>0,MIN((U181-S181)/S181/'Non-Life Underwriting Risk'!$E$27,'Premium and Reserve Risk'!$AA$155),'Premium and Reserve Risk'!$AA$155)) -> 0.11
B182: 26 | F182: =IF(B182<=OFFSET($X$7,B154-1,0),0,1) -> 1 | O182: 0 | X182: =MAX(0%,IF(O182<>0,MIN((Q182-O182)/O182/'Non-Life Underwriting Risk'!$E$27,'Premium and Reserve Risk'!$X$155),'Premium and Reserve Risk'!$X$155)) -> 0.15 | AA182: =MAX(0%,IF(S182<>0,MIN((U182-S182)/S182/'Non-Life Underwriting Risk'!$E$27,'Premium and Reserve Risk'!$AA$155),'Premium and Reserve Risk'!$AA$155)) -> 0.11
B183: 27 | F183: =IF(B183<=OFFSET($X$7,B154-1,0),0,1) -> 1 | O183: 0 | X183: =MAX(0%,IF(O183<>0,MIN((Q183-O183)/O183/'Non-Life Underwriting Risk'!$E$27,'Premium and Reserve Risk'!$X$155),'Premium and Reserve Risk'!$X$155)) -> 0.15 | AA183: =MAX(0%,IF(S183<>0,MIN((U183-S183)/S183/'Non-Life Underwriting Risk'!$E$27,'Premium and Reserve Risk'!$AA$155),'Premium and Reserve Risk'!$AA$155)) -> 0.11
B184: 28 | F184: =IF(B184<=OFFSET($X$7,B154-1,0),0,1) -> 1 | O184: 0 | X184: =MAX(0%,IF(O184<>0,MIN((Q184-O184)/O184/'Non-Life Underwriting Risk'!$E$27,'Premium and Reserve Risk'!$X$155),'Premium and Reserve Risk'!$X$155)) -> 0.15 | AA184: =MAX(0%,IF(S184<>0,MIN((U184-S184)/S184/'Non-Life Underwriting Risk'!$E$27,'Premium and Reserve Risk'!$AA$155),'Premium and Reserve Risk'!$AA$155)) -> 0.11
B185: 29 | F185: =IF(B185<=OFFSET($X$7,B154-1,0),0,1) -> 1 | O185: 0 | X185: =MAX(0%,IF(O185<>0,MIN((Q185-O185)/O185/'Non-Life Underwriting Risk'!$E$27,'Premium and Reserve Risk'!$X$155),'Premium and Reserve Risk'!$X$155)) -> 0.15 | AA185: =MAX(0%,IF(S185<>0,MIN((U185-S185)/S185/'Non-Life Underwriting Risk'!$E$27,'Premium and Reserve Risk'!$AA$155),'Premium and Reserve Risk'!$AA$155)) -> 0.11
B186: 30 | F186: =IF(B186<=OFFSET($X$7,B154-1,0),0,1) -> 1 | O186: 0 | X186: =MAX(0%,IF(O186<>0,MIN((Q186-O186)/O186/'Non-Life Underwriting Risk'!$E$27,'Premium and Reserve Risk'!$X$155),'Premium and Reserve Risk'!$X$155)) -> 0.15 | AA186: =MAX(0%,IF(S186<>0,MIN((U186-S186)/S186/'Non-Life Underwriting Risk'!$E$27,'Premium and Reserve Risk'!$AA$155),'Premium and Reserve Risk'!$AA$155)) -> 0.11
B187: 31 | F187: =IF(B187<=OFFSET($X$7,B154-1,0),0,1) -> 1 | O187: 0 | X187: =MAX(0%,IF(O187<>0,MIN((Q187-O187)/O187/'Non-Life Underwriting Risk'!$E$27,'Premium and Reserve Risk'!$X$155),'Premium and Reserve Risk'!$X$155)) -> 0.15 | AA187: =MAX(0%,IF(S187<>0,MIN((U187-S187)/S187/'Non-Life Underwriting Risk'!$E$27,'Premium and Reserve Risk'!$AA$155),'Premium and Reserve Risk'!$AA$155)) -> 0.11
B188: 32 | F188: =IF(B188<=OFFSET($X$7,B154-1,0),0,1) -> 1 | O188: 0 | X188: =MAX(0%,IF(O188<>0,MIN((Q188-O188)/O188/'Non-Life Underwriting Risk'!$E$27,'Premium and Reserve Risk'!$X$155),'Premium and Reserve Risk'!$X$155)) -> 0.15 | AA188: =MAX(0%,IF(S188<>0,MIN((U188-S188)/S188/'Non-Life Underwriting Risk'!$E$27,'Premium and Reserve Risk'!$AA$155),'Premium and Reserve Risk'!$AA$155)) -> 0.11
B189: 33 | F189: =IF(B189<=OFFSET($X$7,B154-1,0),0,1) -> 1 | O189: 0 | X189: =MAX(0%,IF(O189<>0,MIN((Q189-O189)/O189/'Non-Life Underwriting Risk'!$E$27,'Premium and Reserve Risk'!$X$155),'Premium and Reserve Risk'!$X$155)) -> 0.15 | AA189: =MAX(0%,IF(S189<>0,MIN((U189-S189)/S189/'Non-Life Underwriting Risk'!$E$27,'Premium and Reserve Risk'!$AA$155),'Premium and Reserve Risk'!$AA$155)) -> 0.11
B190: 34 | F190: =IF(B190<=OFFSET($X$7,B154-1,0),0,1) -> 1 | O190: 0 | X190: =MAX(0%,IF(O190<>0,MIN((Q190-O190)/O190/'Non-Life Underwriting Risk'!$E$27,'Premium and Reserve Risk'!$X$155),'Premium and Reserve Risk'!$X$155)) -> 0.15 | AA190: =MAX(0%,IF(S190<>0,MIN((U190-S190)/S190/'Non-Life Underwriting Risk'!$E$27,'Premium and Reserve Risk'!$AA$155),'Premium and Reserve Risk'!$AA$155)) -> 0.11
B191: 35 | F191: =IF(B191<=OFFSET($X$7,B154-1,0),0,1) -> 1 | O191: 0 | X191: =MAX(0%,IF(O191<>0,MIN((Q191-O191)/O191/'Non-Life Underwriting Risk'!$E$27,'Premium and Reserve Risk'!$X$155),'Premium and Reserve Risk'!$X$155)) -> 0.15 | AA191: =MAX(0%,IF(S191<>0,MIN((U191-S191)/S191/'Non-Life Underwriting Risk'!$E$27,'Premium and Reserve Risk'!$AA$155),'Premium and Reserve Risk'!$AA$155)) -> 0.11
B192: 36 | F192: =IF(B192<=OFFSET($X$7,B154-1,0),0,1) -> 1 | O192: 0 | X192: =MAX(0%,IF(O192<>0,MIN((Q192-O192)/O192/'Non-Life Underwriting Risk'!$E$27,'Premium and Reserve Risk'!$X$155),'Premium and Reserve Risk'!$X$155)) -> 0.15 | AA192: =MAX(0%,IF(S192<>0,MIN((U192-S192)/S192/'Non-Life Underwriting Risk'!$E$27,'Premium and Reserve Risk'!$AA$155),'Premium and Reserve Risk'!$AA$155)) -> 0.11
B193: 37 | F193: =IF(B193<=OFFSET($X$7,B154-1,0),0,1) -> 1 | O193: 0 | X193: =MAX(0%,IF(O193<>0,MIN((Q193-O193)/O193/'Non-Life Underwriting Risk'!$E$27,'Premium and Reserve Risk'!$X$155),'Premium and Reserve Risk'!$X$155)) -> 0.15 | AA193: =MAX(0%,IF(S193<>0,MIN((U193-S193)/S193/'Non-Life Underwriting Risk'!$E$27,'Premium and Reserve Risk'!$AA$155),'Premium and Reserve Risk'!$AA$155)) -> 0.11
B194: 38 | F194: =IF(B194<=OFFSET($X$7,B154-1,0),0,1) -> 1 | O194: 0 | X194: =MAX(0%,IF(O194<>0,MIN((Q194-O194)/O194/'Non-Life Underwriting Risk'!$E$27,'Premium and Reserve Risk'!$X$155),'Premium and Reserve Risk'!$X$155)) -> 0.15 | AA194: =MAX(0%,IF(S194<>0,MIN((U194-S194)/S194/'Non-Life Underwriting Risk'!$E$27,'Premium and Reserve Risk'!$AA$155),'Premium and Reserve Risk'!$AA$155)) -> 0.11
B195: 39 | F195: =IF(B195<=OFFSET($X$7,B154-1,0),0,1) -> 1 | O195: 0 | X195: =MAX(0%,IF(O195<>0,MIN((Q195-O195)/O195/'Non-Life Underwriting Risk'!$E$27,'Premium and Reserve Risk'!$X$155),'Premium and Reserve Risk'!$X$155)) -> 0.15 | AA195: =MAX(0%,IF(S195<>0,MIN((U195-S195)/S195/'Non-Life Underwriting Risk'!$E$27,'Premium and Reserve Risk'!$AA$155),'Premium and Reserve Risk'!$AA$155)) -> 0.11
B196: 40 | F196: =IF(B196<=OFFSET($X$7,B154-1,0),0,1) -> 1 | O196: 0 | X196: =MAX(0%,IF(O196<>0,MIN((Q196-O196)/O196/'Non-Life Underwriting Risk'!$E$27,'Premium and Reserve Risk'!$X$155),'Premium and Reserve Risk'!$X$155)) -> 0.15 | AA196: =MAX(0%,IF(S196<>0,MIN((U196-S196)/S196/'Non-Life Underwriting Risk'!$E$27,'Premium and Reserve Risk'!$AA$155),'Premium and Reserve Risk'!$AA$155)) -> 0.11
B197: 41 | F197: =IF(B197<=OFFSET($X$7,B154-1,0),0,1) -> 1 | O197: 0 | X197: =MAX(0%,IF(O197<>0,MIN((Q197-O197)/O197/'Non-Life Underwriting Risk'!$E$27,'Premium and Reserve Risk'!$X$155),'Premium and Reserve Risk'!$X$155)) -> 0.15 | AA197: =MAX(0%,IF(S197<>0,MIN((U197-S197)/S197/'Non-Life Underwriting Risk'!$E$27,'Premium and Reserve Risk'!$AA$155),'Premium and Reserve Risk'!$AA$155)) -> 0.11
B198: 42 | F198: =IF(B198<=OFFSET($X$7,B154-1,0),0,1) -> 1 | O198: 0 | X198: =MAX(0%,IF(O198<>0,MIN((Q198-O198)/O198/'Non-Life Underwriting Risk'!$E$27,'Premium and Reserve Risk'!$X$155),'Premium and Reserve Risk'!$X$155)) -> 0.15 | AA198: =MAX(0%,IF(S198<>0,MIN((U198-S198)/S198/'Non-Life Underwriting Risk'!$E$27,'Premium and Reserve Risk'!$AA$155),'Premium and Reserve Risk'!$AA$155)) -> 0.11
B199: 43 | F199: =IF(B199<=OFFSET($X$7,B154-1,0),0,1) -> 1 | O199: 0 | X199: =MAX(0%,IF(O199<>0,MIN((Q199-O199)/O199/'Non-Life Underwriting Risk'!$E$27,'Premium and Reserve Risk'!$X$155),'Premium and Reserve Risk'!$X$155)) -> 0.15 | AA199: =MAX(0%,IF(S199<>0,MIN((U199-S199)/S199/'Non-Life Underwriting Risk'!$E$27,'Premium and Reserve Risk'!$AA$155),'Premium and Reserve Risk'!$AA$155)) -> 0.11
B200: 44 | F200: =IF(B200<=OFFSET($X$7,B154-1,0),0,1) -> 1 | O200: 0 | X200: =MAX(0%,IF(O200<>0,MIN((Q200-O200)/O200/'Non-Life Underwriting Risk'!$E$27,'Premium and Reserve Risk'!$X$155),'Premium and Reserve Risk'!$X$155)) -> 0.15 | AA200: =MAX(0%,IF(S200<>0,MIN((U200-S200)/S200/'Non-Life Underwriting Risk'!$E$27,'Premium and Reserve Risk'!$AA$155),'Premium and Reserve Risk'!$AA$155)) -> 0.11
B201: 45 | F201: =IF(B201<=OFFSET($X$7,B154-1,0),0,1) -> 1 | O201: 0 | X201: =MAX(0%,IF(O201<>0,MIN((Q201-O201)/O201/'Non-Life Underwriting Risk'!$E$27,'Premium and Reserve Risk'!$X$155),'Premium and Reserve Risk'!$X$155)) -> 0.15 | AA201: =MAX(0%,IF(S201<>0,MIN((U201-S201)/S201/'Non-Life Underwriting Risk'!$E$27,'Premium and Reserve Risk'!$AA$155),'Premium and Reserve Risk'!$AA$155)) -> 0.11
B202: 46 | F202: =IF(B202<=OFFSET($X$7,B154-1,0),0,1) -> 1 | O202: 0 | X202: =MAX(0%,IF(O202<>0,MIN((Q202-O202)/O202/'Non-Life Underwriting Risk'!$E$27,'Premium and Reserve Risk'!$X$155),'Premium and Reserve Risk'!$X$155)) -> 0.15 | AA202: =MAX(0%,IF(S202<>0,MIN((U202-S202)/S202/'Non-Life Underwriting Risk'!$E$27,'Premium and Reserve Risk'!$AA$155),'Premium and Reserve Risk'!$AA$155)) -> 0.11
B203: 47 | F203: =IF(B203<=OFFSET($X$7,B154-1,0),0,1) -> 1 | O203: 0 | X203: =MAX(0%,IF(O203<>0,MIN((Q203-O203)/O203/'Non-Life Underwriting Risk'!$E$27,'Premium and Reserve Risk'!$X$155),'Premium and Reserve Risk'!$X$155)) -> 0.15 | AA203: =MAX(0%,IF(S203<>0,MIN((U203-S203)/S203/'Non-Life Underwriting Risk'!$E$27,'Premium and Reserve Risk'!$AA$155),'Premium and Reserve Risk'!$AA$155)) -> 0.11
B204: 48 | F204: =IF(B204<=OFFSET($X$7,B154-1,0),0,1) -> 1 | O204: 0 | X204: =MAX(0%,IF(O204<>0,MIN((Q204-O204)/O204/'Non-Life Underwriting Risk'!$E$27,'Premium and Reserve Risk'!$X$155),'Premium and Reserve Risk'!$X$155)) -> 0.15 | AA204: =MAX(0%,IF(S204<>0,MIN((U204-S204)/S204/'Non-Life Underwriting Risk'!$E$27,'Premium and Reserve Risk'!$AA$155),'Premium and Reserve Risk'!$AA$155)) -> 0.11
B205: 49 | F205: =IF(B205<=OFFSET($X$7,B154-1,0),0,1) -> 1 | O205: 0 | X205: =MAX(0%,IF(O205<>0,MIN((Q205-O205)/O205/'Non-Life Underwriting Risk'!$E$27,'Premium and Reserve Risk'!$X$155),'Premium and Reserve Risk'!$X$155)) -> 0.15 | AA205: =MAX(0%,IF(S205<>0,MIN((U205-S205)/S205/'Non-Life Underwriting Risk'!$E$27,'Premium and Reserve Risk'!$AA$155),'Premium and Reserve Risk'!$AA$155)) -> 0.11
B206: 50 | F206: =IF(B206<=OFFSET($X$7,B154-1,0),0,1) -> 1 | O206: 0 | X206: =MAX(0%,IF(O206<>0,MIN((Q206-O206)/O206/'Non-Life Underwriting Risk'!$E$27,'Premium and Reserve Risk'!$X$155),'Premium and Reserve Risk'!$X$155)) -> 0.15 | AA206: =MAX(0%,IF(S206<>0,MIN((U206-S206)/S206/'Non-Life Underwriting Risk'!$E$27,'Premium and Reserve Risk'!$AA$155),'Premium and Reserve Risk'!$AA$155)) -> 0.11
B207: 51 | F207: =IF(B207<=OFFSET($X$7,B154-1,0),0,1) -> 1 | O207: 0 | X207: =MAX(0%,IF(O207<>0,MIN((Q207-O207)/O207/'Non-Life Underwriting Risk'!$E$27,'Premium and Reserve Risk'!$X$155),'Premium and Reserve Risk'!$X$155)) -> 0.15 | AA207: =MAX(0%,IF(S207<>0,MIN((U207-S207)/S207/'Non-Life Underwriting Risk'!$E$27,'Premium and Reserve Risk'!$AA$155),'Premium and Reserve Risk'!$AA$155)) -> 0.11
B208: 52 | F208: =IF(B208<=OFFSET($X$7,B154-1,0),0,1) -> 1 | O208: 0 | X208: =MAX(0%,IF(O208<>0,MIN((Q208-O208)/O208/'Non-Life Underwriting Risk'!$E$27,'Premium and Reserve Risk'!$X$155),'Premium and Reserve Risk'!$X$155)) -> 0.15 | AA208: =MAX(0%,IF(S208<>0,MIN((U208-S208)/S208/'Non-Life Underwriting Risk'!$E$27,'Premium and Reserve Risk'!$AA$155),'Premium and Reserve Risk'!$AA$155)) -> 0.11
B209: 53 | F209: =IF(B209<=OFFSET($X$7,B154-1,0),0,1) -> 1 | O209: 0 | X209: =MAX(0%,IF(O209<>0,MIN((Q209-O209)/O209/'Non-Life Underwriting Risk'!$E$27,'Premium and Reserve Risk'!$X$155),'Premium and Reserve Risk'!$X$155)) -> 0.15 | AA209: =MAX(0%,IF(S209<>0,MIN((U209-S209)/S209/'Non-Life Underwriting Risk'!$E$27,'Premium and Reserve Risk'!$AA$155),'Premium and Reserve Risk'!$AA$155)) -> 0.11
... 584 more rows

Sheet DIV
A1: =RIGHT(CELL("filename",$A$1),LEN(CELL("filename",$A$1))-FIND("]",CELL("filename",$A$1))) -> DIV | AU1: =Insurer_Shortname -> 0
A2: =Insurer_Name & " (" & Insurer_Shortname & ")" -> () | AU2: =QIS_YE_Date -> 2017-12-31
B3: See TS(10) 2.6.4.17 for details of the calculation of DIVs. If data is not input here for a LOB, DIVs will default to 100%.
B5: Premium and Reserve Risk | E5: j | F5: 1-19 * | H5: 1 * | J5: 2 * | L5: 3 * | N5: 4 * | P5: 5 * | R5: 6 * | T5: 7 * | V5: 8 * | X5: 9 * | Z5: 10 * | AB5: 11 * | AD5: 12 * | AF5: 13 * | AH5: 14 * | AJ5: 15 * | AL5: 16 * | AN5: 17 * | AP5: 18 * | AR5: 19 *
B7: Premium * | F7: V(prem,s) | H7: V(prem,1,s) | J7: V(prem,2,s) | L7: V(prem,3,s) | N7: V(prem,4,s) | P7: V(prem,5,s) | R7: V(prem,6,s) | T7: V(prem,7,s) | V7: V(prem,8,s) | X7: V(prem,9,s) | Z7: V(prem,10,s) | AB7: V(prem,11,s) | AD7: V(prem,12,s) | AF7: V(prem,13,s) | AH7: V(prem,14,s) | AJ7: V(prem,15,s) | AL7: V(prem,16,s) | AN7: V(prem,17,s) | AP7: V(prem,18,s) | AR7: V(prem,19,s)
B9: V(prem,j,1) | E9: * | F9: =SUM(H9:AR9) -> 0 | AU9: =IF(F9<>'Premium and Reserve Risk'!O7,"ERROR",IF(OR(H9="",J9="",L9="",N9="",P9="",R9="",T9="",V9="",X9="",Z9="",AB9="",AD9="",AF9="",AH9="",AJ9="",AL9="",AN9="",AR9=""),"ZERO","OK")) -> ZERO
B10: V(prem,j,2) | E10: * | F10: 0 | AU10: =IF(F10<>'Premium and Reserve Risk'!O8,"ERROR",IF(OR(H10="",J10="",L10="",N10="",P10="",R10="",T10="",V10="",X10="",Z10="",AB10="",AD10="",AF10="",AH10="",AJ10="",AL10="",AN10="",AR10=""),"ZERO","OK")) -> ZERO
B11: V(prem,j,3) | E11: * | F11: 0 | AU11: =IF(F11<>'Premium and Reserve Risk'!O9,"ERROR",IF(OR(H11="",J11="",L11="",N11="",P11="",R11="",T11="",V11="",X11="",Z11="",AB11="",AD11="",AF11="",AH11="",AJ11="",AL11="",AN11="",AR11=""),"ZERO","OK")) -> ZERO
B12: V(prem,j,4) | E12: * | F12: 0 | AU12: =IF(F12<>'Premium and Reserve Risk'!O10,"ERROR",IF(OR(H12="",J12="",L12="",N12="",P12="",R12="",T12="",V12="",X12="",Z12="",AB12="",AD12="",AF12="",AH12="",AJ12="",AL12="",AN12="",AR12=""),"ZERO","OK")) -> ZERO
B13: V(prem,j,5) | E13: * | F13: 0 | AU13: =IF(F13<>'Premium and Reserve Risk'!O11,"ERROR",IF(OR(H13="",J13="",L13="",N13="",P13="",R13="",T13="",V13="",X13="",Z13="",AB13="",AD13="",AF13="",AH13="",AJ13="",AL13="",AN13="",AR13=""),"ZERO","OK")) -> ZERO
B14: V(prem,j,6) | E14: * | F14: 0 | H14: 0 | J14: 0 | L14: 0 | N14: 0 | P14: 0 | R14: 0 | T14: 0 | V14: 0 | X14: 0 | Z14: 0 | AB14: 0 | AD14: 0 | AF14: 0 | AH14: 0 | AJ14: 0 | AL14: 0 | AN14: 0 | AP14: 0 | AR14: 0
B15: V(prem,j,7) | E15: * | F15: 0 | AU15: =IF(F15<>'Premium and Reserve Risk'!O13,"ERROR",IF(OR(H15="",J15="",L15="",N15="",P15="",R15="",T15="",V15="",X15="",Z15="",AB15="",AD15="",AF15="",AH15="",AJ15="",AL15="",AN15="",AR15=""),"ZERO","OK")) -> ZERO
B16: V(prem,j,8) | E16: * | F16: 0 | AU16: =IF(F16<>'Premium and Reserve Risk'!O14,"ERROR",IF(OR(H16="",J16="",L16="",N16="",P16="",R16="",T16="",V16="",X16="",Z16="",AB16="",AD16="",AF16="",AH16="",AJ16="",AL16="",AN16="",AR16=""),"ZERO","OK")) -> ZERO
B17: V(prem,j,9) | E17: * | F17: 0 | AU17: =IF(F17<>'Premium and Reserve Risk'!O15,"ERROR",IF(OR(H17="",J17="",L17="",N17="",P17="",R17="",T17="",V17="",X17="",Z17="",AB17="",AD17="",AF17="",AH17="",AJ17="",AL17="",AN17="",AR17=""),"ZERO","OK")) -> ZERO
B18: V(prem,j,25) | E18: * | F18: 0 | H18: 0 | J18: 0 | L18: 0 | N18: 0 | P18: 0 | R18: 0 | T18: 0 | V18: 0 | X18: 0 | Z18: 0 | AB18: 0 | AD18: 0 | AF18: 0 | AH18: 0 | AJ18: 0 | AL18: 0 | AN18: 0 | AP18: 0 | AR18: 0
B19: V(prem,j,26) | E19: * | F19: 0 | H19: 0 | J19: 0 | L19: 0 | N19: 0 | P19: 0 | R19: 0 | T19: 0 | V19: 0 | X19: 0 | Z19: 0 | AB19: 0 | AD19: 0 | AF19: 0 | AH19: 0 | AJ19: 0 | AL19: 0 | AN19: 0 | AP19: 0 | AR19: 0
B20: V(prem,j,27) | E20: * | F20: 0 | H20: 0 | J20: 0 | L20: 0 | N20: 0 | P20: 0 | R20: 0 | T20: 0 | V20: 0 | X20: 0 | Z20: 0 | AB20: 0 | AD20: 0 | AF20: 0 | AH20: 0 | AJ20: 0 | AL20: 0 | AN20: 0 | AP20: 0 | AR20: 0
B22: Reserve * | F22: V(res,s) | H22: V(res,1,s) | J22: V(res,2,s) | L22: V(res,3,s) | N22: V(res,4,s) | P22: V(res,5,s) | R22: V(res,6,s) | T22: V(res,7,s) | V22: V(res,8,s) | X22: V(res,9,s) | Z22: V(res,10,s) | AB22: V(res,11,s) | AD22: V(res,12,s) | AF22: V(res,13,s) | AH22: V(res,14,s) | AJ22: V(res,15,s) | AL22: V(res,16,s) | AN22: V(res,17,s) | AP22: V(res,18,s) | AR22: V(res,19,s)
B24: V(res,j,1) | E24: * | F24: =SUM(H24:AR24) -> 0 | AU24: =IF(F24<>'Premium and Reserve Risk'!Q7,"ERROR",IF(OR(H24="",J24="",L24="",N24="",P24="",R24="",T24="",V24="",X24="",Z24="",AB24="",AD24="",AF24="",AH24="",AJ24="",AL24="",AN24="",AR24=""),"ZERO","OK")) -> ZERO
B25: V(res,j,2) | E25: * | F25: 0 | AU25: =IF(F25<>'Premium and Reserve Risk'!Q8,"ERROR",IF(OR(H25="",J25="",L25="",N25="",P25="",R25="",T25="",V25="",X25="",Z25="",AB25="",AD25="",AF25="",AH25="",AJ25="",AL25="",AN25="",AR25=""),"ZERO","OK")) -> ZERO
B26: V(res,j,3) | E26: * | F26: 0 | AU26: =IF(F26<>'Premium and Reserve Risk'!Q9,"ERROR",IF(OR(H26="",J26="",L26="",N26="",P26="",R26="",T26="",V26="",X26="",Z26="",AB26="",AD26="",AF26="",AH26="",AJ26="",AL26="",AN26="",AR26=""),"ZERO","OK")) -> ZERO
B27: V(res,j,4) | E27: * | F27: 0 | AU27: =IF(F27<>'Premium and Reserve Risk'!Q10,"ERROR",IF(OR(H27="",J27="",L27="",N27="",P27="",R27="",T27="",V27="",X27="",Z27="",AB27="",AD27="",AF27="",AH27="",AJ27="",AL27="",AN27="",AR27=""),"ZERO","OK")) -> ZERO
B28: V(res,j,5) | E28: * | F28: 0 | AU28: =IF(F28<>'Premium and Reserve Risk'!Q11,"ERROR",IF(OR(H28="",J28="",L28="",N28="",P28="",R28="",T28="",V28="",X28="",Z28="",AB28="",AD28="",AF28="",AH28="",AJ28="",AL28="",AN28="",AR28=""),"ZERO","OK")) -> ZERO
B29: V(res,j,6) | E29: * | F29: 0 | H29: 0 | J29: 0 | L29: 0 | N29: 0 | P29: 0 | R29: 0 | T29: 0 | V29: 0 | X29: 0 | Z29: 0 | AB29: 0 | AD29: 0 | AF29: 0 | AH29: 0 | AJ29: 0 | AL29: 0 | AN29: 0 | AP29: 0 | AR29: 0
B30: V(res,j,7) | E30: * | F30: 0 | AU30: =IF(F30<>'Premium and Reserve Risk'!Q13,"ERROR",IF(OR(H30="",J30="",L30="",N30="",P30="",R30="",T30="",V30="",X30="",Z30="",AB30="",AD30="",AF30="",AH30="",AJ30="",AL30="",AN30="",AR30=""),"ZERO","OK")) -> ZERO
B31: V(res,j,8) | E31: * | F31: 0 | AU31: =IF(F31<>'Premium and Reserve Risk'!Q14,"ERROR",IF(OR(H31="",J31="",L31="",N31="",P31="",R31="",T31="",V31="",X31="",Z31="",AB31="",AD31="",AF31="",AH31="",AJ31="",AL31="",AN31="",AR31=""),"ZERO","OK")) -> ZERO
B32: V(res,j,9) | E32: * | F32: 0 | AU32: =IF(F32<>'Premium and Reserve Risk'!Q15,"ERROR",IF(OR(H32="",J32="",L32="",N32="",P32="",R32="",T32="",V32="",X32="",Z32="",AB32="",AD32="",AF32="",AH32="",AJ32="",AL32="",AN32="",AR32=""),"ZERO","OK")) -> ZERO
B33: V(res,j,25) | E33: * | F33: 0 | H33: 0 | J33: 0 | L33: 0 | N33: 0 | P33: 0 | R33: 0 | T33: 0 | V33: 0 | X33: 0 | Z33: 0 | AB33: 0 | AD33: 0 | AF33: 0 | AH33: 0 | AJ33: 0 | AL33: 0 | AN33: 0 | AP33: 0 | AR33: 0
B34: V(res,j,26) | E34: * | F34: 0 | H34: 0 | J34: 0 | L34: 0 | N34: 0 | P34: 0 | R34: 0 | T34: 0 | V34: 0 | X34: 0 | Z34: 0 | AB34: 0 | AD34: 0 | AF34: 0 | AH34: 0 | AJ34: 0 | AL34: 0 | AN34: 0 | AP34: 0 | AR34: 0
B35: V(res,j,27) | E35: * | F35: 0 | H35: 0 | J35: 0 | L35: 0 | N35: 0 | P35: 0 | R35: 0 | T35: 0 | V35: 0 | X35: 0 | Z35: 0 | AB35: 0 | AD35: 0 | AF35: 0 | AH35: 0 | AJ35: 0 | AL35: 0 | AN35: 0 | AP35: 0 | AR35: 0
B37: DIV | D37: DIVs *
B39: DIV1 | D39: =IF(OR(F9+F24=0,SUM(H39:AR39)=0),1,SUM(H39:AR39)/((F9+F24)^2)) -> 1 | H39: =(H9+H24)^2 -> 0 | J39: =(J9+J24)^2 -> 0 | L39: =(L9+L24)^2 -> 0 | N39: =(N9+N24)^2 -> 0 | P39: =(P9+P24)^2 -> 0 | R39: =(R9+R24)^2 -> 0 | T39: =(T9+T24)^2 -> 0 | V39: =(V9+V24)^2 -> 0 | X39: =(X9+X24)^2 -> 0 | Z39: =(Z9+Z24)^2 -> 0 | AB39: =(AB9+AB24)^2 -> 0 | AD39: =(AD9+AD24)^2 -> 0 | AF39: =(AF9+AF24)^2 -> 0 | AH39: =(AH9+AH24)^2 -> 0 | AJ39: =(AJ9+AJ24)^2 -> 0 | AL39: =(AL9+AL24)^2 -> 0 | AN39: =(AN9+AN24)^2 -> 0 | AP39: =(AP9+AP24)^2 -> 0 | AR39: =(AR9+AR24)^2 -> 0
B40: DIV2 | D40: 1 | H40: 0 | J40: 0 | L40: 0 | N40: 0 | P40: 0 | R40: 0 | T40: 0 | V40: 0 | X40: 0 | Z40: 0 | AB40: 0 | AD40: 0 | AF40: 0 | AH40: 0 | AJ40: 0 | AL40: 0 | AN40: 0 | AP40: 0 | AR40: 0
B41: DIV3 | D41: 1 | H41: 0 | J41: 0 | L41: 0 | N41: 0 | P41: 0 | R41: 0 | T41: 0 | V41: 0 | X41: 0 | Z41: 0 | AB41: 0 | AD41: 0 | AF41: 0 | AH41: 0 | AJ41: 0 | AL41: 0 | AN41: 0 | AP41: 0 | AR41: 0
B42: DIV4 | D42: 1 | H42: 0 | J42: 0 | L42: 0 | N42: 0 | P42: 0 | R42: 0 | T42: 0 | V42: 0 | X42: 0 | Z42: 0 | AB42: 0 | AD42: 0 | AF42: 0 | AH42: 0 | AJ42: 0 | AL42: 0 | AN42: 0 | AP42: 0 | AR42: 0
B43: DIV5 | D43: 1 | H43: 0 | J43: 0 | L43: 0 | N43: 0 | P43: 0 | R43: 0 | T43: 0 | V43: 0 | X43: 0 | Z43: 0 | AB43: 0 | AD43: 0 | AF43: 0 | AH43: 0 | AJ43: 0 | AL43: 0 | AN43: 0 | AP43: 0 | AR43: 0
B44: DIV6 | D44: 1 | H44: 0 | J44: 0 | L44: 0 | N44: 0 | P44: 0 | R44: 0 | T44: 0 | V44: 0 | X44: 0 | Z44: 0 | AB44: 0 | AD44: 0 | AF44: 0 | AH44: 0 | AJ44: 0 | AL44: 0 | AN44: 0 | AP44: 0 | AR44: 0
B45: DIV7 | D45: 1 | H45: 0 | J45: 0 | L45: 0 | N45: 0 | P45: 0 | R45: 0 | T45: 0 | V45: 0 | X45: 0 | Z45: 0 | AB45: 0 | AD45: 0 | AF45: 0 | AH45: 0 | AJ45: 0 | AL45: 0 | AN45: 0 | AP45: 0 | AR45: 0
B46: DIV8 | D46: 1 | H46: 0 | J46: 0 | L46: 0 | N46: 0 | P46: 0 | R46: 0 | T46: 0 | V46: 0 | X46: 0 | Z46: 0 | AB46: 0 | AD46: 0 | AF46: 0 | AH46: 0 | AJ46: 0 | AL46: 0 | AN46: 0 | AP46: 0 | AR46: 0
B47: DIV9 | D47: 1 | H47: 0 | J47: 0 | L47: 0 | N47: 0 | P47: 0 | R47: 0 | T47: 0 | V47: 0 | X47: 0 | Z47: 0 | AB47: 0 | AD47: 0 | AF47: 0 | AH47: 0 | AJ47: 0 | AL47: 0 | AN47: 0 | AP47: 0 | AR47: 0
B48: DIV25 | D48: 1 | H48: 0 | J48: 0 | L48: 0 | N48: 0 | P48: 0 | R48: 0 | T48: 0 | V48: 0 | X48: 0 | Z48: 0 | AB48: 0 | AD48: 0 | AF48: 0 | AH48: 0 | AJ48: 0 | AL48: 0 | AN48: 0 | AP48: 0 | AR48: 0
B49: DIV26 | D49: 1 | H49: 0 | J49: 0 | L49: 0 | N49: 0 | P49: 0 | R49: 0 | T49: 0 | V49: 0 | X49: 0 | Z49: 0 | AB49: 0 | AD49: 0 | AF49: 0 | AH49: 0 | AJ49: 0 | AL49: 0 | AN49: 0 | AP49: 0 | AR49: 0
B50: DIV27 | D50: 1 | H50: 0 | J50: 0 | L50: 0 | N50: 0 | P50: 0 | R50: 0 | T50: 0 | V50: 0 | X50: 0 | Z50: 0 | AB50: 0 | AD50: 0 | AF50: 0 | AH50: 0 | AJ50: 0 | AL50: 0 | AN50: 0 | AP50: 0 | AR50: 0

Sheet Lapse Risk
A1: =RIGHT(CELL("filename",$A$1),LEN(CELL("filename",$A$1))-FIND("]",CELL("filename",$A$1))) -> Lapse Risk | T1: =Insurer_Shortname -> 0
A2: =Insurer_Name & " (" & Insurer_Shortname & ")" -> () | T2: =QIS_YE_Date -> 2017-12-31
B3: This sheet may be used to estimate the Lapse Risk Charge for Non-Life Business, as described in TS(10) 2.6.5
B5: Lapse Risk | F5: Profitable Grouping * | H5: Line of Business | J5: 2018 Pipeline Premiums * | L5: Ultimate Loss Ratio * | N5: Claims Expense Ratio * | Q5: Lapse Risk Charge
B7: 1 in 10 year Shock
D9: 1 | Q9: =20%*(1-L9-N9)*J9 -> 0 | T9: =IF(OR(J9="",L9="",N9=""),"ERROR","OK") -> ERROR
D10: 2 | Q10: 0 | T10: ERROR
D11: 3 | Q11: 0 | T11: ERROR
D12: 4 | Q12: 0 | T12: ERROR
D13: 5 | Q13: 0 | T13: ERROR
D14: 6 | Q14: 0 | T14: ERROR
D15: 7 | Q15: 0 | T15: ERROR
D16: 8 | Q16: 0 | T16: ERROR
D17: 9 | Q17: 0 | T17: ERROR
D18: 10 | Q18: 0 | T18: ERROR
D19: 11 | Q19: 0 | T19: ERROR
D20: 12 | Q20: 0 | T20: ERROR
D21: 13 | Q21: 0 | T21: ERROR
D22: 14 | Q22: 0 | T22: ERROR
D23: 15 | Q23: 0 | T23: ERROR
D24: 16 | Q24: 0 | T24: ERROR
D25: 17 | Q25: 0 | T25: ERROR
D26: 18 | Q26: 0 | T26: ERROR
D27: 19 | Q27: 0 | T27: ERROR
D28: 20 | Q28: 0 | T28: ERROR
D29: 21 | Q29: 0 | T29: ERROR
D30: 22 | Q30: 0 | T30: ERROR
D31: 23 | Q31: 0 | T31: ERROR
D32: 24 | Q32: 0 | T32: ERROR
D33: 25 | Q33: 0 | T33: ERROR
D34: 26 | Q34: 0 | T34: ERROR
D35: 27 | Q35: 0 | T35: ERROR
D36: 28 | Q36: 0 | T36: ERROR
D37: 29 | Q37: 0 | T37: ERROR
D38: 30 | Q38: 0 | T38: ERROR
D39: 31 | Q39: 0 | T39: ERROR
D40: 32 | Q40: 0 | T40: ERROR
D41: 33 | Q41: 0 | T41: ERROR
D42: 34 | Q42: 0 | T42: ERROR
D43: 35 | Q43: 0 | T43: ERROR
D44: 36 | Q44: 0 | T44: ERROR
D45: 37 | Q45: 0 | T45: ERROR
D46: 38 | Q46: 0 | T46: ERROR
D47: 39 | Q47: 0 | T47: ERROR
D48: 40 | Q48: 0 | T48: ERROR
D49: 41 | Q49: 0 | T49: ERROR
D50: 42 | Q50: 0 | T50: ERROR
D51: 43 | Q51: 0 | T51: ERROR
D52: 44 | Q52: 0 | T52: ERROR
D53: 45 | Q53: 0 | T53: ERROR
D54: 46 | Q54: 0 | T54: ERROR
D55: 47 | Q55: 0 | T55: ERROR
D56: 48 | Q56: 0 | T56: ERROR
D57: 49 | Q57: 0 | T57: ERROR
D58: 50 | Q58: 0 | T58: ERROR
D59: 51 | Q59: 0 | T59: ERROR
D60: 52 | Q60: 0 | T60: ERROR
D61: 53 | Q61: 0 | T61: ERROR
D62: 54 | Q62: 0 | T62: ERROR
D63: 55 | Q63: 0 | T63: ERROR
D64: 56 | Q64: 0 | T64: ERROR
D65: 57 | Q65: 0 | T65: ERROR
D66: 58 | Q66: 0 | T66: ERROR
D67: 59 | Q67: 0 | T67: ERROR
D68: 60 | Q68: 0 | T68: ERROR
D69: 61 | Q69: 0 | T69: ERROR
D70: 62 | Q70: 0 | T70: ERROR
D71: 63 | Q71: 0 | T71: ERROR
D72: 64 | Q72: 0 | T72: ERROR
D73: 65 | Q73: 0 | T73: ERROR
D74: 66 | Q74: 0 | T74: ERROR
D75: 67 | Q75: 0 | T75: ERROR
D76: 68 | Q76: 0 | T76: ERROR
D77: 69 | Q77: 0 | T77: ERROR
D78: 70 | Q78: 0 | T78: ERROR
D79: 71 | Q79: 0 | T79: ERROR
D80: 72 | Q80: 0 | T80: ERROR
D81: 73 | Q81: 0 | T81: ERROR
D82: 74 | Q82: 0 | T82: ERROR
D83: 75 | Q83: 0 | T83: ERROR
D84: 76 | Q84: 0 | T84: ERROR
D85: 77 | Q85: 0 | T85: ERROR
D86: 78 | Q86: 0 | T86: ERROR
D87: 79 | Q87: 0 | T87: ERROR
D88: 80 | Q88: 0 | T88: ERROR
D89: 81 | Q89: 0 | T89: ERROR
D90: 82 | Q90: 0 | T90: ERROR
D91: 83 | Q91: 0 | T91: ERROR
D92: 84 | Q92: 0 | T92: ERROR
D93: 85 | Q93: 0 | T93: ERROR
D94: 86 | Q94: 0 | T94: ERROR
D95: 87 | Q95: 0 | T95: ERROR
D96: 88 | Q96: 0 | T96: ERROR
D97: 89 | Q97: 0 | T97: ERROR
D98: 90 | Q98: 0 | T98: ERROR
B100: Lapse Up 20% | D100: Total Lapse Risk Charge | Q100: =SUM(Q9:Q98) -> 0 | T100: =IF(LAPSE_UP_10=0,"ZERO","OK") -> ZERO

Sheet Health_Prem & Reserve Risk
A1: =RIGHT(CELL("filename",$A$1),LEN(CELL("filename",$A$1))-FIND("]",CELL("filename",$A$1))) -> Health_Prem & Reserve Risk | AA1: =Insurer_Shortname -> 0
A2: =Insurer_Name & " (" & Insurer_Shortname & ")" -> () | AA2: =QIS_YE_Date -> 2017-12-31
B5: Volume Measure * | G5: Ps * | I5: P(last,s) * | K5: FP(existing,s) * | M5: FP(future,s) * | O5: V(prem,s) * | Q5: V(res,s) * | S5: Health_DIVs * | U5: Vs * | X5: Number of aggregate caps *
B7: 10 - Medical expense & Prop. Reins. | O7: =MAX(G7,I7)+K7+M7 -> 0 | Q7: =SUM('EBS - Direct TPs'!F93,'EBS - Reins TPs'!F93,-'EBS - Direct TPs'!J93,-'EBS - Reins TPs'!J93) -> 0 | S7: =Health_DIV!D23 -> 1 | U7: =(O7+Q7)*(0.75+0.25*S7) -> 0 | AA7: =IF(OR(G7="",I7="",K7="",M7="",Q7="",O7<>Health_DIV!F9,Q7<>Health_DIV!F16),"ERROR","OK") -> ERROR
B8: 11 - Income Protection & Prop. Reins. | O8: 0 | Q8: =SUM('EBS - Direct TPs'!F102,'EBS - Reins TPs'!F102,-'EBS - Direct TPs'!J102,-'EBS - Reins TPs'!J102) -> 0 | S8: =Health_DIV!D24 -> 1 | U8: 0 | AA8: =IF(OR(G8="",I8="",K8="",M8="",Q8="",O8<>Health_DIV!F10,Q8<>Health_DIV!F17),"ERROR","OK") -> ERROR
B9: 12 - Workers' compensation & Prop. Reins. | O9: 0 | Q9: =SUM('EBS - Direct TPs'!F111,'EBS - Reins TPs'!F111,-'EBS - Direct TPs'!J111,-'EBS - Reins TPs'!J111) -> 0 | S9: =Health_DIV!D25 -> 1 | U9: 0 | AA9: =IF(OR(G9="",I9="",K9="",M9="",Q9="",O9<>Health_DIV!F11,Q9<>Health_DIV!F18),"ERROR","OK") -> ERROR
B10: 28 - Non-prop. reinsurance - Health | O10: 0 | Q10: ='EBS - Reins TPs'!F147-'EBS - Reins TPs'!J147 -> 0 | S10: =Health_DIV!D26 -> 1 | U10: 0 | AA10: =IF(OR(G10="",I10="",K10="",M10="",Q10=""),"ERROR","OK") -> ERROR
C14: Aggregate caps
B16: 10 | C16: =RIGHT(OFFSET($B$7,B16-10,0),LEN(OFFSET($B$7,B16-10,0))-5) -> - Medical expense & Prop. Reins. | X16: σ(prem,s) | AA16: σ(res,s)
C17: Contract identifier | F17: =IF(OFFSET($X$7,B16-10,0)=0,1,0) -> 1 | G17: Ps | I17: P(last,s) | K17: FP(existing,s) | M17: FP(future,s) | O17: V(prem,) | Q17: Max exposure from V(prem) * | S17: Claims reserve * | U17: Max exposure from in-force * | X17: =OFFSET('Non-SLT Health Risk'!$H$54,'Health_Prem & Reserve Risk'!B16-10,0) -> 0.05 | AA17: =OFFSET('Non-SLT Health Risk'!$L$54,'Health_Prem & Reserve Risk'!B16-10,0) -> 0.05
F18: =IF(OFFSET($X$7,$B$16-10,0)=0,1,0) -> 1
B19: 1 | F19: =IF(B19<=OFFSET($X$7,$B$16-10,0),0,1) -> 1 | O19: =MAX(G19,I19)+K19+M19 -> 0 | X19: =MAX(0%,IF(O19<>0,MIN((Q19-O19)/O19/'Non-SLT Health Risk'!$E$27,'Health_Prem & Reserve Risk'!$X$17),'Health_Prem & Reserve Risk'!$X$17)) -> 0.05 | AA19: =MAX(0%,IF(S19<>0,MIN((U19-S19)/S19/'Non-SLT Health Risk'!$E$27,'Health_Prem & Reserve Risk'!$AA$17),'Health_Prem & Reserve Risk'!$AA$17)) -> 0.05
B20: 2 | F20: =IF(B20<=OFFSET($X$7,$B$16-10,0),0,1) -> 1 | O20: 0 | X20: =MAX(0%,IF(O20<>0,MIN((Q20-O20)/O20/'Non-SLT Health Risk'!$E$27,'Health_Prem & Reserve Risk'!$X$17),'Health_Prem & Reserve Risk'!$X$17)) -> 0.05 | AA20: =MAX(0%,IF(S20<>0,MIN((U20-S20)/S20/'Non-SLT Health Risk'!$E$27,'Health_Prem & Reserve Risk'!$AA$17),'Health_Prem & Reserve Risk'!$AA$17)) -> 0.05
B21: 3 | F21: 1 | O21: 0 | X21: =MAX(0%,IF(O21<>0,MIN((Q21-O21)/O21/'Non-SLT Health Risk'!$E$27,'Health_Prem & Reserve Risk'!$X$17),'Health_Prem & Reserve Risk'!$X$17)) -> 0.05 | AA21: =MAX(0%,IF(S21<>0,MIN((U21-S21)/S21/'Non-SLT Health Risk'!$E$27,'Health_Prem & Reserve Risk'!$AA$17),'Health_Prem & Reserve Risk'!$AA$17)) -> 0.05
B22: 4 | F22: 1 | O22: 0 | X22: =MAX(0%,IF(O22<>0,MIN((Q22-O22)/O22/'Non-SLT Health Risk'!$E$27,'Health_Prem & Reserve Risk'!$X$17),'Health_Prem & Reserve Risk'!$X$17)) -> 0.05 | AA22: =MAX(0%,IF(S22<>0,MIN((U22-S22)/S22/'Non-SLT Health Risk'!$E$27,'Health_Prem & Reserve Risk'!$AA$17),'Health_Prem & Reserve Risk'!$AA$17)) -> 0.05
B23: 5 | F23: 1 | O23: 0 | X23: =MAX(0%,IF(O23<>0,MIN((Q23-O23)/O23/'Non-SLT Health Risk'!$E$27,'Health_Prem & Reserve Risk'!$X$17),'Health_Prem & Reserve Risk'!$X$17)) -> 0.05 | AA23: =MAX(0%,IF(S23<>0,MIN((U23-S23)/S23/'Non-SLT Health Risk'!$E$27,'Health_Prem & Reserve Risk'!$AA$17),'Health_Prem & Reserve Risk'!$AA$17)) -> 0.05
B24: 6 | F24: 1 | O24: 0 | X24: =MAX(0%,IF(O24<>0,MIN((Q24-O24)/O24/'Non-SLT Health Risk'!$E$27,'Health_Prem & Reserve Risk'!$X$17),'Health_Prem & Reserve Risk'!$X$17)) -> 0.05 | AA24: =MAX(0%,IF(S24<>0,MIN((U24-S24)/S24/'Non-SLT Health Risk'!$E$27,'Health_Prem & Reserve Risk'!$AA$17),'Health_Prem & Reserve Risk'!$AA$17)) -> 0.05
B25: 7 | F25: 1 | O25: 0 | X25: =MAX(0%,IF(O25<>0,MIN((Q25-O25)/O25/'Non-SLT Health Risk'!$E$27,'Health_Prem & Reserve Risk'!$X$17),'Health_Prem & Reserve Risk'!$X$17)) -> 0.05 | AA25: =MAX(0%,IF(S25<>0,MIN((U25-S25)/S25/'Non-SLT Health Risk'!$E$27,'Health_Prem & Reserve Risk'!$AA$17),'Health_Prem & Reserve Risk'!$AA$17)) -> 0.05
B26: 8 | F26: 1 | O26: 0 | X26: =MAX(0%,IF(O26<>0,MIN((Q26-O26)/O26/'Non-SLT Health Risk'!$E$27,'Health_Prem & Reserve Risk'!$X$17),'Health_Prem & Reserve Risk'!$X$17)) -> 0.05 | AA26: =MAX(0%,IF(S26<>0,MIN((U26-S26)/S26/'Non-SLT Health Risk'!$E$27,'Health_Prem & Reserve Risk'!$AA$17),'Health_Prem & Reserve Risk'!$AA$17)) -> 0.05
B27: 9 | F27: 1 | O27: 0 | X27: =MAX(0%,IF(O27<>0,MIN((Q27-O27)/O27/'Non-SLT Health Risk'!$E$27,'Health_Prem & Reserve Risk'!$X$17),'Health_Prem & Reserve Risk'!$X$17)) -> 0.05 | AA27: =MAX(0%,IF(S27<>0,MIN((U27-S27)/S27/'Non-SLT Health Risk'!$E$27,'Health_Prem & Reserve Risk'!$AA$17),'Health_Prem & Reserve Risk'!$AA$17)) -> 0.05
B28: 10 | F28: 1 | O28: 0 | X28: =MAX(0%,IF(O28<>0,MIN((Q28-O28)/O28/'Non-SLT Health Risk'!$E$27,'Health_Prem & Reserve Risk'!$X$17),'Health_Prem & Reserve Risk'!$X$17)) -> 0.05 | AA28: =MAX(0%,IF(S28<>0,MIN((U28-S28)/S28/'Non-SLT Health Risk'!$E$27,'Health_Prem & Reserve Risk'!$AA$17),'Health_Prem & Reserve Risk'!$AA$17)) -> 0.05
B29: 11 | F29: 1 | O29: 0 | X29: =MAX(0%,IF(O29<>0,MIN((Q29-O29)/O29/'Non-SLT Health Risk'!$E$27,'Health_Prem & Reserve Risk'!$X$17),'Health_Prem & Reserve Risk'!$X$17)) -> 0.05 | AA29: =MAX(0%,IF(S29<>0,MIN((U29-S29)/S29/'Non-SLT Health Risk'!$E$27,'Health_Prem & Reserve Risk'!$AA$17),'Health_Prem & Reserve Risk'!$AA$17)) -> 0.05
B30: 12 | F30: 1 | O30: 0 | X30: =MAX(0%,IF(O30<>0,MIN((Q30-O30)/O30/'Non-SLT Health Risk'!$E$27,'Health_Prem & Reserve Risk'!$X$17),'Health_Prem & Reserve Risk'!$X$17)) -> 0.05 | AA30: =MAX(0%,IF(S30<>0,MIN((U30-S30)/S30/'Non-SLT Health Risk'!$E$27,'Health_Prem & Reserve Risk'!$AA$17),'Health_Prem & Reserve Risk'!$AA$17)) -> 0.05
B31: 13 | F31: 1 | O31: 0 | X31: =MAX(0%,IF(O31<>0,MIN((Q31-O31)/O31/'Non-SLT Health Risk'!$E$27,'Health_Prem & Reserve Risk'!$X$17),'Health_Prem & Reserve Risk'!$X$17)) -> 0.05 | AA31: =MAX(0%,IF(S31<>0,MIN((U31-S31)/S31/'Non-SLT Health Risk'!$E$27,'Health_Prem & Reserve Risk'!$AA$17),'Health_Prem & Reserve Risk'!$AA$17)) -> 0.05
B32: 14 | F32: 1 | O32: 0 | X32: =MAX(0%,IF(O32<>0,MIN((Q32-O32)/O32/'Non-SLT Health Risk'!$E$27,'Health_Prem & Reserve Risk'!$X$17),'Health_Prem & Reserve Risk'!$X$17)) -> 0.05 | AA32: =MAX(0%,IF(S32<>0,MIN((U32-S32)/S32/'Non-SLT Health Risk'!$E$27,'Health_Prem & Reserve Risk'!$AA$17),'Health_Prem & Reserve Risk'!$AA$17)) -> 0.05
B33: 15 | F33: 1 | O33: 0 | X33: =MAX(0%,IF(O33<>0,MIN((Q33-O33)/O33/'Non-SLT Health Risk'!$E$27,'Health_Prem & Reserve Risk'!$X$17),'Health_Prem & Reserve Risk'!$X$17)) -> 0.05 | AA33: =MAX(0%,IF(S33<>0,MIN((U33-S33)/S33/'Non-SLT Health Risk'!$E$27,'Health_Prem & Reserve Risk'!$AA$17),'Health_Prem & Reserve Risk'!$AA$17)) -> 0.05
B34: 16 | F34: 1 | O34: 0 | X34: =MAX(0%,IF(O34<>0,MIN((Q34-O34)/O34/'Non-SLT Health Risk'!$E$27,'Health_Prem & Reserve Risk'!$X$17),'Health_Prem & Reserve Risk'!$X$17)) -> 0.05 | AA34: =MAX(0%,IF(S34<>0,MIN((U34-S34)/S34/'Non-SLT Health Risk'!$E$27,'Health_Prem & Reserve Risk'!$AA$17),'Health_Prem & Reserve Risk'!$AA$17)) -> 0.05
B35: 17 | F35: 1 | O35: 0 | X35: =MAX(0%,IF(O35<>0,MIN((Q35-O35)/O35/'Non-SLT Health Risk'!$E$27,'Health_Prem & Reserve Risk'!$X$17),'Health_Prem & Reserve Risk'!$X$17)) -> 0.05 | AA35: =MAX(0%,IF(S35<>0,MIN((U35-S35)/S35/'Non-SLT Health Risk'!$E$27,'Health_Prem & Reserve Risk'!$AA$17),'Health_Prem & Reserve Risk'!$AA$17)) -> 0.05
B36: 18 | F36: 1 | O36: 0 | X36: =MAX(0%,IF(O36<>0,MIN((Q36-O36)/O36/'Non-SLT Health Risk'!$E$27,'Health_Prem & Reserve Risk'!$X$17),'Health_Prem & Reserve Risk'!$X$17)) -> 0.05 | AA36: =MAX(0%,IF(S36<>0,MIN((U36-S36)/S36/'Non-SLT Health Risk'!$E$27,'Health_Prem & Reserve Risk'!$AA$17),'Health_Prem & Reserve Risk'!$AA$17)) -> 0.05
B37: 19 | F37: 1 | O37: 0 | X37: =MAX(0%,IF(O37<>0,MIN((Q37-O37)/O37/'Non-SLT Health Risk'!$E$27,'Health_Prem & Reserve Risk'!$X$17),'Health_Prem & Reserve Risk'!$X$17)) -> 0.05 | AA37: =MAX(0%,IF(S37<>0,MIN((U37-S37)/S37/'Non-SLT Health Risk'!$E$27,'Health_Prem & Reserve Risk'!$AA$17),'Health_Prem & Reserve Risk'!$AA$17)) -> 0.05
B38: 20 | F38: 1 | O38: 0 | X38: =MAX(0%,IF(O38<>0,MIN((Q38-O38)/O38/'Non-SLT Health Risk'!$E$27,'Health_Prem & Reserve Risk'!$X$17),'Health_Prem & Reserve Risk'!$X$17)) -> 0.05 | AA38: =MAX(0%,IF(S38<>0,MIN((U38-S38)/S38/'Non-SLT Health Risk'!$E$27,'Health_Prem & Reserve Risk'!$AA$17),'Health_Prem & Reserve Risk'!$AA$17)) -> 0.05
B39: 21 | F39: 1 | O39: 0 | X39: =MAX(0%,IF(O39<>0,MIN((Q39-O39)/O39/'Non-SLT Health Risk'!$E$27,'Health_Prem & Reserve Risk'!$X$17),'Health_Prem & Reserve Risk'!$X$17)) -> 0.05 | AA39: =MAX(0%,IF(S39<>0,MIN((U39-S39)/S39/'Non-SLT Health Risk'!$E$27,'Health_Prem & Reserve Risk'!$AA$17),'Health_Prem & Reserve Risk'!$AA$17)) -> 0.05
B40: 22 | F40: 1 | O40: 0 | X40: =MAX(0%,IF(O40<>0,MIN((Q40-O40)/O40/'Non-SLT Health Risk'!$E$27,'Health_Prem & Reserve Risk'!$X$17),'Health_Prem & Reserve Risk'!$X$17)) -> 0.05 | AA40: =MAX(0%,IF(S40<>0,MIN((U40-S40)/S40/'Non-SLT Health Risk'!$E$27,'Health_Prem & Reserve Risk'!$AA$17),'Health_Prem & Reserve Risk'!$AA$17)) -> 0.05
B41: 23 | F41: 1 | O41: 0 | X41: =MAX(0%,IF(O41<>0,MIN((Q41-O41)/O41/'Non-SLT Health Risk'!$E$27,'Health_Prem & Reserve Risk'!$X$17),'Health_Prem & Reserve Risk'!$X$17)) -> 0.05 | AA41: =MAX(0%,IF(S41<>0,MIN((U41-S41)/S41/'Non-SLT Health Risk'!$E$27,'Health_Prem & Reserve Risk'!$AA$17),'Health_Prem & Reserve Risk'!$AA$17)) -> 0.05
B42: 24 | F42: 1 | O42: 0 | X42: =MAX(0%,IF(O42<>0,MIN((Q42-O42)/O42/'Non-SLT Health Risk'!$E$27,'Health_Prem & Reserve Risk'!$X$17),'Health_Prem & Reserve Risk'!$X$17)) -> 0.05 | AA42: =MAX(0%,IF(S42<>0,MIN((U42-S42)/S42/'Non-SLT Health Risk'!$E$27,'Health_Prem & Reserve Risk'!$AA$17),'Health_Prem & Reserve Risk'!$AA$17)) -> 0.05
B43: 25 | F43: 1 | O43: 0 | X43: =MAX(0%,IF(O43<>0,MIN((Q43-O43)/O43/'Non-SLT Health Risk'!$E$27,'Health_Prem & Reserve Risk'!$X$17),'Health_Prem & Reserve Risk'!$X$17)) -> 0.05 | AA43: =MAX(0%,IF(S43<>0,MIN((U43-S43)/S43/'Non-SLT Health Risk'!$E$27,'Health_Prem & Reserve Risk'!$AA$17),'Health_Prem & Reserve Risk'!$AA$17)) -> 0.05
B44: 26 | F44: 1 | O44: 0 | X44: =MAX(0%,IF(O44<>0,MIN((Q44-O44)/O44/'Non-SLT Health Risk'!$E$27,'Health_Prem & Reserve Risk'!$X$17),'Health_Prem & Reserve Risk'!$X$17)) -> 0.05 | AA44: =MAX(0%,IF(S44<>0,MIN((U44-S44)/S44/'Non-SLT Health Risk'!$E$27,'Health_Prem & Reserve Risk'!$AA$17),'Health_Prem & Reserve Risk'!$AA$17)) -> 0.05
B45: 27 | F45: 1 | O45: 0 | X45: =MAX(0%,IF(O45<>0,MIN((Q45-O45)/O45/'Non-SLT Health Risk'!$E$27,'Health_Prem & Reserve Risk'!$X$17),'Health_Prem & Reserve Risk'!$X$17)) -> 0.05 | AA45: =MAX(0%,IF(S45<>0,MIN((U45-S45)/S45/'Non-SLT Health Risk'!$E$27,'Health_Prem & Reserve Risk'!$AA$17),'Health_Prem & Reserve Risk'!$AA$17)) -> 0.05
B46: 28 | F46: 1 | O46: 0 | X46: =MAX(0%,IF(O46<>0,MIN((Q46-O46)/O46/'Non-SLT Health Risk'!$E$27,'Health_Prem & Reserve Risk'!$X$17),'Health_Prem & Reserve Risk'!$X$17)) -> 0.05 | AA46: =MAX(0%,IF(S46<>0,MIN((U46-S46)/S46/'Non-SLT Health Risk'!$E$27,'Health_Prem & Reserve Risk'!$AA$17),'Health_Prem & Reserve Risk'!$AA$17)) -> 0.05
B47: 29 | F47: 1 | O47: 0 | X47: =MAX(0%,IF(O47<>0,MIN((Q47-O47)/O47/'Non-SLT Health Risk'!$E$27,'Health_Prem & Reserve Risk'!$X$17),'Health_Prem & Reserve Risk'!$X$17)) -> 0.05 | AA47: =MAX(0%,IF(S47<>0,MIN((U47-S47)/S47/'Non-SLT Health Risk'!$E$27,'Health_Prem & Reserve Risk'!$AA$17),'Health_Prem & Reserve Risk'!$AA$17)) -> 0.05
B48: 30 | F48: 1 | O48: 0 | X48: =MAX(0%,IF(O48<>0,MIN((Q48-O48)/O48/'Non-SLT Health Risk'!$E$27,'Health_Prem & Reserve Risk'!$X$17),'Health_Prem & Reserve Risk'!$X$17)) -> 0.05 | AA48: =MAX(0%,IF(S48<>0,MIN((U48-S48)/S48/'Non-SLT Health Risk'!$E$27,'Health_Prem & Reserve Risk'!$AA$17),'Health_Prem & Reserve Risk'!$AA$17)) -> 0.05
B49: 31 | F49: 1 | O49: 0 | X49: =MAX(0%,IF(O49<>0,MIN((Q49-O49)/O49/'Non-SLT Health Risk'!$E$27,'Health_Prem & Reserve Risk'!$X$17),'Health_Prem & Reserve Risk'!$X$17)) -> 0.05 | AA49: =MAX(0%,IF(S49<>0,MIN((U49-S49)/S49/'Non-SLT Health Risk'!$E$27,'Health_Prem & Reserve Risk'!$AA$17),'Health_Prem & Reserve Risk'!$AA$17)) -> 0.05
B50: 32 | F50: 1 | O50: 0 | X50: =MAX(0%,IF(O50<>0,MIN((Q50-O50)/O50/'Non-SLT Health Risk'!$E$27,'Health_Prem & Reserve Risk'!$X$17),'Health_Prem & Reserve Risk'!$X$17)) -> 0.05 | AA50: =MAX(0%,IF(S50<>0,MIN((U50-S50)/S50/'Non-SLT Health Risk'!$E$27,'Health_Prem & Reserve Risk'!$AA$17),'Health_Prem & Reserve Risk'!$AA$17)) -> 0.05
B51: 33 | F51: 1 | O51: 0 | X51: =MAX(0%,IF(O51<>0,MIN((Q51-O51)/O51/'Non-SLT Health Risk'!$E$27,'Health_Prem & Reserve Risk'!$X$17),'Health_Prem & Reserve Risk'!$X$17)) -> 0.05 | AA51: =MAX(0%,IF(S51<>0,MIN((U51-S51)/S51/'Non-SLT Health Risk'!$E$27,'Health_Prem & Reserve Risk'!$AA$17),'Health_Prem & Reserve Risk'!$AA$17)) -> 0.05
B52: 34 | F52: 1 | O52: 0 | X52: =MAX(0%,IF(O52<>0,MIN((Q52-O52)/O52/'Non-SLT Health Risk'!$E$27,'Health_Prem & Reserve Risk'!$X$17),'Health_Prem & Reserve Risk'!$X$17)) -> 0.05 | AA52: =MAX(0%,IF(S52<>0,MIN((U52-S52)/S52/'Non-SLT Health Risk'!$E$27,'Health_Prem & Reserve Risk'!$AA$17),'Health_Prem & Reserve Risk'!$AA$17)) -> 0.05
B53: 35 | F53: 1 | O53: 0 | X53: =MAX(0%,IF(O53<>0,MIN((Q53-O53)/O53/'Non-SLT Health Risk'!$E$27,'Health_Prem & Reserve Risk'!$X$17),'Health_Prem & Reserve Risk'!$X$17)) -> 0.05 | AA53: =MAX(0%,IF(S53<>0,MIN((U53-S53)/S53/'Non-SLT Health Risk'!$E$27,'Health_Prem & Reserve Risk'!$AA$17),'Health_Prem & Reserve Risk'!$AA$17)) -> 0.05
B54: 36 | F54: 1 | O54: 0 | X54: =MAX(0%,IF(O54<>0,MIN((Q54-O54)/O54/'Non-SLT Health Risk'!$E$27,'Health_Prem & Reserve Risk'!$X$17),'Health_Prem & Reserve Risk'!$X$17)) -> 0.05 | AA54: =MAX(0%,IF(S54<>0,MIN((U54-S54)/S54/'Non-SLT Health Risk'!$E$27,'Health_Prem & Reserve Risk'!$AA$17),'Health_Prem & Reserve Risk'!$AA$17)) -> 0.05
B55: 37 | F55: 1 | O55: 0 | X55: =MAX(0%,IF(O55<>0,MIN((Q55-O55)/O55/'Non-SLT Health Risk'!$E$27,'Health_Prem & Reserve Risk'!$X$17),'Health_Prem & Reserve Risk'!$X$17)) -> 0.05 | AA55: =MAX(0%,IF(S55<>0,MIN((U55-S55)/S55/'Non-SLT Health Risk'!$E$27,'Health_Prem & Reserve Risk'!$AA$17),'Health_Prem & Reserve Risk'!$AA$17)) -> 0.05
B56: 38 | F56: 1 | O56: 0 | X56: =MAX(0%,IF(O56<>0,MIN((Q56-O56)/O56/'Non-SLT Health Risk'!$E$27,'Health_Prem & Reserve Risk'!$X$17),'Health_Prem & Reserve Risk'!$X$17)) -> 0.05 | AA56: =MAX(0%,IF(S56<>0,MIN((U56-S56)/S56/'Non-SLT Health Risk'!$E$27,'Health_Prem & Reserve Risk'!$AA$17),'Health_Prem & Reserve Risk'!$AA$17)) -> 0.05
B57: 39 | F57: 1 | O57: 0 | X57: =MAX(0%,IF(O57<>0,MIN((Q57-O57)/O57/'Non-SLT Health Risk'!$E$27,'Health_Prem & Reserve Risk'!$X$17),'Health_Prem & Reserve Risk'!$X$17)) -> 0.05 | AA57: =MAX(0%,IF(S57<>0,MIN((U57-S57)/S57/'Non-SLT Health Risk'!$E$27,'Health_Prem & Reserve Risk'!$AA$17),'Health_Prem & Reserve Risk'!$AA$17)) -> 0.05
B58: 40 | F58: 1 | O58: 0 | X58: =MAX(0%,IF(O58<>0,MIN((Q58-O58)/O58/'Non-SLT Health Risk'!$E$27,'Health_Prem & Reserve Risk'!$X$17),'Health_Prem & Reserve Risk'!$X$17)) -> 0.05 | AA58: =MAX(0%,IF(S58<>0,MIN((U58-S58)/S58/'Non-SLT Health Risk'!$E$27,'Health_Prem & Reserve Risk'!$AA$17),'Health_Prem & Reserve Risk'!$AA$17)) -> 0.05
B59: 41 | F59: 1 | O59: 0 | X59: =MAX(0%,IF(O59<>0,MIN((Q59-O59)/O59/'Non-SLT Health Risk'!$E$27,'Health_Prem & Reserve Risk'!$X$17),'Health_Prem & Reserve Risk'!$X$17)) -> 0.05 | AA59: =MAX(0%,IF(S59<>0,MIN((U59-S59)/S59/'Non-SLT Health Risk'!$E$27,'Health_Prem & Reserve Risk'!$AA$17),'Health_Prem & Reserve Risk'!$AA$17)) -> 0.05
B60: 42 | F60: 1 | O60: 0 | X60: =MAX(0%,IF(O60<>0,MIN((Q60-O60)/O60/'Non-SLT Health Risk'!$E$27,'Health_Prem & Reserve Risk'!$X$17),'Health_Prem & Reserve Risk'!$X$17)) -> 0.05 | AA60: =MAX(0%,IF(S60<>0,MIN((U60-S60)/S60/'Non-SLT Health Risk'!$E$27,'Health_Prem & Reserve Risk'!$AA$17),'Health_Prem & Reserve Risk'!$AA$17)) -> 0.05
B61: 43 | F61: 1 | O61: 0 | X61: =MAX(0%,IF(O61<>0,MIN((Q61-O61)/O61/'Non-SLT Health Risk'!$E$27,'Health_Prem & Reserve Risk'!$X$17),'Health_Prem & Reserve Risk'!$X$17)) -> 0.05 | AA61: =MAX(0%,IF(S61<>0,MIN((U61-S61)/S61/'Non-SLT Health Risk'!$E$27,'Health_Prem & Reserve Risk'!$AA$17),'Health_Prem & Reserve Risk'!$AA$17)) -> 0.05
B62: 44 | F62: 1 | O62: 0 | X62: =MAX(0%,IF(O62<>0,MIN((Q62-O62)/O62/'Non-SLT Health Risk'!$E$27,'Health_Prem & Reserve Risk'!$X$17),'Health_Prem & Reserve Risk'!$X$17)) -> 0.05 | AA62: =MAX(0%,IF(S62<>0,MIN((U62-S62)/S62/'Non-SLT Health Risk'!$E$27,'Health_Prem & Reserve Risk'!$AA$17),'Health_Prem & Reserve Risk'!$AA$17)) -> 0.05
B63: 45 | F63: 1 | O63: 0 | X63: =MAX(0%,IF(O63<>0,MIN((Q63-O63)/O63/'Non-SLT Health Risk'!$E$27,'Health_Prem & Reserve Risk'!$X$17),'Health_Prem & Reserve Risk'!$X$17)) -> 0.05 | AA63: =MAX(0%,IF(S63<>0,MIN((U63-S63)/S63/'Non-SLT Health Risk'!$E$27,'Health_Prem & Reserve Risk'!$AA$17),'Health_Prem & Reserve Risk'!$AA$17)) -> 0.05
B64: 46 | F64: 1 | O64: 0 | X64: =MAX(0%,IF(O64<>0,MIN((Q64-O64)/O64/'Non-SLT Health Risk'!$E$27,'Health_Prem & Reserve Risk'!$X$17),'Health_Prem & Reserve Risk'!$X$17)) -> 0.05 | AA64: =MAX(0%,IF(S64<>0,MIN((U64-S64)/S64/'Non-SLT Health Risk'!$E$27,'Health_Prem & Reserve Risk'!$AA$17),'Health_Prem & Reserve Risk'!$AA$17)) -> 0.05
B65: 47 | F65: 1 | O65: 0 | X65: =MAX(0%,IF(O65<>0,MIN((Q65-O65)/O65/'Non-SLT Health Risk'!$E$27,'Health_Prem & Reserve Risk'!$X$17),'Health_Prem & Reserve Risk'!$X$17)) -> 0.05 | AA65: =MAX(0%,IF(S65<>0,MIN((U65-S65)/S65/'Non-SLT Health Risk'!$E$27,'Health_Prem & Reserve Risk'!$AA$17),'Health_Prem & Reserve Risk'!$AA$17)) -> 0.05
B66: 48 | F66: 1 | O66: 0 | X66: =MAX(0%,IF(O66<>0,MIN((Q66-O66)/O66/'Non-SLT Health Risk'!$E$27,'Health_Prem & Reserve Risk'!$X$17),'Health_Prem & Reserve Risk'!$X$17)) -> 0.05 | AA66: =MAX(0%,IF(S66<>0,MIN((U66-S66)/S66/'Non-SLT Health Risk'!$E$27,'Health_Prem & Reserve Risk'!$AA$17),'Health_Prem & Reserve Risk'!$AA$17)) -> 0.05
B67: 49 | F67: 1 | O67: 0 | X67: =MAX(0%,IF(O67<>0,MIN((Q67-O67)/O67/'Non-SLT Health Risk'!$E$27,'Health_Prem & Reserve Risk'!$X$17),'Health_Prem & Reserve Risk'!$X$17)) -> 0.05 | AA67: =MAX(0%,IF(S67<>0,MIN((U67-S67)/S67/'Non-SLT Health Risk'!$E$27,'Health_Prem & Reserve Risk'!$AA$17),'Health_Prem & Reserve Risk'!$AA$17)) -> 0.05
B68: 50 | F68: 1 | O68: 0 | X68: =MAX(0%,IF(O68<>0,MIN((Q68-O68)/O68/'Non-SLT Health Risk'!$E$27,'Health_Prem & Reserve Risk'!$X$17),'Health_Prem & Reserve Risk'!$X$17)) -> 0.05 | AA68: =MAX(0%,IF(S68<>0,MIN((U68-S68)/S68/'Non-SLT Health Risk'!$E$27,'Health_Prem & Reserve Risk'!$AA$17),'Health_Prem & Reserve Risk'!$AA$17)) -> 0.05
B69: 51 | F69: 1 | O69: 0 | X69: =MAX(0%,IF(O69<>0,MIN((Q69-O69)/O69/'Non-SLT Health Risk'!$E$27,'Health_Prem & Reserve Risk'!$X$17),'Health_Prem & Reserve Risk'!$X$17)) -> 0.05 | AA69: =MAX(0%,IF(S69<>0,MIN((U69-S69)/S69/'Non-SLT Health Risk'!$E$27,'Health_Prem & Reserve Risk'!$AA$17),'Health_Prem & Reserve Risk'!$AA$17)) -> 0.05
B70: 52 | F70: 1 | O70: 0 | X70: =MAX(0%,IF(O70<>0,MIN((Q70-O70)/O70/'Non-SLT Health Risk'!$E$27,'Health_Prem & Reserve Risk'!$X$17),'Health_Prem & Reserve Risk'!$X$17)) -> 0.05 | AA70: =MAX(0%,IF(S70<>0,MIN((U70-S70)/S70/'Non-SLT Health Risk'!$E$27,'Health_Prem & Reserve Risk'!$AA$17),'Health_Prem & Reserve Risk'!$AA$17)) -> 0.05
B71: 53 | F71: 1 | O71: 0 | X71: =MAX(0%,IF(O71<>0,MIN((Q71-O71)/O71/'Non-SLT Health Risk'!$E$27,'Health_Prem & Reserve Risk'!$X$17),'Health_Prem & Reserve Risk'!$X$17)) -> 0.05 | AA71: =MAX(0%,IF(S71<>0,MIN((U71-S71)/S71/'Non-SLT Health Risk'!$E$27,'Health_Prem & Reserve Risk'!$AA$17),'Health_Prem & Reserve Risk'!$AA$17)) -> 0.05
B72: 54 | F72: 1 | O72: 0 | X72: =MAX(0%,IF(O72<>0,MIN((Q72-O72)/O72/'Non-SLT Health Risk'!$E$27,'Health_Prem & Reserve Risk'!$X$17),'Health_Prem & Reserve Risk'!$X$17)) -> 0.05 | AA72: =MAX(0%,IF(S72<>0,MIN((U72-S72)/S72/'Non-SLT Health Risk'!$E$27,'Health_Prem & Reserve Risk'!$AA$17),'Health_Prem & Reserve Risk'!$AA$17)) -> 0.05
B73: 55 | F73: 1 | O73: 0 | X73: =MAX(0%,IF(O73<>0,MIN((Q73-O73)/O73/'Non-SLT Health Risk'!$E$27,'Health_Prem & Reserve Risk'!$X$17),'Health_Prem & Reserve Risk'!$X$17)) -> 0.05 | AA73: =MAX(0%,IF(S73<>0,MIN((U73-S73)/S73/'Non-SLT Health Risk'!$E$27,'Health_Prem & Reserve Risk'!$AA$17),'Health_Prem & Reserve Risk'!$AA$17)) -> 0.05
B74: 56 | F74: 1 | O74: 0 | X74: =MAX(0%,IF(O74<>0,MIN((Q74-O74)/O74/'Non-SLT Health Risk'!$E$27,'Health_Prem & Reserve Risk'!$X$17),'Health_Prem & Reserve Risk'!$X$17)) -> 0.05 | AA74: =MAX(0%,IF(S74<>0,MIN((U74-S74)/S74/'Non-SLT Health Risk'!$E$27,'Health_Prem & Reserve Risk'!$AA$17),'Health_Prem & Reserve Risk'!$AA$17)) -> 0.05
B75: 57 | F75: 1 | O75: 0 | X75: =MAX(0%,IF(O75<>0,MIN((Q75-O75)/O75/'Non-SLT Health Risk'!$E$27,'Health_Prem & Reserve Risk'!$X$17),'Health_Prem & Reserve Risk'!$X$17)) -> 0.05 | AA75: =MAX(0%,IF(S75<>0,MIN((U75-S75)/S75/'Non-SLT Health Risk'!$E$27,'Health_Prem & Reserve Risk'!$AA$17),'Health_Prem & Reserve Risk'!$AA$17)) -> 0.05
B76: 58 | F76: 1 | O76: 0 | X76: =MAX(0%,IF(O76<>0,MIN((Q76-O76)/O76/'Non-SLT Health Risk'!$E$27,'Health_Prem & Reserve Risk'!$X$17),'Health_Prem & Reserve Risk'!$X$17)) -> 0.05 | AA76: =MAX(0%,IF(S76<>0,MIN((U76-S76)/S76/'Non-SLT Health Risk'!$E$27,'Health_Prem & Reserve Risk'!$AA$17),'Health_Prem & Reserve Risk'!$AA$17)) -> 0.05
B77: 59 | F77: 1 | O77: 0 | X77: =MAX(0%,IF(O77<>0,MIN((Q77-O77)/O77/'Non-SLT Health Risk'!$E$27,'Health_Prem & Reserve Risk'!$X$17),'Health_Prem & Reserve Risk'!$X$17)) -> 0.05 | AA77: =MAX(0%,IF(S77<>0,MIN((U77-S77)/S77/'Non-SLT Health Risk'!$E$27,'Health_Prem & Reserve Risk'!$AA$17),'Health_Prem & Reserve Risk'!$AA$17)) -> 0.05
B78: 60 | F78: 1 | O78: 0 | X78: =MAX(0%,IF(O78<>0,MIN((Q78-O78)/O78/'Non-SLT Health Risk'!$E$27,'Health_Prem & Reserve Risk'!$X$17),'Health_Prem & Reserve Risk'!$X$17)) -> 0.05 | AA78: =MAX(0%,IF(S78<>0,MIN((U78-S78)/S78/'Non-SLT Health Risk'!$E$27,'Health_Prem & Reserve Risk'!$AA$17),'Health_Prem & Reserve Risk'!$AA$17)) -> 0.05
F79: =IF(OFFSET($X$7,$B$16-10,0)=0,1,0) -> 1
B81: 11 | C81: =RIGHT(OFFSET($B$7,B81-10,0),LEN(OFFSET($B$7,B81-10,0))-5) -> - Income Protection & Prop. Reins. | X81: σ(prem,s) | AA81: σ(res,s)
C82: Contract identifier | F82: =IF(OFFSET($X$7,B81-10,0)=0,1,0) -> 1 | G82: Ps | I82: P(last,s) | K82: FP(existing,s) | M82: FP(future,s) | O82: V(prem,) | Q82: Max exposure from V(prem) * | S82: Claims reserve * | U82: Max exposure from in-force * | X82: =OFFSET('Non-SLT Health Risk'!$H$54,'Health_Prem & Reserve Risk'!B81-10,0) -> 0.085 | AA82: =OFFSET('Non-SLT Health Risk'!$L$54,'Health_Prem & Reserve Risk'!B81-10,0) -> 0.14
F83: =IF(OFFSET($X$7,$B$81-10,0)=0,1,0) -> 1
B84: 1 | F84: =IF(B84<=OFFSET($X$7,$B$81-10,0),0,1) -> 1 | O84: =MAX(G84,I84)+K84+M84 -> 0 | X84: =MAX(0%,IF(O84<>0,MIN((Q84-O84)/O84/'Non-SLT Health Risk'!$E$27,'Health_Prem & Reserve Risk'!$X$82),'Health_Prem & Reserve Risk'!$X$82)) -> 0.085 | AA84: =MAX(0%,IF(S84<>0,MIN((U84-S84)/S84/'Non-SLT Health Risk'!$E$27,'Health_Prem & Reserve Risk'!$AA$82),'Health_Prem & Reserve Risk'!$AA$82)) -> 0.14
B85: 2 | F85: =IF(B85<=OFFSET($X$7,$B$81-10,0),0,1) -> 1 | O85: 0 | X85: =MAX(0%,IF(O85<>0,MIN((Q85-O85)/O85/'Non-SLT Health Risk'!$E$27,'Health_Prem & Reserve Risk'!$X$82),'Health_Prem & Reserve Risk'!$X$82)) -> 0.085 | AA85: =MAX(0%,IF(S85<>0,MIN((U85-S85)/S85/'Non-SLT Health Risk'!$E$27,'Health_Prem & Reserve Risk'!$AA$82),'Health_Prem & Reserve Risk'!$AA$82)) -> 0.14
B86: 3 | F86: 1 | O86: 0 | X86: =MAX(0%,IF(O86<>0,MIN((Q86-O86)/O86/'Non-SLT Health Risk'!$E$27,'Health_Prem & Reserve Risk'!$X$82),'Health_Prem & Reserve Risk'!$X$82)) -> 0.085 | AA86: =MAX(0%,IF(S86<>0,MIN((U86-S86)/S86/'Non-SLT Health Risk'!$E$27,'Health_Prem & Reserve Risk'!$AA$82),'Health_Prem & Reserve Risk'!$AA$82)) -> 0.14
B87: 4 | F87: 1 | O87: 0 | X87: =MAX(0%,IF(O87<>0,MIN((Q87-O87)/O87/'Non-SLT Health Risk'!$E$27,'Health_Prem & Reserve Risk'!$X$82),'Health_Prem & Reserve Risk'!$X$82)) -> 0.085 | AA87: =MAX(0%,IF(S87<>0,MIN((U87-S87)/S87/'Non-SLT Health Risk'!$E$27,'Health_Prem & Reserve Risk'!$AA$82),'Health_Prem & Reserve Risk'!$AA$82)) -> 0.14
B88: 5 | F88: 1 | O88: 0 | X88: =MAX(0%,IF(O88<>0,MIN((Q88-O88)/O88/'Non-SLT Health Risk'!$E$27,'Health_Prem & Reserve Risk'!$X$82),'Health_Prem & Reserve Risk'!$X$82)) -> 0.085 | AA88: =MAX(0%,IF(S88<>0,MIN((U88-S88)/S88/'Non-SLT Health Risk'!$E$27,'Health_Prem & Reserve Risk'!$AA$82),'Health_Prem & Reserve Risk'!$AA$82)) -> 0.14
B89: 6 | F89: 1 | O89: 0 | X89: =MAX(0%,IF(O89<>0,MIN((Q89-O89)/O89/'Non-SLT Health Risk'!$E$27,'Health_Prem & Reserve Risk'!$X$82),'Health_Prem & Reserve Risk'!$X$82)) -> 0.085 | AA89: =MAX(0%,IF(S89<>0,MIN((U89-S89)/S89/'Non-SLT Health Risk'!$E$27,'Health_Prem & Reserve Risk'!$AA$82),'Health_Prem & Reserve Risk'!$AA$82)) -> 0.14
B90: 7 | F90: 1 | O90: 0 | X90: =MAX(0%,IF(O90<>0,MIN((Q90-O90)/O90/'Non-SLT Health Risk'!$E$27,'Health_Prem & Reserve Risk'!$X$82),'Health_Prem & Reserve Risk'!$X$82)) -> 0.085 | AA90: =MAX(0%,IF(S90<>0,MIN((U90-S90)/S90/'Non-SLT Health Risk'!$E$27,'Health_Prem & Reserve Risk'!$AA$82),'Health_Prem & Reserve Risk'!$AA$82)) -> 0.14
B91: 8 | F91: 1 | O91: 0 | X91: =MAX(0%,IF(O91<>0,MIN((Q91-O91)/O91/'Non-SLT Health Risk'!$E$27,'Health_Prem & Reserve Risk'!$X$82),'Health_Prem & Reserve Risk'!$X$82)) -> 0.085 | AA91: =MAX(0%,IF(S91<>0,MIN((U91-S91)/S91/'Non-SLT Health Risk'!$E$27,'Health_Prem & Reserve Risk'!$AA$82),'Health_Prem & Reserve Risk'!$AA$82)) -> 0.14
B92: 9 | F92: 1 | O92: 0 | X92: =MAX(0%,IF(O92<>0,MIN((Q92-O92)/O92/'Non-SLT Health Risk'!$E$27,'Health_Prem & Reserve Risk'!$X$82),'Health_Prem & Reserve Risk'!$X$82)) -> 0.085 | AA92: =MAX(0%,IF(S92<>0,MIN((U92-S92)/S92/'Non-SLT Health Risk'!$E$27,'Health_Prem & Reserve Risk'!$AA$82),'Health_Prem & Reserve Risk'!$AA$82)) -> 0.14
B93: 10 | F93: 1 | O93: 0 | X93: =MAX(0%,IF(O93<>0,MIN((Q93-O93)/O93/'Non-SLT Health Risk'!$E$27,'Health_Prem & Reserve Risk'!$X$82),'Health_Prem & Reserve Risk'!$X$82)) -> 0.085 | AA93: =MAX(0%,IF(S93<>0,MIN((U93-S93)/S93/'Non-SLT Health Risk'!$E$27,'Health_Prem & Reserve Risk'!$AA$82),'Health_Prem & Reserve Risk'!$AA$82)) -> 0.14
B94: 11 | F94: 1 | O94: 0 | X94: =MAX(0%,IF(O94<>0,MIN((Q94-O94)/O94/'Non-SLT Health Risk'!$E$27,'Health_Prem & Reserve Risk'!$X$82),'Health_Prem & Reserve Risk'!$X$82)) -> 0.085 | AA94: =MAX(0%,IF(S94<>0,MIN((U94-S94)/S94/'Non-SLT Health Risk'!$E$27,'Health_Prem & Reserve Risk'!$AA$82),'Health_Prem & Reserve Risk'!$AA$82)) -> 0.14
B95: 12 | F95: 1 | O95: 0 | X95: =MAX(0%,IF(O95<>0,MIN((Q95-O95)/O95/'Non-SLT Health Risk'!$E$27,'Health_Prem & Reserve Risk'!$X$82),'Health_Prem & Reserve Risk'!$X$82)) -> 0.085 | AA95: =MAX(0%,IF(S95<>0,MIN((U95-S95)/S95/'Non-SLT Health Risk'!$E$27,'Health_Prem & Reserve Risk'!$AA$82),'Health_Prem & Reserve Risk'!$AA$82)) -> 0.14
B96: 13 | F96: 1 | O96: 0 | X96: =MAX(0%,IF(O96<>0,MIN((Q96-O96)/O96/'Non-SLT Health Risk'!$E$27,'Health_Prem & Reserve Risk'!$X$82),'Health_Prem & Reserve Risk'!$X$82)) -> 0.085 | AA96: =MAX(0%,IF(S96<>0,MIN((U96-S96)/S96/'Non-SLT Health Risk'!$E$27,'Health_Prem & Reserve Risk'!$AA$82),'Health_Prem & Reserve Risk'!$AA$82)) -> 0.14
B97: 14 | F97: 1 | O97: 0 | X97: =MAX(0%,IF(O97<>0,MIN((Q97-O97)/O97/'Non-SLT Health Risk'!$E$27,'Health_Prem & Reserve Risk'!$X$82),'Health_Prem & Reserve Risk'!$X$82)) -> 0.085 | AA97: =MAX(0%,IF(S97<>0,MIN((U97-S97)/S97/'Non-SLT Health Risk'!$E$27,'Health_Prem & Reserve Risk'!$AA$82),'Health_Prem & Reserve Risk'!$AA$82)) -> 0.14
B98: 15 | F98: 1 | O98: 0 | X98: =MAX(0%,IF(O98<>0,MIN((Q98-O98)/O98/'Non-SLT Health Risk'!$E$27,'Health_Prem & Reserve Risk'!$X$82),'Health_Prem & Reserve Risk'!$X$82)) -> 0.085 | AA98: =MAX(0%,IF(S98<>0,MIN((U98-S98)/S98/'Non-SLT Health Risk'!$E$27,'Health_Prem & Reserve Risk'!$AA$82),'Health_Prem & Reserve Risk'!$AA$82)) -> 0.14
B99: 16 | F99: 1 | O99: 0 | X99: =MAX(0%,IF(O99<>0,MIN((Q99-O99)/O99/'Non-SLT Health Risk'!$E$27,'Health_Prem & Reserve Risk'!$X$82),'Health_Prem & Reserve Risk'!$X$82)) -> 0.085 | AA99: =MAX(0%,IF(S99<>0,MIN((U99-S99)/S99/'Non-SLT Health Risk'!$E$27,'Health_Prem & Reserve Risk'!$AA$82),'Health_Prem & Reserve Risk'!$AA$82)) -> 0.14
B100: 17 | F100: 1 | O100: 0 | X100: =MAX(0%,IF(O100<>0,MIN((Q100-O100)/O100/'Non-SLT Health Risk'!$E$27,'Health_Prem & Reserve Risk'!$X$82),'Health_Prem & Reserve Risk'!$X$82)) -> 0.085 | AA100: =MAX(0%,IF(S100<>0,MIN((U100-S100)/S100/'Non-SLT Health Risk'!$E$27,'Health_Prem & Reserve Risk'!$AA$82),'Health_Prem & Reserve Risk'!$AA$82)) -> 0.14
B101: 18 | F101: 1 | O101: 0 | X101: =MAX(0%,IF(O101<>0,MIN((Q101-O101)/O101/'Non-SLT Health Risk'!$E$27,'Health_Prem & Reserve Risk'!$X$82),'Health_Prem & Reserve Risk'!$X$82)) -> 0.085 | AA101: =MAX(0%,IF(S101<>0,MIN((U101-S101)/S101/'Non-SLT Health Risk'!$E$27,'Health_Prem & Reserve Risk'!$AA$82),'Health_Prem & Reserve Risk'!$AA$82)) -> 0.14
B102: 19 | F102: 1 | O102: 0 | X102: =MAX(0%,IF(O102<>0,MIN((Q102-O102)/O102/'Non-SLT Health Risk'!$E$27,'Health_Prem & Reserve Risk'!$X$82),'Health_Prem & Reserve Risk'!$X$82)) -> 0.085 | AA102: =MAX(0%,IF(S102<>0,MIN((U102-S102)/S102/'Non-SLT Health Risk'!$E$27,'Health_Prem & Reserve Risk'!$AA$82),'Health_Prem & Reserve Risk'!$AA$82)) -> 0.14
B103: 20 | F103: 1 | O103: 0 | X103: =MAX(0%,IF(O103<>0,MIN((Q103-O103)/O103/'Non-SLT Health Risk'!$E$27,'Health_Prem & Reserve Risk'!$X$82),'Health_Prem & Reserve Risk'!$X$82)) -> 0.085 | AA103: =MAX(0%,IF(S103<>0,MIN((U103-S103)/S103/'Non-SLT Health Risk'!$E$27,'Health_Prem & Reserve Risk'!$AA$82),'Health_Prem & Reserve Risk'!$AA$82)) -> 0.14
B104: 21 | F104: 1 | O104: 0 | X104: =MAX(0%,IF(O104<>0,MIN((Q104-O104)/O104/'Non-SLT Health Risk'!$E$27,'Health_Prem & Reserve Risk'!$X$82),'Health_Prem & Reserve Risk'!$X$82)) -> 0.085 | AA104: =MAX(0%,IF(S104<>0,MIN((U104-S104)/S104/'Non-SLT Health Risk'!$E$27,'Health_Prem & Reserve Risk'!$AA$82),'Health_Prem & Reserve Risk'!$AA$82)) -> 0.14
B105: 22 | F105: 1 | O105: 0 | X105: =MAX(0%,IF(O105<>0,MIN((Q105-O105)/O105/'Non-SLT Health Risk'!$E$27,'Health_Prem & Reserve Risk'!$X$82),'Health_Prem & Reserve Risk'!$X$82)) -> 0.085 | AA105: =MAX(0%,IF(S105<>0,MIN((U105-S105)/S105/'Non-SLT Health Risk'!$E$27,'Health_Prem & Reserve Risk'!$AA$82),'Health_Prem & Reserve Risk'!$AA$82)) -> 0.14
B106: 23 | F106: 1 | O106: 0 | X106: =MAX(0%,IF(O106<>0,MIN((Q106-O106)/O106/'Non-SLT Health Risk'!$E$27,'Health_Prem & Reserve Risk'!$X$82),'Health_Prem & Reserve Risk'!$X$82)) -> 0.085 | AA106: =MAX(0%,IF(S106<>0,MIN((U106-S106)/S106/'Non-SLT Health Risk'!$E$27,'Health_Prem & Reserve Risk'!$AA$82),'Health_Prem & Reserve Risk'!$AA$82)) -> 0.14
B107: 24 | F107: 1 | O107: 0 | X107: =MAX(0%,IF(O107<>0,MIN((Q107-O107)/O107/'Non-SLT Health Risk'!$E$27,'Health_Prem & Reserve Risk'!$X$82),'Health_Prem & Reserve Risk'!$X$82)) -> 0.085 | AA107: =MAX(0%,IF(S107<>0,MIN((U107-S107)/S107/'Non-SLT Health Risk'!$E$27,'Health_Prem & Reserve Risk'!$AA$82),'Health_Prem & Reserve Risk'!$AA$82)) -> 0.14
B108: 25 | F108: 1 | O108: 0 | X108: =MAX(0%,IF(O108<>0,MIN((Q108-O108)/O108/'Non-SLT Health Risk'!$E$27,'Health_Prem & Reserve Risk'!$X$82),'Health_Prem & Reserve Risk'!$X$82)) -> 0.085 | AA108: =MAX(0%,IF(S108<>0,MIN((U108-S108)/S108/'Non-SLT Health Risk'!$E$27,'Health_Prem & Reserve Risk'!$AA$82),'Health_Prem & Reserve Risk'!$AA$82)) -> 0.14
B109: 26 | F109: 1 | O109: 0 | X109: =MAX(0%,IF(O109<>0,MIN((Q109-O109)/O109/'Non-SLT Health Risk'!$E$27,'Health_Prem & Reserve Risk'!$X$82),'Health_Prem & Reserve Risk'!$X$82)) -> 0.085 | AA109: =MAX(0%,IF(S109<>0,MIN((U109-S109)/S109/'Non-SLT Health Risk'!$E$27,'Health_Prem & Reserve Risk'!$AA$82),'Health_Prem & Reserve Risk'!$AA$82)) -> 0.14
B110: 27 | F110: 1 | O110: 0 | X110: =MAX(0%,IF(O110<>0,MIN((Q110-O110)/O110/'Non-SLT Health Risk'!$E$27,'Health_Prem & Reserve Risk'!$X$82),'Health_Prem & Reserve Risk'!$X$82)) -> 0.085 | AA110: =MAX(0%,IF(S110<>0,MIN((U110-S110)/S110/'Non-SLT Health Risk'!$E$27,'Health_Prem & Reserve Risk'!$AA$82),'Health_Prem & Reserve Risk'!$AA$82)) -> 0.14
B111: 28 | F111: 1 | O111: 0 | X111: =MAX(0%,IF(O111<>0,MIN((Q111-O111)/O111/'Non-SLT Health Risk'!$E$27,'Health_Prem & Reserve Risk'!$X$82),'Health_Prem & Reserve Risk'!$X$82)) -> 0.085 | AA111: =MAX(0%,IF(S111<>0,MIN((U111-S111)/S111/'Non-SLT Health Risk'!$E$27,'Health_Prem & Reserve Risk'!$AA$82),'Health_Prem & Reserve Risk'!$AA$82)) -> 0.14
B112: 29 | F112: 1 | O112: 0 | X112: =MAX(0%,IF(O112<>0,MIN((Q112-O112)/O112/'Non-SLT Health Risk'!$E$27,'Health_Prem & Reserve Risk'!$X$82),'Health_Prem & Reserve Risk'!$X$82)) -> 0.085 | AA112: =MAX(0%,IF(S112<>0,MIN((U112-S112)/S112/'Non-SLT Health Risk'!$E$27,'Health_Prem & Reserve Risk'!$AA$82),'Health_Prem & Reserve Risk'!$AA$82)) -> 0.14
B113: 30 | F113: 1 | O113: 0 | X113: =MAX(0%,IF(O113<>0,MIN((Q113-O113)/O113/'Non-SLT Health Risk'!$E$27,'Health_Prem & Reserve Risk'!$X$82),'Health_Prem & Reserve Risk'!$X$82)) -> 0.085 | AA113: =MAX(0%,IF(S113<>0,MIN((U113-S113)/S113/'Non-SLT Health Risk'!$E$27,'Health_Prem & Reserve Risk'!$AA$82),'Health_Prem & Reserve Risk'!$AA$82)) -> 0.14
B114: 31 | F114: 1 | O114: 0 | X114: =MAX(0%,IF(O114<>0,MIN((Q114-O114)/O114/'Non-SLT Health Risk'!$E$27,'Health_Prem & Reserve Risk'!$X$82),'Health_Prem & Reserve Risk'!$X$82)) -> 0.085 | AA114: =MAX(0%,IF(S114<>0,MIN((U114-S114)/S114/'Non-SLT Health Risk'!$E$27,'Health_Prem & Reserve Risk'!$AA$82),'Health_Prem & Reserve Risk'!$AA$82)) -> 0.14
B115: 32 | F115: 1 | O115: 0 | X115: =MAX(0%,IF(O115<>0,MIN((Q115-O115)/O115/'Non-SLT Health Risk'!$E$27,'Health_Prem & Reserve Risk'!$X$82),'Health_Prem & Reserve Risk'!$X$82)) -> 0.085 | AA115: =MAX(0%,IF(S115<>0,MIN((U115-S115)/S115/'Non-SLT Health Risk'!$E$27,'Health_Prem & Reserve Risk'!$AA$82),'Health_Prem & Reserve Risk'!$AA$82)) -> 0.14
B116: 33 | F116: 1 | O116: 0 | X116: =MAX(0%,IF(O116<>0,MIN((Q116-O116)/O116/'Non-SLT Health Risk'!$E$27,'Health_Prem & Reserve Risk'!$X$82),'Health_Prem & Reserve Risk'!$X$82)) -> 0.085 | AA116: =MAX(0%,IF(S116<>0,MIN((U116-S116)/S116/'Non-SLT Health Risk'!$E$27,'Health_Prem & Reserve Risk'!$AA$82),'Health_Prem & Reserve Risk'!$AA$82)) -> 0.14
B117: 34 | F117: 1 | O117: 0 | X117: =MAX(0%,IF(O117<>0,MIN((Q117-O117)/O117/'Non-SLT Health Risk'!$E$27,'Health_Prem & Reserve Risk'!$X$82),'Health_Prem & Reserve Risk'!$X$82)) -> 0.085 | AA117: =MAX(0%,IF(S117<>0,MIN((U117-S117)/S117/'Non-SLT Health Risk'!$E$27,'Health_Prem & Reserve Risk'!$AA$82),'Health_Prem & Reserve Risk'!$AA$82)) -> 0.14
B118: 35 | F118: 1 | O118: 0 | X118: =MAX(0%,IF(O118<>0,MIN((Q118-O118)/O118/'Non-SLT Health Risk'!$E$27,'Health_Prem & Reserve Risk'!$X$82),'Health_Prem & Reserve Risk'!$X$82)) -> 0.085 | AA118: =MAX(0%,IF(S118<>0,MIN((U118-S118)/S118/'Non-SLT Health Risk'!$E$27,'Health_Prem & Reserve Risk'!$AA$82),'Health_Prem & Reserve Risk'!$AA$82)) -> 0.14
B119: 36 | F119: 1 | O119: 0 | X119: =MAX(0%,IF(O119<>0,MIN((Q119-O119)/O119/'Non-SLT Health Risk'!$E$27,'Health_Prem & Reserve Risk'!$X$82),'Health_Prem & Reserve Risk'!$X$82)) -> 0.085 | AA119: =MAX(0%,IF(S119<>0,MIN((U119-S119)/S119/'Non-SLT Health Risk'!$E$27,'Health_Prem & Reserve Risk'!$AA$82),'Health_Prem & Reserve Risk'!$AA$82)) -> 0.14
B120: 37 | F120: 1 | O120: 0 | X120: =MAX(0%,IF(O120<>0,MIN((Q120-O120)/O120/'Non-SLT Health Risk'!$E$27,'Health_Prem & Reserve Risk'!$X$82),'Health_Prem & Reserve Risk'!$X$82)) -> 0.085 | AA120: =MAX(0%,IF(S120<>0,MIN((U120-S120)/S120/'Non-SLT Health Risk'!$E$27,'Health_Prem & Reserve Risk'!$AA$82),'Health_Prem & Reserve Risk'!$AA$82)) -> 0.14
B121: 38 | F121: 1 | O121: 0 | X121: =MAX(0%,IF(O121<>0,MIN((Q121-O121)/O121/'Non-SLT Health Risk'!$E$27,'Health_Prem & Reserve Risk'!$X$82),'Health_Prem & Reserve Risk'!$X$82)) -> 0.085 | AA121: =MAX(0%,IF(S121<>0,MIN((U121-S121)/S121/'Non-SLT Health Risk'!$E$27,'Health_Prem & Reserve Risk'!$AA$82),'Health_Prem & Reserve Risk'!$AA$82)) -> 0.14
B122: 39 | F122: 1 | O122: 0 | X122: =MAX(0%,IF(O122<>0,MIN((Q122-O122)/O122/'Non-SLT Health Risk'!$E$27,'Health_Prem & Reserve Risk'!$X$82),'Health_Prem & Reserve Risk'!$X$82)) -> 0.085 | AA122: =MAX(0%,IF(S122<>0,MIN((U122-S122)/S122/'Non-SLT Health Risk'!$E$27,'Health_Prem & Reserve Risk'!$AA$82),'Health_Prem & Reserve Risk'!$AA$82)) -> 0.14
B123: 40 | F123: 1 | O123: 0 | X123: =MAX(0%,IF(O123<>0,MIN((Q123-O123)/O123/'Non-SLT Health Risk'!$E$27,'Health_Prem & Reserve Risk'!$X$82),'Health_Prem & Reserve Risk'!$X$82)) -> 0.085 | AA123: =MAX(0%,IF(S123<>0,MIN((U123-S123)/S123/'Non-SLT Health Risk'!$E$27,'Health_Prem & Reserve Risk'!$AA$82),'Health_Prem & Reserve Risk'!$AA$82)) -> 0.14
B124: 41 | F124: 1 | O124: 0 | X124: =MAX(0%,IF(O124<>0,MIN((Q124-O124)/O124/'Non-SLT Health Risk'!$E$27,'Health_Prem & Reserve Risk'!$X$82),'Health_Prem & Reserve Risk'!$X$82)) -> 0.085 | AA124: =MAX(0%,IF(S124<>0,MIN((U124-S124)/S124/'Non-SLT Health Risk'!$E$27,'Health_Prem & Reserve Risk'!$AA$82),'Health_Prem & Reserve Risk'!$AA$82)) -> 0.14
B125: 42 | F125: 1 | O125: 0 | X125: =MAX(0%,IF(O125<>0,MIN((Q125-O125)/O125/'Non-SLT Health Risk'!$E$27,'Health_Prem & Reserve Risk'!$X$82),'Health_Prem & Reserve Risk'!$X$82)) -> 0.085 | AA125: =MAX(0%,IF(S125<>0,MIN((U125-S125)/S125/'Non-SLT Health Risk'!$E$27,'Health_Prem & Reserve Risk'!$AA$82),'Health_Prem & Reserve Risk'!$AA$82)) -> 0.14
B126: 43 | F126: 1 | O126: 0 | X126: =MAX(0%,IF(O126<>0,MIN((Q126-O126)/O126/'Non-SLT Health Risk'!$E$27,'Health_Prem & Reserve Risk'!$X$82),'Health_Prem & Reserve Risk'!$X$82)) -> 0.085 | AA126: =MAX(0%,IF(S126<>0,MIN((U126-S126)/S126/'Non-SLT Health Risk'!$E$27,'Health_Prem & Reserve Risk'!$AA$82),'Health_Prem & Reserve Risk'!$AA$82)) -> 0.14
B127: 44 | F127: 1 | O127: 0 | X127: =MAX(0%,IF(O127<>0,MIN((Q127-O127)/O127/'Non-SLT Health Risk'!$E$27,'Health_Prem & Reserve Risk'!$X$82),'Health_Prem & Reserve Risk'!$X$82)) -> 0.085 | AA127: =MAX(0%,IF(S127<>0,MIN((U127-S127)/S127/'Non-SLT Health Risk'!$E$27,'Health_Prem & Reserve Risk'!$AA$82),'Health_Prem & Reserve Risk'!$AA$82)) -> 0.14
B128: 45 | F128: 1 | O128: 0 | X128: =MAX(0%,IF(O128<>0,MIN((Q128-O128)/O128/'Non-SLT Health Risk'!$E$27,'Health_Prem & Reserve Risk'!$X$82),'Health_Prem & Reserve Risk'!$X$82)) -> 0.085 | AA128: =MAX(0%,IF(S128<>0,MIN((U128-S128)/S128/'Non-SLT Health Risk'!$E$27,'Health_Prem & Reserve Risk'!$AA$82),'Health_Prem & Reserve Risk'!$AA$82)) -> 0.14
B129: 46 | F129: 1 | O129: 0 | X129: =MAX(0%,IF(O129<>0,MIN((Q129-O129)/O129/'Non-SLT Health Risk'!$E$27,'Health_Prem & Reserve Risk'!$X$82),'Health_Prem & Reserve Risk'!$X$82)) -> 0.085 | AA129: =MAX(0%,IF(S129<>0,MIN((U129-S129)/S129/'Non-SLT Health Risk'!$E$27,'Health_Prem & Reserve Risk'!$AA$82),'Health_Prem & Reserve Risk'!$AA$82)) -> 0.14
B130: 47 | F130: 1 | O130: 0 | X130: =MAX(0%,IF(O130<>0,MIN((Q130-O130)/O130/'Non-SLT Health Risk'!$E$27,'Health_Prem & Reserve Risk'!$X$82),'Health_Prem & Reserve Risk'!$X$82)) -> 0.085 | AA130: =MAX(0%,IF(S130<>0,MIN((U130-S130)/S130/'Non-SLT Health Risk'!$E$27,'Health_Prem & Reserve Risk'!$AA$82),'Health_Prem & Reserve Risk'!$AA$82)) -> 0.14
B131: 48 | F131: 1 | O131: 0 | X131: =MAX(0%,IF(O131<>0,MIN((Q131-O131)/O131/'Non-SLT Health Risk'!$E$27,'Health_Prem & Reserve Risk'!$X$82),'Health_Prem & Reserve Risk'!$X$82)) -> 0.085 | AA131: =MAX(0%,IF(S131<>0,MIN((U131-S131)/S131/'Non-SLT Health Risk'!$E$27,'Health_Prem & Reserve Risk'!$AA$82),'Health_Prem & Reserve Risk'!$AA$82)) -> 0.14
B132: 49 | F132: 1 | O132: 0 | X132: =MAX(0%,IF(O132<>0,MIN((Q132-O132)/O132/'Non-SLT Health Risk'!$E$27,'Health_Prem & Reserve Risk'!$X$82),'Health_Prem & Reserve Risk'!$X$82)) -> 0.085 | AA132: =MAX(0%,IF(S132<>0,MIN((U132-S132)/S132/'Non-SLT Health Risk'!$E$27,'Health_Prem & Reserve Risk'!$AA$82),'Health_Prem & Reserve Risk'!$AA$82)) -> 0.14
B133: 50 | F133: 1 | O133: 0 | X133: =MAX(0%,IF(O133<>0,MIN((Q133-O133)/O133/'Non-SLT Health Risk'!$E$27,'Health_Prem & Reserve Risk'!$X$82),'Health_Prem & Reserve Risk'!$X$82)) -> 0.085 | AA133: =MAX(0%,IF(S133<>0,MIN((U133-S133)/S133/'Non-SLT Health Risk'!$E$27,'Health_Prem & Reserve Risk'!$AA$82),'Health_Prem & Reserve Risk'!$AA$82)) -> 0.14
B134: 51 | F134: 1 | O134: 0 | X134: =MAX(0%,IF(O134<>0,MIN((Q134-O134)/O134/'Non-SLT Health Risk'!$E$27,'Health_Prem & Reserve Risk'!$X$82),'Health_Prem & Reserve Risk'!$X$82)) -> 0.085 | AA134: =MAX(0%,IF(S134<>0,MIN((U134-S134)/S134/'Non-SLT Health Risk'!$E$27,'Health_Prem & Reserve Risk'!$AA$82),'Health_Prem & Reserve Risk'!$AA$82)) -> 0.14
B135: 52 | F135: 1 | O135: 0 | X135: =MAX(0%,IF(O135<>0,MIN((Q135-O135)/O135/'Non-SLT Health Risk'!$E$27,'Health_Prem & Reserve Risk'!$X$82),'Health_Prem & Reserve Risk'!$X$82)) -> 0.085 | AA135: =MAX(0%,IF(S135<>0,MIN((U135-S135)/S135/'Non-SLT Health Risk'!$E$27,'Health_Prem & Reserve Risk'!$AA$82),'Health_Prem & Reserve Risk'!$AA$82)) -> 0.14
B136: 53 | F136: 1 | O136: 0 | X136: =MAX(0%,IF(O136<>0,MIN((Q136-O136)/O136/'Non-SLT Health Risk'!$E$27,'Health_Prem & Reserve Risk'!$X$82),'Health_Prem & Reserve Risk'!$X$82)) -> 0.085 | AA136: =MAX(0%,IF(S136<>0,MIN((U136-S136)/S136/'Non-SLT Health Risk'!$E$27,'Health_Prem & Reserve Risk'!$AA$82),'Health_Prem & Reserve Risk'!$AA$82)) -> 0.14
B137: 54 | F137: 1 | O137: 0 | X137: =MAX(0%,IF(O137<>0,MIN((Q137-O137)/O137/'Non-SLT Health Risk'!$E$27,'Health_Prem & Reserve Risk'!$X$82),'Health_Prem & Reserve Risk'!$X$82)) -> 0.085 | AA137: =MAX(0%,IF(S137<>0,MIN((U137-S137)/S137/'Non-SLT Health Risk'!$E$27,'Health_Prem & Reserve Risk'!$AA$82),'Health_Prem & Reserve Risk'!$AA$82)) -> 0.14
B138: 55 | F138: 1 | O138: 0 | X138: =MAX(0%,IF(O138<>0,MIN((Q138-O138)/O138/'Non-SLT Health Risk'!$E$27,'Health_Prem & Reserve Risk'!$X$82),'Health_Prem & Reserve Risk'!$X$82)) -> 0.085 | AA138: =MAX(0%,IF(S138<>0,MIN((U138-S138)/S138/'Non-SLT Health Risk'!$E$27,'Health_Prem & Reserve Risk'!$AA$82),'Health_Prem & Reserve Risk'!$AA$82)) -> 0.14
B139: 56 | F139: 1 | O139: 0 | X139: =MAX(0%,IF(O139<>0,MIN((Q139-O139)/O139/'Non-SLT Health Risk'!$E$27,'Health_Prem & Reserve Risk'!$X$82),'Health_Prem & Reserve Risk'!$X$82)) -> 0.085 | AA139: =MAX(0%,IF(S139<>0,MIN((U139-S139)/S139/'Non-SLT Health Risk'!$E$27,'Health_Prem & Reserve Risk'!$AA$82),'Health_Prem & Reserve Risk'!$AA$82)) -> 0.14
B140: 57 | F140: 1 | O140: 0 | X140: =MAX(0%,IF(O140<>0,MIN((Q140-O140)/O140/'Non-SLT Health Risk'!$E$27,'Health_Prem & Reserve Risk'!$X$82),'Health_Prem & Reserve Risk'!$X$82)) -> 0.085 | AA140: =MAX(0%,IF(S140<>0,MIN((U140-S140)/S140/'Non-SLT Health Risk'!$E$27,'Health_Prem & Reserve Risk'!$AA$82),'Health_Prem & Reserve Risk'!$AA$82)) -> 0.14
B141: 58 | F141: 1 | O141: 0 | X141: =MAX(0%,IF(O141<>0,MIN((Q141-O141)/O141/'Non-SLT Health Risk'!$E$27,'Health_Prem & Reserve Risk'!$X$82),'Health_Prem & Reserve Risk'!$X$82)) -> 0.085 | AA141: =MAX(0%,IF(S141<>0,MIN((U141-S141)/S141/'Non-SLT Health Risk'!$E$27,'Health_Prem & Reserve Risk'!$AA$82),'Health_Prem & Reserve Risk'!$AA$82)) -> 0.14
B142: 59 | F142: 1 | O142: 0 | X142: =MAX(0%,IF(O142<>0,MIN((Q142-O142)/O142/'Non-SLT Health Risk'!$E$27,'Health_Prem & Reserve Risk'!$X$82),'Health_Prem & Reserve Risk'!$X$82)) -> 0.085 | AA142: =MAX(0%,IF(S142<>0,MIN((U142-S142)/S142/'Non-SLT Health Risk'!$E$27,'Health_Prem & Reserve Risk'!$AA$82),'Health_Prem & Reserve Risk'!$AA$82)) -> 0.14
B143: 60 | F143: 1 | O143: 0 | X143: =MAX(0%,IF(O143<>0,MIN((Q143-O143)/O143/'Non-SLT Health Risk'!$E$27,'Health_Prem & Reserve Risk'!$X$82),'Health_Prem & Reserve Risk'!$X$82)) -> 0.085 | AA143: =MAX(0%,IF(S143<>0,MIN((U143-S143)/S143/'Non-SLT Health Risk'!$E$27,'Health_Prem & Reserve Risk'!$AA$82),'Health_Prem & Reserve Risk'!$AA$82)) -> 0.14
F144: =IF(OFFSET($X$7,$B$81-10,0)=0,1,0) -> 1
B146: 12 | C146: =RIGHT(OFFSET($B$7,B146-10,0),LEN(OFFSET($B$7,B146-10,0))-5) -> - Workers' compensation & Prop. Reins. | X146: σ(prem,s) | AA146: σ(res,s)
C147: Contract identifier | F147: =IF(OFFSET($X$7,B146-10,0)=0,1,0) -> 1 | G147: Ps | I147: P(last,s) | K147: FP(existing,s) | M147: FP(future,s) | O147: V(prem,) | Q147: Max exposure from V(prem) * | S147: Claims reserve * | U147: Max exposure from in-force * | X147: =OFFSET('Non-SLT Health Risk'!$H$54,'Health_Prem & Reserve Risk'!B146-10,0) -> 0.08 | AA147: =OFFSET('Non-SLT Health Risk'!$L$54,'Health_Prem & Reserve Risk'!B146-10,0) -> 0.11
F148: =IF(OFFSET($X$7,$B$146-10,0)=0,1,0) -> 1
B149: 1 | F149: =IF(B149<=OFFSET($X$7,$B$146-10,0),0,1) -> 1 | O149: =MAX(G149,I149)+K149+M149 -> 0 | X149: =MAX(0%,IF(O149<>0,MIN((Q149-O149)/O149/'Non-SLT Health Risk'!$E$27,'Health_Prem & Reserve Risk'!$X$147),'Health_Prem & Reserve Risk'!$X$147)) -> 0.08 | AA149: =MAX(0%,IF(S149<>0,MIN((U149-S149)/S149/'Non-SLT Health Risk'!$E$27,'Health_Prem & Reserve Risk'!$AA$147),'Health_Prem & Reserve Risk'!$AA$147)) -> 0.11
B150: 2 | F150: =IF(B150<=OFFSET($X$7,$B$146-10,0),0,1) -> 1 | O150: 0 | X150: =MAX(0%,IF(O150<>0,MIN((Q150-O150)/O150/'Non-SLT Health Risk'!$E$27,'Health_Prem & Reserve Risk'!$X$147),'Health_Prem & Reserve Risk'!$X$147)) -> 0.08 | AA150: =MAX(0%,IF(S150<>0,MIN((U150-S150)/S150/'Non-SLT Health Risk'!$E$27,'Health_Prem & Reserve Risk'!$AA$147),'Health_Prem & Reserve Risk'!$AA$147)) -> 0.11
B151: 3 | F151: 1 | O151: 0 | X151: =MAX(0%,IF(O151<>0,MIN((Q151-O151)/O151/'Non-SLT Health Risk'!$E$27,'Health_Prem & Reserve Risk'!$X$147),'Health_Prem & Reserve Risk'!$X$147)) -> 0.08 | AA151: =MAX(0%,IF(S151<>0,MIN((U151-S151)/S151/'Non-SLT Health Risk'!$E$27,'Health_Prem & Reserve Risk'!$AA$147),'Health_Prem & Reserve Risk'!$AA$147)) -> 0.11
B152: 4 | F152: 1 | O152: 0 | X152: =MAX(0%,IF(O152<>0,MIN((Q152-O152)/O152/'Non-SLT Health Risk'!$E$27,'Health_Prem & Reserve Risk'!$X$147),'Health_Prem & Reserve Risk'!$X$147)) -> 0.08 | AA152: =MAX(0%,IF(S152<>0,MIN((U152-S152)/S152/'Non-SLT Health Risk'!$E$27,'Health_Prem & Reserve Risk'!$AA$147),'Health_Prem & Reserve Risk'!$AA$147)) -> 0.11
B153: 5 | F153: 1 | O153: 0 | X153: =MAX(0%,IF(O153<>0,MIN((Q153-O153)/O153/'Non-SLT Health Risk'!$E$27,'Health_Prem & Reserve Risk'!$X$147),'Health_Prem & Reserve Risk'!$X$147)) -> 0.08 | AA153: =MAX(0%,IF(S153<>0,MIN((U153-S153)/S153/'Non-SLT Health Risk'!$E$27,'Health_Prem & Reserve Risk'!$AA$147),'Health_Prem & Reserve Risk'!$AA$147)) -> 0.11
B154: 6 | F154: 1 | O154: 0 | X154: =MAX(0%,IF(O154<>0,MIN((Q154-O154)/O154/'Non-SLT Health Risk'!$E$27,'Health_Prem & Reserve Risk'!$X$147),'Health_Prem & Reserve Risk'!$X$147)) -> 0.08 | AA154: =MAX(0%,IF(S154<>0,MIN((U154-S154)/S154/'Non-SLT Health Risk'!$E$27,'Health_Prem & Reserve Risk'!$AA$147),'Health_Prem & Reserve Risk'!$AA$147)) -> 0.11
B155: 7 | F155: 1 | O155: 0 | X155: =MAX(0%,IF(O155<>0,MIN((Q155-O155)/O155/'Non-SLT Health Risk'!$E$27,'Health_Prem & Reserve Risk'!$X$147),'Health_Prem & Reserve Risk'!$X$147)) -> 0.08 | AA155: =MAX(0%,IF(S155<>0,MIN((U155-S155)/S155/'Non-SLT Health Risk'!$E$27,'Health_Prem & Reserve Risk'!$AA$147),'Health_Prem & Reserve Risk'!$AA$147)) -> 0.11
B156: 8 | F156: 1 | O156: 0 | X156: =MAX(0%,IF(O156<>0,MIN((Q156-O156)/O156/'Non-SLT Health Risk'!$E$27,'Health_Prem & Reserve Risk'!$X$147),'Health_Prem & Reserve Risk'!$X$147)) -> 0.08 | AA156: =MAX(0%,IF(S156<>0,MIN((U156-S156)/S156/'Non-SLT Health Risk'!$E$27,'Health_Prem & Reserve Risk'!$AA$147),'Health_Prem & Reserve Risk'!$AA$147)) -> 0.11
B157: 9 | F157: 1 | O157: 0 | X157: =MAX(0%,IF(O157<>0,MIN((Q157-O157)/O157/'Non-SLT Health Risk'!$E$27,'Health_Prem & Reserve Risk'!$X$147),'Health_Prem & Reserve Risk'!$X$147)) -> 0.08 | AA157: =MAX(0%,IF(S157<>0,MIN((U157-S157)/S157/'Non-SLT Health Risk'!$E$27,'Health_Prem & Reserve Risk'!$AA$147),'Health_Prem & Reserve Risk'!$AA$147)) -> 0.11
B158: 10 | F158: 1 | O158: 0 | X158: =MAX(0%,IF(O158<>0,MIN((Q158-O158)/O158/'Non-SLT Health Risk'!$E$27,'Health_Prem & Reserve Risk'!$X$147),'Health_Prem & Reserve Risk'!$X$147)) -> 0.08 | AA158: =MAX(0%,IF(S158<>0,MIN((U158-S158)/S158/'Non-SLT Health Risk'!$E$27,'Health_Prem & Reserve Risk'!$AA$147),'Health_Prem & Reserve Risk'!$AA$147)) -> 0.11
B159: 11 | F159: 1 | O159: 0 | X159: =MAX(0%,IF(O159<>0,MIN((Q159-O159)/O159/'Non-SLT Health Risk'!$E$27,'Health_Prem & Reserve Risk'!$X$147),'Health_Prem & Reserve Risk'!$X$147)) -> 0.08 | AA159: =MAX(0%,IF(S159<>0,MIN((U159-S159)/S159/'Non-SLT Health Risk'!$E$27,'Health_Prem & Reserve Risk'!$AA$147),'Health_Prem & Reserve Risk'!$AA$147)) -> 0.11
B160: 12 | F160: 1 | O160: 0 | X160: =MAX(0%,IF(O160<>0,MIN((Q160-O160)/O160/'Non-SLT Health Risk'!$E$27,'Health_Prem & Reserve Risk'!$X$147),'Health_Prem & Reserve Risk'!$X$147)) -> 0.08 | AA160: =MAX(0%,IF(S160<>0,MIN((U160-S160)/S160/'Non-SLT Health Risk'!$E$27,'Health_Prem & Reserve Risk'!$AA$147),'Health_Prem & Reserve Risk'!$AA$147)) -> 0.11
B161: 13 | F161: 1 | O161: 0 | X161: =MAX(0%,IF(O161<>0,MIN((Q161-O161)/O161/'Non-SLT Health Risk'!$E$27,'Health_Prem & Reserve Risk'!$X$147),'Health_Prem & Reserve Risk'!$X$147)) -> 0.08 | AA161: =MAX(0%,IF(S161<>0,MIN((U161-S161)/S161/'Non-SLT Health Risk'!$E$27,'Health_Prem & Reserve Risk'!$AA$147),'Health_Prem & Reserve Risk'!$AA$147)) -> 0.11
B162: 14 | F162: 1 | O162: 0 | X162: =MAX(0%,IF(O162<>0,MIN((Q162-O162)/O162/'Non-SLT Health Risk'!$E$27,'Health_Prem & Reserve Risk'!$X$147),'Health_Prem & Reserve Risk'!$X$147)) -> 0.08 | AA162: =MAX(0%,IF(S162<>0,MIN((U162-S162)/S162/'Non-SLT Health Risk'!$E$27,'Health_Prem & Reserve Risk'!$AA$147),'Health_Prem & Reserve Risk'!$AA$147)) -> 0.11
B163: 15 | F163: 1 | O163: 0 | X163: =MAX(0%,IF(O163<>0,MIN((Q163-O163)/O163/'Non-SLT Health Risk'!$E$27,'Health_Prem & Reserve Risk'!$X$147),'Health_Prem & Reserve Risk'!$X$147)) -> 0.08 | AA163: =MAX(0%,IF(S163<>0,MIN((U163-S163)/S163/'Non-SLT Health Risk'!$E$27,'Health_Prem & Reserve Risk'!$AA$147),'Health_Prem & Reserve Risk'!$AA$147)) -> 0.11
B164: 16 | F164: 1 | O164: 0 | X164: =MAX(0%,IF(O164<>0,MIN((Q164-O164)/O164/'Non-SLT Health Risk'!$E$27,'Health_Prem & Reserve Risk'!$X$147),'Health_Prem & Reserve Risk'!$X$147)) -> 0.08 | AA164: =MAX(0%,IF(S164<>0,MIN((U164-S164)/S164/'Non-SLT Health Risk'!$E$27,'Health_Prem & Reserve Risk'!$AA$147),'Health_Prem & Reserve Risk'!$AA$147)) -> 0.11
B165: 17 | F165: 1 | O165: 0 | X165: =MAX(0%,IF(O165<>0,MIN((Q165-O165)/O165/'Non-SLT Health Risk'!$E$27,'Health_Prem & Reserve Risk'!$X$147),'Health_Prem & Reserve Risk'!$X$147)) -> 0.08 | AA165: =MAX(0%,IF(S165<>0,MIN((U165-S165)/S165/'Non-SLT Health Risk'!$E$27,'Health_Prem & Reserve Risk'!$AA$147),'Health_Prem & Reserve Risk'!$AA$147)) -> 0.11
B166: 18 | F166: 1 | O166: 0 | X166: =MAX(0%,IF(O166<>0,MIN((Q166-O166)/O166/'Non-SLT Health Risk'!$E$27,'Health_Prem & Reserve Risk'!$X$147),'Health_Prem & Reserve Risk'!$X$147)) -> 0.08 | AA166: =MAX(0%,IF(S166<>0,MIN((U166-S166)/S166/'Non-SLT Health Risk'!$E$27,'Health_Prem & Reserve Risk'!$AA$147),'Health_Prem & Reserve Risk'!$AA$147)) -> 0.11
B167: 19 | F167: 1 | O167: 0 | X167: =MAX(0%,IF(O167<>0,MIN((Q167-O167)/O167/'Non-SLT Health Risk'!$E$27,'Health_Prem & Reserve Risk'!$X$147),'Health_Prem & Reserve Risk'!$X$147)) -> 0.08 | AA167: =MAX(0%,IF(S167<>0,MIN((U167-S167)/S167/'Non-SLT Health Risk'!$E$27,'Health_Prem & Reserve Risk'!$AA$147),'Health_Prem & Reserve Risk'!$AA$147)) -> 0.11
B168: 20 | F168: 1 | O168: 0 | X168: =MAX(0%,IF(O168<>0,MIN((Q168-O168)/O168/'Non-SLT Health Risk'!$E$27,'Health_Prem & Reserve Risk'!$X$147),'Health_Prem & Reserve Risk'!$X$147)) -> 0.08 | AA168: =MAX(0%,IF(S168<>0,MIN((U168-S168)/S168/'Non-SLT Health Risk'!$E$27,'Health_Prem & Reserve Risk'!$AA$147),'Health_Prem & Reserve Risk'!$AA$147)) -> 0.11
B169: 21 | F169: 1 | O169: 0 | X169: =MAX(0%,IF(O169<>0,MIN((Q169-O169)/O169/'Non-SLT Health Risk'!$E$27,'Health_Prem & Reserve Risk'!$X$147),'Health_Prem & Reserve Risk'!$X$147)) -> 0.08 | AA169: =MAX(0%,IF(S169<>0,MIN((U169-S169)/S169/'Non-SLT Health Risk'!$E$27,'Health_Prem & Reserve Risk'!$AA$147),'Health_Prem & Reserve Risk'!$AA$147)) -> 0.11
B170: 22 | F170: 1 | O170: 0 | X170: =MAX(0%,IF(O170<>0,MIN((Q170-O170)/O170/'Non-SLT Health Risk'!$E$27,'Health_Prem & Reserve Risk'!$X$147),'Health_Prem & Reserve Risk'!$X$147)) -> 0.08 | AA170: =MAX(0%,IF(S170<>0,MIN((U170-S170)/S170/'Non-SLT Health Risk'!$E$27,'Health_Prem & Reserve Risk'!$AA$147),'Health_Prem & Reserve Risk'!$AA$147)) -> 0.11
B171: 23 | F171: 1 | O171: 0 | X171: =MAX(0%,IF(O171<>0,MIN((Q171-O171)/O171/'Non-SLT Health Risk'!$E$27,'Health_Prem & Reserve Risk'!$X$147),'Health_Prem & Reserve Risk'!$X$147)) -> 0.08 | AA171: =MAX(0%,IF(S171<>0,MIN((U171-S171)/S171/'Non-SLT Health Risk'!$E$27,'Health_Prem & Reserve Risk'!$AA$147),'Health_Prem & Reserve Risk'!$AA$147)) -> 0.11
B172: 24 | F172: 1 | O172: 0 | X172: =MAX(0%,IF(O172<>0,MIN((Q172-O172)/O172/'Non-SLT Health Risk'!$E$27,'Health_Prem & Reserve Risk'!$X$147),'Health_Prem & Reserve Risk'!$X$147)) -> 0.08 | AA172: =MAX(0%,IF(S172<>0,MIN((U172-S172)/S172/'Non-SLT Health Risk'!$E$27,'Health_Prem & Reserve Risk'!$AA$147),'Health_Prem & Reserve Risk'!$AA$147)) -> 0.11
B173: 25 | F173: 1 | O173: 0 | X173: =MAX(0%,IF(O173<>0,MIN((Q173-O173)/O173/'Non-SLT Health Risk'!$E$27,'Health_Prem & Reserve Risk'!$X$147),'Health_Prem & Reserve Risk'!$X$147)) -> 0.08 | AA173: =MAX(0%,IF(S173<>0,MIN((U173-S173)/S173/'Non-SLT Health Risk'!$E$27,'Health_Prem & Reserve Risk'!$AA$147),'Health_Prem & Reserve Risk'!$AA$147)) -> 0.11
B174: 26 | F174: 1 | O174: 0 | X174: =MAX(0%,IF(O174<>0,MIN((Q174-O174)/O174/'Non-SLT Health Risk'!$E$27,'Health_Prem & Reserve Risk'!$X$147),'Health_Prem & Reserve Risk'!$X$147)) -> 0.08 | AA174: =MAX(0%,IF(S174<>0,MIN((U174-S174)/S174/'Non-SLT Health Risk'!$E$27,'Health_Prem & Reserve Risk'!$AA$147),'Health_Prem & Reserve Risk'!$AA$147)) -> 0.11
B175: 27 | F175: 1 | O175: 0 | X175: =MAX(0%,IF(O175<>0,MIN((Q175-O175)/O175/'Non-SLT Health Risk'!$E$27,'Health_Prem & Reserve Risk'!$X$147),'Health_Prem & Reserve Risk'!$X$147)) -> 0.08 | AA175: =MAX(0%,IF(S175<>0,MIN((U175-S175)/S175/'Non-SLT Health Risk'!$E$27,'Health_Prem & Reserve Risk'!$AA$147),'Health_Prem & Reserve Risk'!$AA$147)) -> 0.11
B176: 28 | F176: 1 | O176: 0 | X176: =MAX(0%,IF(O176<>0,MIN((Q176-O176)/O176/'Non-SLT Health Risk'!$E$27,'Health_Prem & Reserve Risk'!$X$147),'Health_Prem & Reserve Risk'!$X$147)) -> 0.08 | AA176: =MAX(0%,IF(S176<>0,MIN((U176-S176)/S176/'Non-SLT Health Risk'!$E$27,'Health_Prem & Reserve Risk'!$AA$147),'Health_Prem & Reserve Risk'!$AA$147)) -> 0.11
B177: 29 | F177: 1 | O177: 0 | X177: =MAX(0%,IF(O177<>0,MIN((Q177-O177)/O177/'Non-SLT Health Risk'!$E$27,'Health_Prem & Reserve Risk'!$X$147),'Health_Prem & Reserve Risk'!$X$147)) -> 0.08 | AA177: =MAX(0%,IF(S177<>0,MIN((U177-S177)/S177/'Non-SLT Health Risk'!$E$27,'Health_Prem & Reserve Risk'!$AA$147),'Health_Prem & Reserve Risk'!$AA$147)) -> 0.11
B178: 30 | F178: 1 | O178: 0 | X178: =MAX(0%,IF(O178<>0,MIN((Q178-O178)/O178/'Non-SLT Health Risk'!$E$27,'Health_Prem & Reserve Risk'!$X$147),'Health_Prem & Reserve Risk'!$X$147)) -> 0.08 | AA178: =MAX(0%,IF(S178<>0,MIN((U178-S178)/S178/'Non-SLT Health Risk'!$E$27,'Health_Prem & Reserve Risk'!$AA$147),'Health_Prem & Reserve Risk'!$AA$147)) -> 0.11
B179: 31 | F179: 1 | O179: 0 | X179: =MAX(0%,IF(O179<>0,MIN((Q179-O179)/O179/'Non-SLT Health Risk'!$E$27,'Health_Prem & Reserve Risk'!$X$147),'Health_Prem & Reserve Risk'!$X$147)) -> 0.08 | AA179: =MAX(0%,IF(S179<>0,MIN((U179-S179)/S179/'Non-SLT Health Risk'!$E$27,'Health_Prem & Reserve Risk'!$AA$147),'Health_Prem & Reserve Risk'!$AA$147)) -> 0.11
B180: 32 | F180: 1 | O180: 0 | X180: =MAX(0%,IF(O180<>0,MIN((Q180-O180)/O180/'Non-SLT Health Risk'!$E$27,'Health_Prem & Reserve Risk'!$X$147),'Health_Prem & Reserve Risk'!$X$147)) -> 0.08 | AA180: =MAX(0%,IF(S180<>0,MIN((U180-S180)/S180/'Non-SLT Health Risk'!$E$27,'Health_Prem & Reserve Risk'!$AA$147),'Health_Prem & Reserve Risk'!$AA$147)) -> 0.11
B181: 33 | F181: 1 | O181: 0 | X181: =MAX(0%,IF(O181<>0,MIN((Q181-O181)/O181/'Non-SLT Health Risk'!$E$27,'Health_Prem & Reserve Risk'!$X$147),'Health_Prem & Reserve Risk'!$X$147)) -> 0.08 | AA181: =MAX(0%,IF(S181<>0,MIN((U181-S181)/S181/'Non-SLT Health Risk'!$E$27,'Health_Prem & Reserve Risk'!$AA$147),'Health_Prem & Reserve Risk'!$AA$147)) -> 0.11
B182: 34 | F182: 1 | O182: 0 | X182: =MAX(0%,IF(O182<>0,MIN((Q182-O182)/O182/'Non-SLT Health Risk'!$E$27,'Health_Prem & Reserve Risk'!$X$147),'Health_Prem & Reserve Risk'!$X$147)) -> 0.08 | AA182: =MAX(0%,IF(S182<>0,MIN((U182-S182)/S182/'Non-SLT Health Risk'!$E$27,'Health_Prem & Reserve Risk'!$AA$147),'Health_Prem & Reserve Risk'!$AA$147)) -> 0.11
B183: 35 | F183: 1 | O183: 0 | X183: =MAX(0%,IF(O183<>0,MIN((Q183-O183)/O183/'Non-SLT Health Risk'!$E$27,'Health_Prem & Reserve Risk'!$X$147),'Health_Prem & Reserve Risk'!$X$147)) -> 0.08 | AA183: =MAX(0%,IF(S183<>0,MIN((U183-S183)/S183/'Non-SLT Health Risk'!$E$27,'Health_Prem & Reserve Risk'!$AA$147),'Health_Prem & Reserve Risk'!$AA$147)) -> 0.11
B184: 36 | F184: 1 | O184: 0 | X184: =MAX(0%,IF(O184<>0,MIN((Q184-O184)/O184/'Non-SLT Health Risk'!$E$27,'Health_Prem & Reserve Risk'!$X$147),'Health_Prem & Reserve Risk'!$X$147)) -> 0.08 | AA184: =MAX(0%,IF(S184<>0,MIN((U184-S184)/S184/'Non-SLT Health Risk'!$E$27,'Health_Prem & Reserve Risk'!$AA$147),'Health_Prem & Reserve Risk'!$AA$147)) -> 0.11
B185: 37 | F185: 1 | O185: 0 | X185: =MAX(0%,IF(O185<>0,MIN((Q185-O185)/O185/'Non-SLT Health Risk'!$E$27,'Health_Prem & Reserve Risk'!$X$147),'Health_Prem & Reserve Risk'!$X$147)) -> 0.08 | AA185: =MAX(0%,IF(S185<>0,MIN((U185-S185)/S185/'Non-SLT Health Risk'!$E$27,'Health_Prem & Reserve Risk'!$AA$147),'Health_Prem & Reserve Risk'!$AA$147)) -> 0.11
B186: 38 | F186: 1 | O186: 0 | X186: =MAX(0%,IF(O186<>0,MIN((Q186-O186)/O186/'Non-SLT Health Risk'!$E$27,'Health_Prem & Reserve Risk'!$X$147),'Health_Prem & Reserve Risk'!$X$147)) -> 0.08 | AA186: =MAX(0%,IF(S186<>0,MIN((U186-S186)/S186/'Non-SLT Health Risk'!$E$27,'Health_Prem & Reserve Risk'!$AA$147),'Health_Prem & Reserve Risk'!$AA$147)) -> 0.11
B187: 39 | F187: 1 | O187: 0 | X187: =MAX(0%,IF(O187<>0,MIN((Q187-O187)/O187/'Non-SLT Health Risk'!$E$27,'Health_Prem & Reserve Risk'!$X$147),'Health_Prem & Reserve Risk'!$X$147)) -> 0.08 | AA187: =MAX(0%,IF(S187<>0,MIN((U187-S187)/S187/'Non-SLT Health Risk'!$E$27,'Health_Prem & Reserve Risk'!$AA$147),'Health_Prem & Reserve Risk'!$AA$147)) -> 0.11
B188: 40 | F188: 1 | O188: 0 | X188: =MAX(0%,IF(O188<>0,MIN((Q188-O188)/O188/'Non-SLT Health Risk'!$E$27,'Health_Prem & Reserve Risk'!$X$147),'Health_Prem & Reserve Risk'!$X$147)) -> 0.08 | AA188: =MAX(0%,IF(S188<>0,MIN((U188-S188)/S188/'Non-SLT Health Risk'!$E$27,'Health_Prem & Reserve Risk'!$AA$147),'Health_Prem & Reserve Risk'!$AA$147)) -> 0.11
B189: 41 | F189: 1 | O189: 0 | X189: =MAX(0%,IF(O189<>0,MIN((Q189-O189)/O189/'Non-SLT Health Risk'!$E$27,'Health_Prem & Reserve Risk'!$X$147),'Health_Prem & Reserve Risk'!$X$147)) -> 0.08 | AA189: =MAX(0%,IF(S189<>0,MIN((U189-S189)/S189/'Non-SLT Health Risk'!$E$27,'Health_Prem & Reserve Risk'!$AA$147),'Health_Prem & Reserve Risk'!$AA$147)) -> 0.11
B190: 42 | F190: 1 | O190: 0 | X190: =MAX(0%,IF(O190<>0,MIN((Q190-O190)/O190/'Non-SLT Health Risk'!$E$27,'Health_Prem & Reserve Risk'!$X$147),'Health_Prem & Reserve Risk'!$X$147)) -> 0.08 | AA190: =MAX(0%,IF(S190<>0,MIN((U190-S190)/S190/'Non-SLT Health Risk'!$E$27,'Health_Prem & Reserve Risk'!$AA$147),'Health_Prem & Reserve Risk'!$AA$147)) -> 0.11
B191: 43 | F191: 1 | O191: 0 | X191: =MAX(0%,IF(O191<>0,MIN((Q191-O191)/O191/'Non-SLT Health Risk'!$E$27,'Health_Prem & Reserve Risk'!$X$147),'Health_Prem & Reserve Risk'!$X$147)) -> 0.08 | AA191: =MAX(0%,IF(S191<>0,MIN((U191-S191)/S191/'Non-SLT Health Risk'!$E$27,'Health_Prem & Reserve Risk'!$AA$147),'Health_Prem & Reserve Risk'!$AA$147)) -> 0.11
B192: 44 | F192: 1 | O192: 0 | X192: =MAX(0%,IF(O192<>0,MIN((Q192-O192)/O192/'Non-SLT Health Risk'!$E$27,'Health_Prem & Reserve Risk'!$X$147),'Health_Prem & Reserve Risk'!$X$147)) -> 0.08 | AA192: =MAX(0%,IF(S192<>0,MIN((U192-S192)/S192/'Non-SLT Health Risk'!$E$27,'Health_Prem & Reserve Risk'!$AA$147),'Health_Prem & Reserve Risk'!$AA$147)) -> 0.11
B193: 45 | F193: 1 | O193: 0 | X193: =MAX(0%,IF(O193<>0,MIN((Q193-O193)/O193/'Non-SLT Health Risk'!$E$27,'Health_Prem & Reserve Risk'!$X$147),'Health_Prem & Reserve Risk'!$X$147)) -> 0.08 | AA193: =MAX(0%,IF(S193<>0,MIN((U193-S193)/S193/'Non-SLT Health Risk'!$E$27,'Health_Prem & Reserve Risk'!$AA$147),'Health_Prem & Reserve Risk'!$AA$147)) -> 0.11
B194: 46 | F194: 1 | O194: 0 | X194: =MAX(0%,IF(O194<>0,MIN((Q194-O194)/O194/'Non-SLT Health Risk'!$E$27,'Health_Prem & Reserve Risk'!$X$147),'Health_Prem & Reserve Risk'!$X$147)) -> 0.08 | AA194: =MAX(0%,IF(S194<>0,MIN((U194-S194)/S194/'Non-SLT Health Risk'!$E$27,'Health_Prem & Reserve Risk'!$AA$147),'Health_Prem & Reserve Risk'!$AA$147)) -> 0.11
B195: 47 | F195: 1 | O195: 0 | X195: =MAX(0%,IF(O195<>0,MIN((Q195-O195)/O195/'Non-SLT Health Risk'!$E$27,'Health_Prem & Reserve Risk'!$X$147),'Health_Prem & Reserve Risk'!$X$147)) -> 0.08 | AA195: =MAX(0%,IF(S195<>0,MIN((U195-S195)/S195/'Non-SLT Health Risk'!$E$27,'Health_Prem & Reserve Risk'!$AA$147),'Health_Prem & Reserve Risk'!$AA$147)) -> 0.11
B196: 48 | F196: 1 | O196: 0 | X196: =MAX(0%,IF(O196<>0,MIN((Q196-O196)/O196/'Non-SLT Health Risk'!$E$27,'Health_Prem & Reserve Risk'!$X$147),'Health_Prem & Reserve Risk'!$X$147)) -> 0.08 | AA196: =MAX(0%,IF(S196<>0,MIN((U196-S196)/S196/'Non-SLT Health Risk'!$E$27,'Health_Prem & Reserve Risk'!$AA$147),'Health_Prem & Reserve Risk'!$AA$147)) -> 0.11
B197: 49 | F197: 1 | O197: 0 | X197: =MAX(0%,IF(O197<>0,MIN((Q197-O197)/O197/'Non-SLT Health Risk'!$E$27,'Health_Prem & Reserve Risk'!$X$147),'Health_Prem & Reserve Risk'!$X$147)) -> 0.08 | AA197: =MAX(0%,IF(S197<>0,MIN((U197-S197)/S197/'Non-SLT Health Risk'!$E$27,'Health_Prem & Reserve Risk'!$AA$147),'Health_Prem & Reserve Risk'!$AA$147)) -> 0.11
B198: 50 | F198: 1 | O198: 0 | X198: =MAX(0%,IF(O198<>0,MIN((Q198-O198)/O198/'Non-SLT Health Risk'!$E$27,'Health_Prem & Reserve Risk'!$X$147),'Health_Prem & Reserve Risk'!$X$147)) -> 0.08 | AA198: =MAX(0%,IF(S198<>0,MIN((U198-S198)/S198/'Non-SLT Health Risk'!$E$27,'Health_Prem & Reserve Risk'!$AA$147),'Health_Prem & Reserve Risk'!$AA$147)) -> 0.11
B199: 51 | F199: 1 | O199: 0 | X199: =MAX(0%,IF(O199<>0,MIN((Q199-O199)/O199/'Non-SLT Health Risk'!$E$27,'Health_Prem & Reserve Risk'!$X$147),'Health_Prem & Reserve Risk'!$X$147)) -> 0.08 | AA199: =MAX(0%,IF(S199<>0,MIN((U199-S199)/S199/'Non-SLT Health Risk'!$E$27,'Health_Prem & Reserve Risk'!$AA$147),'Health_Prem & Reserve Risk'!$AA$147)) -> 0.11
B200: 52 | F200: 1 | O200: 0 | X200: =MAX(0%,IF(O200<>0,MIN((Q200-O200)/O200/'Non-SLT Health Risk'!$E$27,'Health_Prem & Reserve Risk'!$X$147),'Health_Prem & Reserve Risk'!$X$147)) -> 0.08 | AA200: =MAX(0%,IF(S200<>0,MIN((U200-S200)/S200/'Non-SLT Health Risk'!$E$27,'Health_Prem & Reserve Risk'!$AA$147),'Health_Prem & Reserve Risk'!$AA$147)) -> 0.11
B201: 53 | F201: 1 | O201: 0 | X201: =MAX(0%,IF(O201<>0,MIN((Q201-O201)/O201/'Non-SLT Health Risk'!$E$27,'Health_Prem & Reserve Risk'!$X$147),'Health_Prem & Reserve Risk'!$X$147)) -> 0.08 | AA201: =MAX(0%,IF(S201<>0,MIN((U201-S201)/S201/'Non-SLT Health Risk'!$E$27,'Health_Prem & Reserve Risk'!$AA$147),'Health_Prem & Reserve Risk'!$AA$147)) -> 0.11
B202: 54 | F202: 1 | O202: 0 | X202: =MAX(0%,IF(O202<>0,MIN((Q202-O202)/O202/'Non-SLT Health Risk'!$E$27,'Health_Prem & Reserve Risk'!$X$147),'Health_Prem & Reserve Risk'!$X$147)) -> 0.08 | AA202: =MAX(0%,IF(S202<>0,MIN((U202-S202)/S202/'Non-SLT Health Risk'!$E$27,'Health_Prem & Reserve Risk'!$AA$147),'Health_Prem & Reserve Risk'!$AA$147)) -> 0.11
B203: 55 | F203: 1 | O203: 0 | X203: =MAX(0%,IF(O203<>0,MIN((Q203-O203)/O203/'Non-SLT Health Risk'!$E$27,'Health_Prem & Reserve Risk'!$X$147),'Health_Prem & Reserve Risk'!$X$147)) -> 0.08 | AA203: =MAX(0%,IF(S203<>0,MIN((U203-S203)/S203/'Non-SLT Health Risk'!$E$27,'Health_Prem & Reserve Risk'!$AA$147),'Health_Prem & Reserve Risk'!$AA$147)) -> 0.11
B204: 56 | F204: 1 | O204: 0 | X204: =MAX(0%,IF(O204<>0,MIN((Q204-O204)/O204/'Non-SLT Health Risk'!$E$27,'Health_Prem & Reserve Risk'!$X$147),'Health_Prem & Reserve Risk'!$X$147)) -> 0.08 | AA204: =MAX(0%,IF(S204<>0,MIN((U204-S204)/S204/'Non-SLT Health Risk'!$E$27,'Health_Prem & Reserve Risk'!$AA$147),'Health_Prem & Reserve Risk'!$AA$147)) -> 0.11
B205: 57 | F205: 1 | O205: 0 | X205: =MAX(0%,IF(O205<>0,MIN((Q205-O205)/O205/'Non-SLT Health Risk'!$E$27,'Health_Prem & Reserve Risk'!$X$147),'Health_Prem & Reserve Risk'!$X$147)) -> 0.08 | AA205: =MAX(0%,IF(S205<>0,MIN((U205-S205)/S205/'Non-SLT Health Risk'!$E$27,'Health_Prem & Reserve Risk'!$AA$147),'Health_Prem & Reserve Risk'!$AA$147)) -> 0.11
B206: 58 | F206: 1 | O206: 0 | X206: =MAX(0%,IF(O206<>0,MIN((Q206-O206)/O206/'Non-SLT Health Risk'!$E$27,'Health_Prem & Reserve Risk'!$X$147),'Health_Prem & Reserve Risk'!$X$147)) -> 0.08 | AA206: =MAX(0%,IF(S206<>0,MIN((U206-S206)/S206/'Non-SLT Health Risk'!$E$27,'Health_Prem & Reserve Risk'!$AA$147),'Health_Prem & Reserve Risk'!$AA$147)) -> 0.11
B207: 59 | F207: 1 | O207: 0 | X207: =MAX(0%,IF(O207<>0,MIN((Q207-O207)/O207/'Non-SLT Health Risk'!$E$27,'Health_Prem & Reserve Risk'!$X$147),'Health_Prem & Reserve Risk'!$X$147)) -> 0.08 | AA207: =MAX(0%,IF(S207<>0,MIN((U207-S207)/S207/'Non-SLT Health Risk'!$E$27,'Health_Prem & Reserve Risk'!$AA$147),'Health_Prem & Reserve Risk'!$AA$147)) -> 0.11
B208: 60 | F208: 1 | O208: 0 | X208: =MAX(0%,IF(O208<>0,MIN((Q208-O208)/O208/'Non-SLT Health Risk'!$E$27,'Health_Prem & Reserve Risk'!$X$147),'Health_Prem & Reserve Risk'!$X$147)) -> 0.08 | AA208: =MAX(0%,IF(S208<>0,MIN((U208-S208)/S208/'Non-SLT Health Risk'!$E$27,'Health_Prem & Reserve Risk'!$AA$147),'Health_Prem & Reserve Risk'!$AA$147)) -> 0.11
F209: =IF(OFFSET($X$7,$B$146-10,0)=0,1,0) -> 1
... 64 more rows

Sheet Health_DIV
A1: =RIGHT(CELL("filename",$A$1),LEN(CELL("filename",$A$1))-FIND("]",CELL("filename",$A$1))) -> Health_DIV | AU1: =Insurer_Shortname -> 0
A2: =Insurer_Name & " (" & Insurer_Shortname & ")" -> () | AU2: =QIS_YE_Date -> 2017-12-31
B3: See TS(10) 2.7.4.18 for details of the calculation of DIVs. If data is not input here for a LOB, DIVs will default to 100%.
B5: Premium and Reserve Risk | E5: j | F5: 1-19 * | H5: 1 * | J5: 2 * | L5: 3 * | N5: 4 * | P5: 5 * | R5: 6 * | T5: 7 * | V5: 8 * | X5: 9 * | Z5: 10 * | AB5: 11 * | AD5: 12 * | AF5: 13 * | AH5: 14 * | AJ5: 15 * | AL5: 16 * | AN5: 17 * | AP5: 18 * | AR5: 19 *
B7: Premium * | F7: V(prem,s) | H7: V(prem,1,s) | J7: V(prem,2,s) | L7: V(prem,3,s) | N7: V(prem,4,s) | P7: V(prem,5,s) | R7: V(prem,6,s) | T7: V(prem,7,s) | V7: V(prem,8,s) | X7: V(prem,9,s) | Z7: V(prem,10,s) | AB7: V(prem,11,s) | AD7: V(prem,12,s) | AF7: V(prem,13,s) | AH7: V(prem,14,s) | AJ7: V(prem,15,s) | AL7: V(prem,16,s) | AN7: V(prem,17,s) | AP7: V(prem,18,s) | AR7: V(prem,19,s)
B9: V(prem,j,10) | E9: * | F9: =SUM(H9:AR9) -> 0 | AU9: =IF(F9<>'Health_Prem & Reserve Risk'!O7,"ERROR",IF(OR(H9="",J9="",L9="",N9="",P9="",R9="",T9="",V9="",X9="",Z9="",AB9="",AD9="",AF9="",AH9="",AJ9="",AL9="",AN9="",AR9=""),"ZERO","OK")) -> ZERO
B10: V(prem,j,11) | E10: * | F10: 0 | AU10: =IF(F10<>'Health_Prem & Reserve Risk'!O8,"ERROR",IF(OR(H10="",J10="",L10="",N10="",P10="",R10="",T10="",V10="",X10="",Z10="",AB10="",AD10="",AF10="",AH10="",AJ10="",AL10="",AN10="",AR10=""),"ZERO","OK")) -> ZERO
B11: V(prem,j,12) | E11: * | F11: 0 | AU11: =IF(F11<>'Health_Prem & Reserve Risk'!O9,"ERROR",IF(OR(H11="",J11="",L11="",N11="",P11="",R11="",T11="",V11="",X11="",Z11="",AB11="",AD11="",AF11="",AH11="",AJ11="",AL11="",AN11="",AR11=""),"ZERO","OK")) -> ZERO
B12: V(prem,j,28) | E12: * | F12: 0 | H12: 0 | J12: 0 | L12: 0 | N12: 0 | P12: 0 | R12: 0 | T12: 0 | V12: 0 | X12: 0 | Z12: 0 | AB12: 0 | AD12: 0 | AF12: 0 | AH12: 0 | AJ12: 0 | AL12: 0 | AN12: 0 | AP12: 0 | AR12: 0
B14: Reserve * | F14: V(res,s) | H14: V(res,1,s) | J14: V(res,2,s) | L14: V(res,3,s) | N14: V(res,4,s) | P14: V(res,5,s) | R14: V(res,6,s) | T14: V(res,7,s) | V14: V(res,8,s) | X14: V(res,9,s) | Z14: V(res,10,s) | AB14: V(res,11,s) | AD14: V(res,12,s) | AF14: V(res,13,s) | AH14: V(res,14,s) | AJ14: V(res,15,s) | AL14: V(res,16,s) | AN14: V(res,17,s) | AP14: V(res,18,s) | AR14: V(res,19,s)
B16: V(res,j,10) | E16: * | F16: =SUM(H16:AR16) -> 0 | AU16: =IF(F16<>'Health_Prem & Reserve Risk'!Q7,"ERROR",IF(OR(H16="",J16="",L16="",N16="",P16="",R16="",T16="",V16="",X16="",Z16="",AB16="",AD16="",AF16="",AH16="",AJ16="",AL16="",AN16="",AR16=""),"ZERO","OK")) -> ZERO
B17: V(res,j,11) | E17: * | F17: 0 | AU17: =IF(F17<>'Health_Prem & Reserve Risk'!Q8,"ERROR",IF(OR(H17="",J17="",L17="",N17="",P17="",R17="",T17="",V17="",X17="",Z17="",AB17="",AD17="",AF17="",AH17="",AJ17="",AL17="",AN17="",AR17=""),"ZERO","OK")) -> ZERO
B18: V(res,j,12) | E18: * | F18: 0 | AU18: =IF(F18<>'Health_Prem & Reserve Risk'!Q9,"ERROR",IF(OR(H18="",J18="",L18="",N18="",P18="",R18="",T18="",V18="",X18="",Z18="",AB18="",AD18="",AF18="",AH18="",AJ18="",AL18="",AN18="",AR18=""),"ZERO","OK")) -> ZERO
B19: V(res,j,28) | E19: * | F19: 0 | H19: 0 | J19: 0 | L19: 0 | N19: 0 | P19: 0 | R19: 0 | T19: 0 | V19: 0 | X19: 0 | Z19: 0 | AB19: 0 | AD19: 0 | AF19: 0 | AH19: 0 | AJ19: 0 | AL19: 0 | AN19: 0 | AP19: 0 | AR19: 0
B21: DIV | D21: DIVs *
B23: DIV10 | D23: =IF(OR(F9+F16=0,SUM(H23:AR23)=0),1,SUM(H23:AR23)/((F9+F16)^2)) -> 1 | H23: =(H9+H16)^2 -> 0 | J23: =(J9+J16)^2 -> 0 | L23: =(L9+L16)^2 -> 0 | N23: =(N9+N16)^2 -> 0 | P23: =(P9+P16)^2 -> 0 | R23: =(R9+R16)^2 -> 0 | T23: =(T9+T16)^2 -> 0 | V23: =(V9+V16)^2 -> 0 | X23: =(X9+X16)^2 -> 0 | Z23: =(Z9+Z16)^2 -> 0 | AB23: =(AB9+AB16)^2 -> 0 | AD23: =(AD9+AD16)^2 -> 0 | AF23: =(AF9+AF16)^2 -> 0 | AH23: =(AH9+AH16)^2 -> 0 | AJ23: =(AJ9+AJ16)^2 -> 0 | AL23: =(AL9+AL16)^2 -> 0 | AN23: =(AN9+AN16)^2 -> 0 | AP23: =(AP9+AP16)^2 -> 0 | AR23: =(AR9+AR16)^2 -> 0
B24: DIV11 | D24: =IF(OR(F10+F17=0,SUM(H24:AR24)=0),1,SUM(H24:AR24)/((F10+F17)^2)) -> 1 | H24: =(H10+H17)^2 -> 0 | J24: =(J10+J17)^2 -> 0 | L24: =(L10+L17)^2 -> 0 | N24: =(N10+N17)^2 -> 0 | P24: =(P10+P17)^2 -> 0 | R24: =(R10+R17)^2 -> 0 | T24: =(T10+T17)^2 -> 0 | V24: =(V10+V17)^2 -> 0 | X24: =(X10+X17)^2 -> 0 | Z24: =(Z10+Z17)^2 -> 0 | AB24: =(AB10+AB17)^2 -> 0 | AD24: =(AD10+AD17)^2 -> 0 | AF24: =(AF10+AF17)^2 -> 0 | AH24: =(AH10+AH17)^2 -> 0 | AJ24: =(AJ10+AJ17)^2 -> 0 | AL24: =(AL10+AL17)^2 -> 0 | AN24: =(AN10+AN17)^2 -> 0 | AP24: =(AP10+AP17)^2 -> 0 | AR24: =(AR10+AR17)^2 -> 0
B25: DIV12 | D25: =IF(OR(F11+F18=0,SUM(H25:AR25)=0),1,SUM(H25:AR25)/((F11+F18)^2)) -> 1 | H25: =(H11+H18)^2 -> 0 | J25: =(J11+J18)^2 -> 0 | L25: =(L11+L18)^2 -> 0 | N25: =(N11+N18)^2 -> 0 | P25: =(P11+P18)^2 -> 0 | R25: =(R11+R18)^2 -> 0 | T25: =(T11+T18)^2 -> 0 | V25: =(V11+V18)^2 -> 0 | X25: =(X11+X18)^2 -> 0 | Z25: =(Z11+Z18)^2 -> 0 | AB25: =(AB11+AB18)^2 -> 0 | AD25: =(AD11+AD18)^2 -> 0 | AF25: =(AF11+AF18)^2 -> 0 | AH25: =(AH11+AH18)^2 -> 0 | AJ25: =(AJ11+AJ18)^2 -> 0 | AL25: =(AL11+AL18)^2 -> 0 | AN25: =(AN11+AN18)^2 -> 0 | AP25: =(AP11+AP18)^2 -> 0 | AR25: =(AR11+AR18)^2 -> 0
B26: DIV28 | D26: =IF(OR(F12+F19=0,SUM(H26:AR26)=0),1,SUM(H26:AR26)/((F12+F19)^2)) -> 1 | H26: =(H12+H19)^2 -> 0 | J26: =(J12+J19)^2 -> 0 | L26: =(L12+L19)^2 -> 0 | N26: =(N12+N19)^2 -> 0 | P26: =(P12+P19)^2 -> 0 | R26: =(R12+R19)^2 -> 0 | T26: =(T12+T19)^2 -> 0 | V26: =(V12+V19)^2 -> 0 | X26: =(X12+X19)^2 -> 0 | Z26: =(Z12+Z19)^2 -> 0 | AB26: =(AB12+AB19)^2 -> 0 | AD26: =(AD12+AD19)^2 -> 0 | AF26: =(AF12+AF19)^2 -> 0 | AH26: =(AH12+AH19)^2 -> 0 | AJ26: =(AJ12+AJ19)^2 -> 0 | AL26: =(AL12+AL19)^2 -> 0 | AN26: =(AN12+AN19)^2 -> 0 | AP26: =(AP12+AP19)^2 -> 0 | AR26: =(AR12+AR19)^2 -> 0

Sheet Health_Lapse Risk
A1: =RIGHT(CELL("filename",$A$1),LEN(CELL("filename",$A$1))-FIND("]",CELL("filename",$A$1))) -> Health_Lapse Risk | T1: =Insurer_Shortname -> 0
A2: =Insurer_Name & " (" & Insurer_Shortname & ")" -> () | T2: =QIS_YE_Date -> 2017-12-31
B3: This sheet may be used to estimate the Lapse Risk Charge for Health Business, as described in TS(10) 2.7.4.21-2.7.4.23
B5: Health Lapse Risk | F5: Profitable Grouping * | H5: Line of Business | J5: 2018 Pipeline Premiums * | L5: Ultimate Loss Ratio * | N5: Claims Expense Ratio * | Q5: Lapse Risk Charge
B7: 1 in 10 year Shock
D9: 1 | Q9: =20%*(1-L9-N9)*J9 -> 0 | T9: =IF(OR(J9="",L9="",N9=""),"ERROR","OK") -> ERROR
D10: 2 | Q10: 0 | T10: ERROR
D11: 3 | Q11: 0 | T11: ERROR
D12: 4 | Q12: 0 | T12: ERROR
D13: 5 | Q13: 0 | T13: ERROR
D14: 6 | Q14: 0 | T14: ERROR
D15: 7 | Q15: 0 | T15: ERROR
D16: 8 | Q16: 0 | T16: ERROR
D17: 9 | Q17: 0 | T17: ERROR
D18: 10 | Q18: 0 | T18: ERROR
D19: 11 | Q19: 0 | T19: ERROR
D20: 12 | Q20: 0 | T20: ERROR
D21: 13 | Q21: 0 | T21: ERROR
D22: 14 | Q22: 0 | T22: ERROR
D23: 15 | Q23: 0 | T23: ERROR
D24: 16 | Q24: 0 | T24: ERROR
D25: 17 | Q25: 0 | T25: ERROR
D26: 18 | Q26: 0 | T26: ERROR
D27: 19 | Q27: 0 | T27: ERROR
D28: 20 | Q28: 0 | T28: ERROR
D29: 21 | Q29: 0 | T29: ERROR
D30: 22 | Q30: 0 | T30: ERROR
D31: 23 | Q31: 0 | T31: ERROR
D32: 24 | Q32: 0 | T32: ERROR
D33: 25 | Q33: 0 | T33: ERROR
D34: 26 | Q34: 0 | T34: ERROR
D35: 27 | Q35: 0 | T35: ERROR
D36: 28 | Q36: 0 | T36: ERROR
D37: 29 | Q37: 0 | T37: ERROR
D38: 30 | Q38: 0 | T38: ERROR
D39: 31 | Q39: 0 | T39: ERROR
D40: 32 | Q40: 0 | T40: ERROR
D41: 33 | Q41: 0 | T41: ERROR
D42: 34 | Q42: 0 | T42: ERROR
D43: 35 | Q43: 0 | T43: ERROR
D44: 36 | Q44: 0 | T44: ERROR
D45: 37 | Q45: 0 | T45: ERROR
D46: 38 | Q46: 0 | T46: ERROR
D47: 39 | Q47: 0 | T47: ERROR
D48: 40 | Q48: 0 | T48: ERROR
D49: 41 | Q49: 0 | T49: ERROR
D50: 42 | Q50: 0 | T50: ERROR
D51: 43 | Q51: 0 | T51: ERROR
D52: 44 | Q52: 0 | T52: ERROR
D53: 45 | Q53: 0 | T53: ERROR
D54: 46 | Q54: 0 | T54: ERROR
D55: 47 | Q55: 0 | T55: ERROR
D56: 48 | Q56: 0 | T56: ERROR
D57: 49 | Q57: 0 | T57: ERROR
D58: 50 | Q58: 0 | T58: ERROR
D59: 51 | Q59: 0 | T59: ERROR
D60: 52 | Q60: 0 | T60: ERROR
D61: 53 | Q61: 0 | T61: ERROR
D62: 54 | Q62: 0 | T62: ERROR
D63: 55 | Q63: 0 | T63: ERROR
D64: 56 | Q64: 0 | T64: ERROR
D65: 57 | Q65: 0 | T65: ERROR
D66: 58 | Q66: 0 | T66: ERROR
D67: 59 | Q67: 0 | T67: ERROR
D68: 60 | Q68: 0 | T68: ERROR
B70: Health Lapse Up 20% | D70: Total Lapse Risk Charge | Q70: =SUM(Q9:Q68) -> 0 | T70: =IF(LAPSE_UP_10=0,"ZERO","OK") -> ZERO

Sheet Market Risk
A1: =RIGHT(CELL("filename",$A$1),LEN(CELL("filename",$A$1))-FIND("]",CELL("filename",$A$1))) -> Market Risk | S1: =Insurer_Shortname -> 0
A2: =Insurer_Name & " (" & Insurer_Shortname & ")" -> () | S2: =QIS_YE_Date -> 2017-12-31
B5: Market Risk | E5: 1 in 10
B7: Marketinterest | C7: * | E7: =E27 -> 0 | S7: =S27 -> ERROR
B8: Marketequity | C8: * | E8: =N37 -> 0 | S8: =S37 -> ERROR
B9: Marketproperty | C9: * | E9: =N44 -> 0 | S9: =S44 -> ERROR
B10: Marketfx | C10: * | E10: =E50 -> 0 | S10: =IF(ISERROR(MATCH("ERROR",$S$50:$S$50,0)),"OK","ERROR") -> ERROR
B11: Marketspread | C11: * | E11: =E56 -> 0 | S11: =S56 -> ZERO
B12: Marketconc | C12: * | E12: =E62 -> 0 | S12: =S62 -> ERROR
B14: Capital Requirement (before div. effects) | E14: =SUM(E7:E12) -> 0
B16: Diversification | E16: =E18-E14 -> 0
B18: SCRmarket | C18: * | E18: =SQRT(MMULT(MMULT(TRANSPOSE(E7:E12),MarketCorr_10),E7:E12)) -> 0 | S18: =IF(ISERROR(MATCH("ERROR",$S$7:$S$12,0)),"OK","ERROR") -> ERROR
B22: Interest Rate Risk | E22: 1 in 10
B24: MarketinterestUp | E24: =Mkt_Int_Up_10 -> 0
B25: MarketinterestDown | E25: =Mkt_Int_Down_10 -> 0
B27: Marketinterest | E27: =MAX(0,E24:E25) -> 0 | S27: =IF(AND('Market Risk Inputs'!R7="OK",ISERROR(MATCH("ERROR",'Market Risk Inputs'!$R$11:$R$12,0))),IF(OR(E24=0,E25=0),"ZERO","OK"),"ERROR") -> ERROR
B31: Equity Risk | E31: Assets | G31: Liabilities | I31: Exposure | L31: 1 in 10 year shock
L32: θ | N32: Capital
B34: Marketequity,1 | E34: ='EBS - Assets'!F19 -> 0 | G34: 0 | I34: =ABS($E34-$G34) -> 0 | L34: 0.19 | N34: =$I34*L34 -> 0 | S34: =IF(OR(E34="",G34=""),"ERROR","OK") -> OK
B35: Marketequity,2 | E35: ='EBS - Assets'!F20 -> 0 | G35: 0 | I35: =ABS($E35-$G35) -> 0 | L35: 0.24 | N35: =$I35*L35 -> 0 | S35: =IF(OR(E35="",G35=""),"ERROR","OK") -> OK
B37: Marketequity | N37: =SQRT(MMULT(MMULT(TRANSPOSE(N$34:N$35),EqCorr10),N$34:N$35)) -> 0 | S37: =IF('Market Risk Inputs'!R7="ERROR","ERROR",IF(SUMPRODUCT(N34:N35,N34:N35)=0,"ZERO","OK")) -> ERROR
B41: Property Risk | E41: Assets | G41: Liabilities | I41: Exposure | L41: 1 in 10 year shock
L42: θ | N42: Capital
B44: Marketproperty | E44: ='EBS - Assets'!F17 -> 0 | G44: 0 | I44: =ABS($E44-$G44) -> 0 | L44: 0.12 | N44: =$I44*L44 -> 0 | S44: =IF(OR('Market Risk Inputs'!R7="ERROR",E44="",I44=""),"ERROR",IF(N44=0,"ZERO","OK")) -> ERROR
B48: Currency Risk | E48: 1 in 10
B50: Marketfx | E50: ='Market Risk Inputs'!M19 -> 0 | S50: =IF(OR('Market Risk Inputs'!R7="ERROR",'Market Risk Inputs'!$R$19="ERROR"),"ERROR",IF(Mkt_FX_10=0,"ZERO","OK")) -> ERROR
B54: Spread Risk | E54: 1 in 10
B56: Marketspbonds | E56: =-'Credit Spread Risk'!I34 -> 0 | S56: =IF(OR('Credit Spread Risk'!M30="",'Credit Spread Risk'!M31="",'Credit Spread Risk'!M32="",E44=""),"ERROR",IF(E44=0,"ZERO","OK")) -> ZERO
B60: Concentration Risk | E60: 1 in 10
B62: Marketconc | E62: ='Market Risk Inputs'!D28 -> 0 | S62: =IF(OR('Market Risk Inputs'!R7="ERROR",'Market Risk Inputs'!$R$28="ERROR"),"ERROR",IF(E62=0,"ZERO","OK")) -> ERROR

Sheet Non-Life Underwriting Risk
A1: =RIGHT(CELL("filename",$A$1),LEN(CELL("filename",$A$1))-FIND("]",CELL("filename",$A$1))) -> Non-Life Underwriting Risk | R1: =Insurer_Shortname -> 0
A2: =Insurer_Name & " (" & Insurer_Shortname & ")" -> () | R2: =QIS_YE_Date -> 2017-12-31
B5: Non-Life Underwriting Risk | E5: 1 in 10
B7: NLpr | C7: * | E7: =NL_PR_10 -> 0 | R7: =R29 -> ERROR
B8: NLlapse | C8: * | E8: =NL_Lapse_10 -> 0 | R8: =IF(ISERROR(MATCH("ERROR",$R$36,0)),"OK","ERROR") -> OK
E9: =NL_CAT_10 -> 0
B11: Capital Requirement (before div. effects) | E11: =SUM(E7:E9) -> 0
B13: Diversification | E13: =E15-E11 -> 0
B15: SCRnon-life | C15: * | E15: =SQRT(MMULT(MMULT(TRANSPOSE(E7:E9),NLCorr_10),E7:E9)) -> 0 | R15: =IF(ISERROR(MATCH("ERROR",$R$7:$R$9,0)),"OK","ERROR") -> ERROR
B17: SCRnon-life_stop_loss | C17: *
B19: SCRnon-life_capped | E19: =IF(E17<>0,MIN(E17,SCR_Non_Life_10),SCR_Non_Life_10) -> 0 | R19: =IF(OR(AND(E17<>0,E19=E17),AND(E17=0,SCR_Non_Life_10=E19)),"OK","ERROR") -> OK
B23: Premium and Reserve Risk | E23: 1 in 10
B25: Vnl | E25: ='Non-Life Underwriting Risk'!G104 -> 0
B26: σnl | E26: ='Non-Life Underwriting Risk'!G105 -> 0
B27: θ | E27: 1.3
B29: NLpr | E29: =E$25*E$26*E$27 -> 0 | R29: =IF(ISERROR(MATCH("ERROR",'Premium and Reserve Risk'!$AA:$AA,0)),IF(NL_PR_10=0,"ZERO","OK"),"ERROR") -> ERROR
B33: Lapse Risk | E33: 1 in 10
B36: NLlapse | E36: =LAPSE_UP_10 -> 0 | R36: =IF((R34="ERROR"),"ERROR",IF(NL_Lapse_10=0,"ZERO","OK")) -> ZERO
B40: Non-Life Catastrophe Risk | E40: 1 in 10
B42: NLCATnatural | E42: 0
B43: NLCATnpproperty | E43: 0
B44: NLCATmanmade | E44: 0
B45: NLCATother | E45: 0
B47: NLCAT | E47: =SQRT(MMULT(MMULT(TRANSPOSE(E42:E45),CorrCAT_10),E42:E45)) -> 0
B53: Standard Deviation * | G53: NPs * | I53: σ(prem,s) * | K53: NPs x σ(prem,s) | M53: σ(res,s) *
B55: 1 - Motor Vehicle Liability & Prop. Reins. | G55: 0.8 | I55: 0.1 | K55: =G55*I55 -> 0.08 | M55: 0.09 | R55: =IF(OR(G55="",'Premium and Reserve Risk'!AA7="ERROR"),"ERROR","OK") -> ERROR
B56: 2 - Other Motor & Prop. Reins. | G56: 1 | I56: 0.08 | K56: 0.08 | M56: 0.08 | R56: =IF(OR(G56="",'Premium and Reserve Risk'!AA8="ERROR"),"ERROR","OK") -> ERROR
B57: 3 - Marine, Aviation & Transport (MAT) & Prop. Reins. | G57: 1 | I57: 0.15 | K57: 0.15 | M57: 0.11 | R57: =IF(OR(G57="",'Premium and Reserve Risk'!AA9="ERROR"),"ERROR","OK") -> ERROR
B58: 4 - Fire & Other Damage to Property & Prop. Reins. | G58: 0.8 | I58: 0.08 | K58: 0.064 | M58: 0.1 | R58: =IF(OR(G58="",'Premium and Reserve Risk'!AA10="ERROR"),"ERROR","OK") -> ERROR
B59: 5 - General Liability & Prop. Reins. | G59: 0.8 | I59: 0.14 | K59: 0.112 | M59: 0.11 | R59: =IF(OR(G59="",'Premium and Reserve Risk'!AA11="ERROR"),"ERROR","OK") -> ERROR
B60: 6 - Credit & Suretyship & Prop. Reins. | G60: 1 | I60: 0.12 | K60: 0.12 | M60: 0.19 | R60: =IF(OR(G60="",'Premium and Reserve Risk'!AA12="ERROR"),"ERROR","OK") -> ERROR
B61: 7 - Legal Expenses & Prop. Reins. | G61: 1 | I61: 0.07 | K61: 0.07 | M61: 0.12 | R61: =IF(OR(G61="",'Premium and Reserve Risk'!AA13="ERROR"),"ERROR","OK") -> ERROR
B62: 8 - Assistance & Prop. Reins. | G62: 1 | I62: 0.09 | K62: 0.09 | M62: 0.2 | R62: =IF(OR(G62="",'Premium and Reserve Risk'!AA14="ERROR"),"ERROR","OK") -> ERROR
B63: 9 - Miscellaneous Financial Loss & Prop. Reins. | G63: 1 | I63: 0.13 | K63: 0.13 | M63: 0.2 | R63: =IF(OR(G63="",'Premium and Reserve Risk'!AA15="ERROR"),"ERROR","OK") -> ERROR
B64: 25 - Non-prop. reinsurance - Casualty | G64: 1 | I64: 0.17 | K64: 0.17 | M64: 0.2 | R64: ='Premium and Reserve Risk'!AA16 -> ERROR
B65: 26 - Non-prop. reinsurance - MAT | G65: 1 | I65: 0.17 | K65: 0.17 | M65: 0.2 | R65: ='Premium and Reserve Risk'!AA17 -> ERROR
B66: 27 - Non-prop. reinsurance - Property | G66: 1 | I66: 0.17 | K66: 0.17 | M66: 0.2 | R66: ='Premium and Reserve Risk'!AA18 -> ERROR
B70: Standard Deviation after aggregates * | D70: * | K70: NPs x σ(prem,s) | M70: σ(res,s) * | O70: σs *
B72: 1 - Motor Vehicle Liability & Prop. Reins. | K72: =IF('Premium and Reserve Risk'!O7<>0,(SUMPRODUCT(Agg_P_1,Agg_sP_1)+('Premium and Reserve Risk'!O7-SUM(Agg_P_1))*'Non-Life Underwriting Risk'!K55)/'Premium and Reserve Risk'!O7,'Non-Life Underwriting Risk'!K55) -> 0.08 | M72: =IF('Premium and Reserve Risk'!Q7<>0,(SUMPRODUCT(Agg_R_1,Agg_sR_1)+('Premium and Reserve Risk'!Q7-SUM(Agg_R_1))*'Non-Life Underwriting Risk'!M55)/'Premium and Reserve Risk'!Q7,'Non-Life Underwriting Risk'!M55) -> 0.09 | O72: =IF(SUM('Premium and Reserve Risk'!O7:Q7)<>0,SQRT((K72*'Premium and Reserve Risk'!O7)^2+0.5*(K72*'Premium and Reserve Risk'!O7*M72*'Premium and Reserve Risk'!Q7)+(M72*'Premium and Reserve Risk'!Q7)^2)/('Premium and Reserve Risk'!O7+'Premium and Reserve Risk'!Q7),0) -> 0
B73: 2 - Other Motor & Prop. Reins. | K73: =IF('Premium and Reserve Risk'!O8<>0,(SUMPRODUCT(Agg_P_2,Agg_sP_2)+('Premium and Reserve Risk'!O8-SUM(Agg_P_2))*'Non-Life Underwriting Risk'!K56)/'Premium and Reserve Risk'!O8,'Non-Life Underwriting Risk'!K56) -> 0.08 | M73: =IF('Premium and Reserve Risk'!Q8<>0,(SUMPRODUCT(Agg_R_2,Agg_sR_2)+('Premium and Reserve Risk'!Q8-SUM(Agg_R_2))*'Non-Life Underwriting Risk'!M56)/'Premium and Reserve Risk'!Q8,'Non-Life Underwriting Risk'!M56) -> 0.08 | O73: =IF(SUM('Premium and Reserve Risk'!O8:Q8)<>0,SQRT((K73*'Premium and Reserve Risk'!O8)^2+0.5*(K73*'Premium and Reserve Risk'!O8*M73*'Premium and Reserve Risk'!Q8)+(M73*'Premium and Reserve Risk'!Q8)^2)/('Premium and Reserve Risk'!O8+'Premium and Reserve Risk'!Q8),0) -> 0
B74: 3 - Marine, Aviation & Transport (MAT) & Prop. Reins. | K74: =IF('Premium and Reserve Risk'!O9<>0,(SUMPRODUCT(Agg_P_3,Agg_sP_3)+('Premium and Reserve Risk'!O9-SUM(Agg_P_3))*'Non-Life Underwriting Risk'!K57)/'Premium and Reserve Risk'!O9,'Non-Life Underwriting Risk'!K57) -> 0.15 | M74: =IF('Premium and Reserve Risk'!Q9<>0,(SUMPRODUCT(Agg_R_3,Agg_sR_3)+('Premium and Reserve Risk'!Q9-SUM(Agg_R_3))*'Non-Life Underwriting Risk'!M57)/'Premium and Reserve Risk'!Q9,'Non-Life Underwriting Risk'!M57) -> 0.11 | O74: =IF(SUM('Premium and Reserve Risk'!O9:Q9)<>0,SQRT((K74*'Premium and Reserve Risk'!O9)^2+0.5*(K74*'Premium and Reserve Risk'!O9*M74*'Premium and Reserve Risk'!Q9)+(M74*'Premium and Reserve Risk'!Q9)^2)/('Premium and Reserve Risk'!O9+'Premium and Reserve Risk'!Q9),0) -> 0
B75: 4 - Fire & Other Damage to Property & Prop. Reins. | K75: =IF('Premium and Reserve Risk'!O10<>0,(SUMPRODUCT(Agg_P_4,Agg_sP_4)+('Premium and Reserve Risk'!O10-SUM(Agg_P_4))*'Non-Life Underwriting Risk'!K58)/'Premium and Reserve Risk'!O10,'Non-Life Underwriting Risk'!K58) -> 0.064 | M75: =IF('Premium and Reserve Risk'!Q10<>0,(SUMPRODUCT(Agg_R_4,Agg_sR_4)+('Premium and Reserve Risk'!Q10-SUM(Agg_R_4))*'Non-Life Underwriting Risk'!M58)/'Premium and Reserve Risk'!Q10,'Non-Life Underwriting Risk'!M58) -> 0.1 | O75: =IF(SUM('Premium and Reserve Risk'!O10:Q10)<>0,SQRT((K75*'Premium and Reserve Risk'!O10)^2+0.5*(K75*'Premium and Reserve Risk'!O10*M75*'Premium and Reserve Risk'!Q10)+(M75*'Premium and Reserve Risk'!Q10)^2)/('Premium and Reserve Risk'!O10+'Premium and Reserve Risk'!Q10),0) -> 0
B76: 5 - General Liability & Prop. Reins. | K76: =IF('Premium and Reserve Risk'!O11<>0,(SUMPRODUCT(Agg_P_5,Agg_sP_5)+('Premium and Reserve Risk'!O11-SUM(Agg_P_5))*'Non-Life Underwriting Risk'!K59)/'Premium and Reserve Risk'!O11,'Non-Life Underwriting Risk'!K59) -> 0.112 | M76: =IF('Premium and Reserve Risk'!Q11<>0,(SUMPRODUCT(Agg_R_5,Agg_sR_5)+('Premium and Reserve Risk'!Q11-SUM(Agg_R_5))*'Non-Life Underwriting Risk'!M59)/'Premium and Reserve Risk'!Q11,'Non-Life Underwriting Risk'!M59) -> 0.11 | O76: =IF(SUM('Premium and Reserve Risk'!O11:Q11)<>0,SQRT((K76*'Premium and Reserve Risk'!O11)^2+0.5*(K76*'Premium and Reserve Risk'!O11*M76*'Premium and Reserve Risk'!Q11)+(M76*'Premium and Reserve Risk'!Q11)^2)/('Premium and Reserve Risk'!O11+'Premium and Reserve Risk'!Q11),0) -> 0
B77: 6 - Credit & Suretyship & Prop. Reins. | K77: =IF('Premium and Reserve Risk'!O12<>0,(SUMPRODUCT(Agg_P_6,Agg_sP_6)+('Premium and Reserve Risk'!O12-SUM(Agg_P_6))*'Non-Life Underwriting Risk'!K60)/'Premium and Reserve Risk'!O12,'Non-Life Underwriting Risk'!K60) -> 0.12 | M77: =IF('Premium and Reserve Risk'!Q12<>0,(SUMPRODUCT(Agg_R_6,Agg_sR_6)+('Premium and Reserve Risk'!Q12-SUM(Agg_R_6))*'Non-Life Underwriting Risk'!M60)/'Premium and Reserve Risk'!Q12,'Non-Life Underwriting Risk'!M60) -> 0.19 | O77: =IF(SUM('Premium and Reserve Risk'!O12:Q12)<>0,SQRT((K77*'Premium and Reserve Risk'!O12)^2+0.5*(K77*'Premium and Reserve Risk'!O12*M77*'Premium and Reserve Risk'!Q12)+(M77*'Premium and Reserve Risk'!Q12)^2)/('Premium and Reserve Risk'!O12+'Premium and Reserve Risk'!Q12),0) -> 0
B78: 7 - Legal Expenses & Prop. Reins. | K78: =IF('Premium and Reserve Risk'!O13<>0,(SUMPRODUCT(Agg_P_7,Agg_sP_7)+('Premium and Reserve Risk'!O13-SUM(Agg_P_7))*'Non-Life Underwriting Risk'!K61)/'Premium and Reserve Risk'!O13,'Non-Life Underwriting Risk'!K61) -> 0.07 | M78: =IF('Premium and Reserve Risk'!Q13<>0,(SUMPRODUCT(Agg_R_7,Agg_sR_7)+('Premium and Reserve Risk'!Q13-SUM(Agg_R_7))*'Non-Life Underwriting Risk'!M61)/'Premium and Reserve Risk'!Q13,'Non-Life Underwriting Risk'!M61) -> 0.12 | O78: =IF(SUM('Premium and Reserve Risk'!O13:Q13)<>0,SQRT((K78*'Premium and Reserve Risk'!O13)^2+0.5*(K78*'Premium and Reserve Risk'!O13*M78*'Premium and Reserve Risk'!Q13)+(M78*'Premium and Reserve Risk'!Q13)^2)/('Premium and Reserve Risk'!O13+'Premium and Reserve Risk'!Q13),0) -> 0
B79: 8 - Assistance & Prop. Reins. | K79: =IF('Premium and Reserve Risk'!O14<>0,(SUMPRODUCT(Agg_P_8,Agg_sP_8)+('Premium and Reserve Risk'!O14-SUM(Agg_P_8))*'Non-Life Underwriting Risk'!K62)/'Premium and Reserve Risk'!O14,'Non-Life Underwriting Risk'!K62) -> 0.09 | M79: =IF('Premium and Reserve Risk'!Q14<>0,(SUMPRODUCT(Agg_R_8,Agg_sR_8)+('Premium and Reserve Risk'!Q14-SUM(Agg_R_8))*'Non-Life Underwriting Risk'!M62)/'Premium and Reserve Risk'!Q14,'Non-Life Underwriting Risk'!M62) -> 0.2 | O79: =IF(SUM('Premium and Reserve Risk'!O14:Q14)<>0,SQRT((K79*'Premium and Reserve Risk'!O14)^2+0.5*(K79*'Premium and Reserve Risk'!O14*M79*'Premium and Reserve Risk'!Q14)+(M79*'Premium and Reserve Risk'!Q14)^2)/('Premium and Reserve Risk'!O14+'Premium and Reserve Risk'!Q14),0) -> 0
B80: 9 - Miscellaneous Financial Loss & Prop. Reins. | K80: =IF('Premium and Reserve Risk'!O15<>0,(SUMPRODUCT(Agg_P_9,Agg_sP_9)+('Premium and Reserve Risk'!O15-SUM(Agg_P_9))*'Non-Life Underwriting Risk'!K63)/'Premium and Reserve Risk'!O15,'Non-Life Underwriting Risk'!K63) -> 0.13 | M80: =IF('Premium and Reserve Risk'!Q15<>0,(SUMPRODUCT(Agg_R_9,Agg_sR_9)+('Premium and Reserve Risk'!Q15-SUM(Agg_R_9))*'Non-Life Underwriting Risk'!M63)/'Premium and Reserve Risk'!Q15,'Non-Life Underwriting Risk'!M63) -> 0.2 | O80: =IF(SUM('Premium and Reserve Risk'!O15:Q15)<>0,SQRT((K80*'Premium and Reserve Risk'!O15)^2+0.5*(K80*'Premium and Reserve Risk'!O15*M80*'Premium and Reserve Risk'!Q15)+(M80*'Premium and Reserve Risk'!Q15)^2)/('Premium and Reserve Risk'!O15+'Premium and Reserve Risk'!Q15),0) -> 0
B81: 25 - Non-prop. reinsurance - Casualty | K81: =IF('Premium and Reserve Risk'!O16<>0,(SUMPRODUCT(Agg_P_19,Agg_sP_19)+('Premium and Reserve Risk'!O16-SUM(Agg_P_19))*'Non-Life Underwriting Risk'!K64)/'Premium and Reserve Risk'!O16,'Non-Life Underwriting Risk'!K64) -> 0.17 | M81: =IF('Premium and Reserve Risk'!Q16<>0,(SUMPRODUCT(Agg_R_19,Agg_sR_19)+('Premium and Reserve Risk'!Q16-SUM(Agg_R_19))*'Non-Life Underwriting Risk'!M64)/'Premium and Reserve Risk'!Q16,'Non-Life Underwriting Risk'!M64) -> 0.2 | O81: =IF(SUM('Premium and Reserve Risk'!O16:Q16)<>0,SQRT((K81*'Premium and Reserve Risk'!O16)^2+0.5*(K81*'Premium and Reserve Risk'!O16*M81*'Premium and Reserve Risk'!Q16)+(M81*'Premium and Reserve Risk'!Q16)^2)/('Premium and Reserve Risk'!O16+'Premium and Reserve Risk'!Q16),0) -> 0
B82: 26 - Non-prop. reinsurance - MAT | K82: =IF('Premium and Reserve Risk'!O17<>0,(SUMPRODUCT(Agg_P_20,Agg_sP_20)+('Premium and Reserve Risk'!O17-SUM(Agg_P_20))*'Non-Life Underwriting Risk'!K65)/'Premium and Reserve Risk'!O17,'Non-Life Underwriting Risk'!K65) -> 0.17 | M82: =IF('Premium and Reserve Risk'!Q17<>0,(SUMPRODUCT(Agg_R_20,Agg_sR_20)+('Premium and Reserve Risk'!Q17-SUM(Agg_R_20))*'Non-Life Underwriting Risk'!M65)/'Premium and Reserve Risk'!Q17,'Non-Life Underwriting Risk'!M65) -> 0.2 | O82: =IF(SUM('Premium and Reserve Risk'!O17:Q17)<>0,SQRT((K82*'Premium and Reserve Risk'!O17)^2+0.5*(K82*'Premium and Reserve Risk'!O17*M82*'Premium and Reserve Risk'!Q17)+(M82*'Premium and Reserve Risk'!Q17)^2)/('Premium and Reserve Risk'!O17+'Premium and Reserve Risk'!Q17),0) -> 0
B83: 27 - Non-prop. reinsurance - Property | K83: =IF('Premium and Reserve Risk'!O18<>0,(SUMPRODUCT(Agg_P_21,Agg_sP_21)+('Premium and Reserve Risk'!O18-SUM(Agg_P_21))*'Non-Life Underwriting Risk'!K66)/'Premium and Reserve Risk'!O18,'Non-Life Underwriting Risk'!K66) -> 0.17 | M83: =IF('Premium and Reserve Risk'!Q18<>0,(SUMPRODUCT(Agg_R_21,Agg_sR_21)+('Premium and Reserve Risk'!Q18-SUM(Agg_R_21))*'Non-Life Underwriting Risk'!M66)/'Premium and Reserve Risk'!Q18,'Non-Life Underwriting Risk'!M66) -> 0.2 | O83: =IF(SUM('Premium and Reserve Risk'!O18:Q18)<>0,SQRT((K83*'Premium and Reserve Risk'!O18)^2+0.5*(K83*'Premium and Reserve Risk'!O18*M83*'Premium and Reserve Risk'!Q18)+(M83*'Premium and Reserve Risk'!Q18)^2)/('Premium and Reserve Risk'!O18+'Premium and Reserve Risk'!Q18),0) -> 0
B87: Overall | G87: Vs x σs
B89: 1 - Motor Vehicle Liability & Prop. Reins. | G89: ='Premium and Reserve Risk'!U7*O72 -> 0
B90: 2 - Other Motor & Prop. Reins. | G90: ='Premium and Reserve Risk'!U8*O73 -> 0
B91: 3 - Marine, Aviation & Transport (MAT) & Prop. Reins. | G91: ='Premium and Reserve Risk'!U9*O74 -> 0
B92: 4 - Fire & Other Damage to Property & Prop. Reins. | G92: ='Premium and Reserve Risk'!U10*O75 -> 0
B93: 5 - General Liability & Prop. Reins. | G93: ='Premium and Reserve Risk'!U11*O76 -> 0
B94: 6 - Credit & Suretyship & Prop. Reins. | G94: ='Premium and Reserve Risk'!U12*O77 -> 0
B95: 7 - Legal Expenses & Prop. Reins. | G95: ='Premium and Reserve Risk'!U13*O78 -> 0
B96: 8 - Assistance & Prop. Reins. | G96: ='Premium and Reserve Risk'!U14*O79 -> 0
B97: 9 - Miscellaneous Financial Loss & Prop. Reins. | G97: ='Premium and Reserve Risk'!U15*O80 -> 0
B98: 25 - Non-prop. reinsurance - Casualty | G98: ='Premium and Reserve Risk'!U16*O81 -> 0
B99: 26 - Non-prop. reinsurance - MAT | G99: ='Premium and Reserve Risk'!U17*O82 -> 0
B100: 27 - Non-prop. reinsurance - Property | G100: ='Premium and Reserve Risk'!U18*O83 -> 0
B102: Result
B104: Vnl | G104: =SUM('Premium and Reserve Risk'!$U$7:$U$18) -> 0
B105: σnl | G105: =IF($G$104=0,0,SQRT(MMULT(MMULT(TRANSPOSE($G$89:$G$100),CorrPR_10),$G$89:$G$100))/$G$104) -> 0

Sheet Non-SLT Health Risk
A1: =RIGHT(CELL("filename",$A$1),LEN(CELL("filename",$A$1))-FIND("]",CELL("filename",$A$1))) -> Non-SLT Health Risk | Q1: =Insurer_Shortname -> 0
A2: =Insurer_Name & " (" & Insurer_Shortname & ")" -> () | Q2: =QIS_YE_Date -> 2017-12-31
B5: Non-SLT Health Underwriting Risk | E5: 1 in 10
B7: Healthpr | C7: * | E7: =NL_Health_PR_10 -> 0 | Q7: =Q29 -> ERROR
B8: Healthlapse | C8: * | E8: =NL_Lapse_10_Health -> 0 | Q8: =IF(ISERROR(MATCH("ERROR",$Q$36,0)),"OK","ERROR") -> OK
E9: 0
B11: Capital Requirement (before div. effects) | E11: =SUM(E7:E9) -> 0
B13: Diversification | E13: =E15-E11 -> 0
B15: SCRhealth | C15: * | E15: =SQRT(MMULT(MMULT(TRANSPOSE(E7:E9),HealthCorr_10),E7:E9)) -> 0 | Q15: =IF(ISERROR(MATCH("ERROR",$Q$7:$Q$9,0)),"OK","ERROR") -> ERROR
B17: SCRhealth_stop_loss
B19: SCRhealth_capped | E19: =IF(E17<>0,MIN(E17,SCR_Health_10),SCR_Health_10) -> 0
B23: Premium and Reserve Risk | E23: 1 in 10
B25: Vnl | E25: ='Non-SLT Health Risk'!E79 -> 0
B26: σnl | E26: ='Non-SLT Health Risk'!E80 -> 0
B27: θ | E27: 1.3
B29: Healthpr | E29: =E$25*E$26*E$27 -> 0 | Q29: =IF(ISERROR(MATCH("ERROR",'Premium and Reserve Risk'!$AA:$AA,0)),IF(NL_PR_10=0,"ZERO","OK"),"ERROR") -> ERROR
B33: Non SLT Health Lapse Risk | E33: 1 in 10
B36: Healthlapse | E36: =LAPSE_UP_10_HEALTH -> 0 | Q36: =IF((Q34="ERROR"),"ERROR",IF(NL_Lapse_10=0,"ZERO","OK")) -> ZERO
B40: Non-Life Health Catastrophe Risk | E40: 1 in 10
B42: Healthmassaccident | E42: 0
B43: Healthconcentration | E43: 0
B44: Healthpandemic | E44: 0
B46: NLhealthCAT | E46: =SQRT(SUMSQ(E42:E44)) -> 0
B52: Standard Deviation * | E52: NPs * | H52: σ(prem,s) * | J52: NPs x σ(prem,s) | L52: σ(res,s) *
B54: 10 - Medical expense & Prop. Reins. | E54: 1 | H54: 0.05 | J54: =E54*H54 -> 0.05 | L54: 0.05 | Q54: =IF(OR(E54="",'Health_Prem & Reserve Risk'!AA7="ERROR"),"ERROR","OK") -> ERROR
B55: 11 - Income Protection & Prop. Reins. | E55: 1 | H55: 0.085 | J55: =E55*H55 -> 0.085 | L55: 0.14 | Q55: =IF(OR(E55="",'Health_Prem & Reserve Risk'!AA8="ERROR"),"ERROR","OK") -> ERROR
B56: 12 - Workers' compensation & Prop. Reins. | E56: 1 | H56: 0.08 | J56: =E56*H56 -> 0.08 | L56: 0.11 | Q56: =IF(OR(E56="",'Health_Prem & Reserve Risk'!AA9="ERROR"),"ERROR","OK") -> ERROR
B57: 28 - Non-prop. reinsurance - Health | E57: 1 | H57: 0.17 | J57: =E57*H57 -> 0.17 | L57: 0.2 | Q57: ='Health_Prem & Reserve Risk'!AA10 -> ERROR
B61: Standard Deviation after aggregates * | J61: NPs x σ(prem,s) | L61: σ(res,s) | N61: σs *
B63: 10 - Medical expense & Prop. Reins. | J63: =IF('Health_Prem & Reserve Risk'!O7<>0,(SUMPRODUCT(Agg_PH_1,Agg_SPH_1)+('Health_Prem & Reserve Risk'!O7-SUM(Agg_PH_1))*'Non-SLT Health Risk'!J54)/'Health_Prem & Reserve Risk'!O7,'Non-SLT Health Risk'!J54) -> 0.05 | L63: =IF('Health_Prem & Reserve Risk'!Q7<>0,(SUMPRODUCT(Agg_RH_1,Agg_SRH_1)+('Health_Prem & Reserve Risk'!Q7-SUM(Agg_RH_1))*'Non-SLT Health Risk'!L54)/'Health_Prem & Reserve Risk'!Q7,'Non-SLT Health Risk'!L54) -> 0.05 | N63: =IF(SUM('Health_Prem & Reserve Risk'!O7:Q7)<>0,SQRT((J63*'Health_Prem & Reserve Risk'!O7)^2+0.5*(J63*'Health_Prem & Reserve Risk'!O7*L63*'Health_Prem & Reserve Risk'!Q7)+(L63*'Health_Prem & Reserve Risk'!Q7)^2)/('Health_Prem & Reserve Risk'!O7+'Health_Prem & Reserve Risk'!Q7),0) -> 0
B64: 11 - Income Protection & Prop. Reins. | J64: =IF('Health_Prem & Reserve Risk'!O8<>0,(SUMPRODUCT(Agg_PH_2,Agg_SPH_2)+('Health_Prem & Reserve Risk'!O8-SUM(Agg_PH_2))*'Non-SLT Health Risk'!J55)/'Health_Prem & Reserve Risk'!O8,'Non-SLT Health Risk'!J55) -> 0.085 | L64: =IF('Health_Prem & Reserve Risk'!Q8<>0,(SUMPRODUCT(Agg_RH_2,Agg_SRH_2)+('Health_Prem & Reserve Risk'!Q8-SUM(Agg_RH_2))*'Non-SLT Health Risk'!L55)/'Health_Prem & Reserve Risk'!Q8,'Non-SLT Health Risk'!L55) -> 0.14 | N64: =IF(SUM('Health_Prem & Reserve Risk'!O8:Q8)<>0,SQRT((J64*'Health_Prem & Reserve Risk'!O8)^2+0.5*(J64*'Health_Prem & Reserve Risk'!O8*L64*'Health_Prem & Reserve Risk'!Q8)+(L64*'Health_Prem & Reserve Risk'!Q8)^2)/('Health_Prem & Reserve Risk'!O8+'Health_Prem & Reserve Risk'!Q8),0) -> 0
B65: 12 - Workers' compensation & Prop. Reins. | J65: =IF('Health_Prem & Reserve Risk'!O9<>0,(SUMPRODUCT(Agg_PH_3,Agg_SPH_3)+('Health_Prem & Reserve Risk'!O9-SUM(Agg_PH_3))*'Non-SLT Health Risk'!J56)/'Health_Prem & Reserve Risk'!O9,'Non-SLT Health Risk'!J56) -> 0.08 | L65: =IF('Health_Prem & Reserve Risk'!Q9<>0,(SUMPRODUCT(Agg_RH_3,Agg_SRH_3)+('Health_Prem & Reserve Risk'!Q9-SUM(Agg_RH_3))*'Non-SLT Health Risk'!L56)/'Health_Prem & Reserve Risk'!Q9,'Non-SLT Health Risk'!L56) -> 0.11 | N65: =IF(SUM('Health_Prem & Reserve Risk'!O9:Q9)<>0,SQRT((J65*'Health_Prem & Reserve Risk'!O9)^2+0.5*(J65*'Health_Prem & Reserve Risk'!O9*L65*'Health_Prem & Reserve Risk'!Q9)+(L65*'Health_Prem & Reserve Risk'!Q9)^2)/('Health_Prem & Reserve Risk'!O9+'Health_Prem & Reserve Risk'!Q9),0) -> 0
B66: 28 - Non-prop. reinsurance - Health | J66: =IF('Health_Prem & Reserve Risk'!O10<>0,(SUMPRODUCT(Agg_PH_4,Agg_SPH_4)+('Health_Prem & Reserve Risk'!O10-SUM(Agg_PH_4))*'Non-SLT Health Risk'!J57)/'Health_Prem & Reserve Risk'!O10,'Non-SLT Health Risk'!J57) -> 0.17 | L66: =IF('Health_Prem & Reserve Risk'!Q10<>0,(SUMPRODUCT(Agg_RH_4,Agg_SRH_4)+('Health_Prem & Reserve Risk'!Q10-SUM(Agg_RH_4))*'Non-SLT Health Risk'!L57)/'Health_Prem & Reserve Risk'!Q10,'Non-SLT Health Risk'!L57) -> 0.2 | N66: =IF(SUM('Health_Prem & Reserve Risk'!O10:Q10)<>0,SQRT((J66*'Health_Prem & Reserve Risk'!O10)^2+0.5*(J66*'Health_Prem & Reserve Risk'!O10*L66*'Health_Prem & Reserve Risk'!Q10)+(L66*'Health_Prem & Reserve Risk'!Q10)^2)/('Health_Prem & Reserve Risk'!O10+'Health_Prem & Reserve Risk'!Q10),0) -> 0
B70: Overall | E70: Vs x σs
B72: 10 - Medical expense & Prop. Reins. | E72: ='Health_Prem & Reserve Risk'!U7*N63 -> 0
B73: 11 - Income Protection & Prop. Reins. | E73: ='Health_Prem & Reserve Risk'!U8*N64 -> 0
B74: 12 - Workers' compensation & Prop. Reins. | E74: ='Health_Prem & Reserve Risk'!U9*N65 -> 0
B75: 28 - Non-prop. reinsurance - Health | E75: ='Health_Prem & Reserve Risk'!U10*N66 -> 0
B77: Result
B79: VNonSLTHealth | E79: =SUM('Health_Prem & Reserve Risk'!$U$7:$U$10) -> 0
B80: σNonSLTHealth | E80: =IF($E$79=0,0,SQRT(MMULT(MMULT(TRANSPOSE($E$72:$E$75),CorrPR_Health_10),$E$72:$E$75))/$E$79) -> 0

Sheet SCR Summary
A1: =RIGHT(CELL("filename",$A$1),LEN(CELL("filename",$A$1))-FIND("]",CELL("filename",$A$1))) -> SCR Summary | G1: =Insurer_Shortname -> 0
A2: =Insurer_Name & " (" & Insurer_Shortname & ")" -> () | G2: =QIS_YE_Date -> 2017-12-31
B5: Solvency Capital Requirement | D5: 1 in 10
B7: SCRmarket | D7: =SCR_Market_10 -> 0 | G7: ='Market Risk'!S18 -> ERROR
B8: SCRdefault | D8: =SCR_Default_10 -> 0 | G8: ='Counterparty Default Risk'!$K$11 -> ERROR
B9: SCRhealth | D9: =SCR_Health_10_capped -> 0 | G9: ='Non-Life Underwriting Risk'!$R$19 -> OK
B10: SCRnon-life | D10: =SCR_Non_Life_10_capped -> 0 | G10: ='Non-Life Underwriting Risk'!$R$19 -> OK
B11: SCRintangibles | C11: * | D11: =0.4*'EBS - Assets'!$F$10 -> 0 | G11: ='EBS - Assets'!$K$13 -> ERROR
B13: BSCR (before diversification effects) | D13: =SUM(D7:D11) -> 0
B15: Diversification | C15: * | D15: =SQRT(MMULT(MMULT(TRANSPOSE(D7:D10),Corr_10),D7:D10))-SUM(D7:D10) -> 0
B17: BSCR | D17: =SUM(D13,D15) -> 0
B19: SCRop | D19: 0
B21: Regulatory Adjustment
B23: SCR | C23: * | D23: =SUM(BSCR_10,SCR_Op_10,Adj_Reg_10) -> 0 | G23: =IF(ISERROR(MATCH("ERROR",$G$7:$G$11,0)),"OK","ERROR") -> ERROR
B27: Capital Resources | D27: 1 in 10
B29: Tier 1 Capital | D29: =EOF_Tier_1_10 -> 0
B30: Tier 2 Capital | D30: =EOF_Tier_2_10 -> 0
B31: Tier 3 Capital | D31: =EOF_Tier_3_10 -> 0
B33: Tier 1 Regulatory Adjustment
B34: Tier 2 Regulatory Adjustment
B35: Tier 3 Regulatory Adjustment
B37: Regulatory capital resources to meet SCR | D37: =SUM(D29:D31,D33:D35) -> 0
B39: SCR Ratio | D39: =Cap_Res_10/SCR_10 ->  | G39: =IF(ISERROR(D39),"ERROR","OK") -> ERROR
D43: =IF(SCR_10=0,"",IF(Cap_Res_10<SCR_10,"1 in 10 - Capital insufficient to cover SCR",IF(MIN(SCR_10,SUM(Tier_1_Cap_10,Tier_1_Adj_10))<0.5*SCR_10,"1 in 10 - Proportion of Tier 1 Capital Insufficient",IF(MIN(SCR_10-MIN(SCR_10,SUM(Tier_1_Cap_10,Tier_1_Adj_10))-MIN(SCR_10-MIN(SCR_10,SUM(Tier_1_Cap_10,Tier_1_Adj_10)),SUM(Tier_2_Cap_10,Tier_2_Adj_10)),SUM(Tier_3_Cap_10,Tier_3_Adj_10))>0.15*SCR_10,"1 in 10 - Proportion of Tier 3 Capital too great","1 in 10 - Capital OK")))) -> 

Sheet Data
A1: =RIGHT(CELL("filename",$A$1),LEN(CELL("filename",$A$1))-FIND("]",CELL("filename",$A$1))) -> Data
B4: Currency | C4: Currency Code
B5: United Kingdom Pound | C5: GBP
B6: United States Dollar | C6: USD
B7: Euro | C7: EUR
B8: Sweden Krona | C8: SEK
B9: Afghanistan Afghani | C9: AFN
B10: Albania Lek | C10: ALL
B11: Algeria Dinar | C11: DZD
B12: Argentina Peso | C12: ARS
B13: Australia Dollar | C13: AUD
B14: Bahamas Dollar | C14: BSD
B15: Bahrain Dinar | C15: BHD
B16: Bangladesh Taka | C16: BDT
B17: Barbados Dollar | C17: BBD
B18: Bermuda Dollar | C18: BMD
B19: Brazil Real | C19: BRL
B20: Bulgaria Lev | C20: BGN
B21: Canada Dollar | C21: CAD
B22: Chile Peso | C22: CLP
B23: China Yuan Renminbi | C23: CNY
B24: Colombia Peso | C24: COP
B25: Costa Rica Colon | C25: CRC
B26: Croatia Kuna | C26: HRK
B27: Czech Republic Koruna | C27: CZK
B28: Denmark Krone | C28: DKK
B29: Dominican Republic Peso | C29: DOP
B30: Egypt Pound | C30: EGP
B31: Fiji Dollar | C31: FJD
B32: Hong Kong Dollar | C32: HKD
B33: Hungary Forint | C33: HUF
B34: Iceland Krona | C34: ISK
B35: India Rupee | C35: INR
B36: Indonesia Rupiah | C36: IDR
B37: Iran Rial | C37: IRR
B38: Iraq Dinar | C38: IQD
B39: Israel Shekel | C39: ILS
B40: Jamaica Dollar | C40: JMD
B41: Japan Yen | C41: JPY
B42: Jordan Dinar | C42: JOD
B43: Kenya Shilling | C43: KES
B44: Kuwait Dinar | C44: KWD
B45: Lebanon Pounds | C45: LBP
B46: Lituania Lita | C46: LTL
B47: Malaysia Ringgit | C47: MYR
B48: Mauritius Rupee | C48: MUR
B49: Mexico Peso | C49: MXN
B50: Morocco Dirham | C50: MAD
B51: New Zealand Dollar | C51: NZD
B52: Norway Krone | C52: NOK
B53: Oman Rial | C53: OMR
B54: Pakistan Rupee | C54: PKR
B55: Peru Nuevo Sol | C55: PEN
B56: Philippines Peso | C56: PHP
B57: Poland Zloty | C57: PLN
B58: Qatar Riyal | C58: QAR
B59: Romania New Leu | C59: RON
B60: Russia Ruble | C60: RUB
B61: Saudi Arabia Riyal | C61: SAR
B62: Singapore Dollar | C62: SGD
B63: South Africa Rand | C63: ZAR
B64: South Korea Won | C64: KRW
B65: Sri Lanka Rupee | C65: LKR
B66: Sudan Pound | C66: SDG
B67: Switzerland Franc | C67: CHF
B68: Taiwan New Dollar | C68: TWD
B69: Thailand Baht | C69: THB
B70: Trinidad and Tobago Dollar | C70: TTD
B71: Tunisia Dinar | C71: TND
B72: Turkey Lira | C72: TRY
B73: United Arab Emirates Dirham | C73: AED
B74: Venezuela Bolivares Fuertes | C74: VEF
B75: Vietnam Dong | C75: VND
B76: Zambia Kwacha | C76: ZMK
B80: Corr (200) * | C80: Market | D80: Default | E80: Health | F80: Non-Life | J80: Corr (10) * | K80: Market | L80: Default | M80: Health | N80: Non-Life
B81: Market | C81: 1 | D81: 0.25 | E81: 0.25 | F81: 0.25 | J81: Market | K81: 1 | L81: 0 | M81: 0 | N81: 0
B82: Default | C82: 0.25 | D82: 1 | E82: 0.25 | F82: 0.5 | J82: Default | K82: 0 | L82: 1 | M82: 0 | N82: 0.25
B83: Health | C83: 0.25 | D83: 0.25 | E83: 1 | F83: 0 | J83: Health | K83: 0 | L83: 0 | M83: 1 | N83: 0
B84: Non-Life | C84: 0.25 | D84: 0.5 | E84: 0 | F84: 1 | J84: Non-Life | K84: 0 | L84: 0.25 | M84: 0 | N84: 1
B87: MarketCorr (200) * | C87: Interest | D87: Equity | E87: Property | F87: Currency | G87: Spread | H87: Concentration | J87: MarketCorr (10) * | K87: Interest | L87: Equity | M87: Property | N87: Currency | O87: Spread | P87: Concentration
B88: Interest | C88: 1 | D88: =TRANSPOSE(C89:C$93) -> 0 | E88: 0 | F88: 0.25 | G88: 0 | H88: 0 | J88: Interest | K88: 1 | L88: =TRANSPOSE(K89:K$93) -> 0 | M88: 0 | N88: 0 | O88: 0 | P88: 0
B89: Equity | C89: =A_200 -> 0 | D89: 1 | E89: =TRANSPOSE(D90:D$93) -> 0.75 | F89: 0.25 | G89: 0.75 | H89: 0 | J89: Equity | K89: =A_10 -> 0 | L89: 1 | M89: =TRANSPOSE(L90:L$93) -> 0.5 | N89: 0 | O89: 0.5 | P89: 0
B90: Property | C90: =A_200 -> 0 | D90: 0.75 | E90: 1 | F90: =TRANSPOSE(E91:E$93) -> 0.25 | G90: 0.5 | H90: 0 | J90: Property | K90: =A_10 -> 0 | L90: 0.5 | M90: 1 | N90: =TRANSPOSE(M91:M$93) -> 0 | O90: 0.25 | P90: 0
B91: Currency | C91: 0.25 | D91: 0.25 | E91: 0.25 | F91: 1 | G91: =TRANSPOSE(F92:F$93) -> 0.25 | H91: 0 | J91: Currency | K91: =0 -> 0 | L91: 0 | M91: 0 | N91: 1 | O91: =TRANSPOSE(N92:N$93) -> 0 | P91: 0
B92: Spread | C92: =A_200 -> 0 | D92: 0.75 | E92: 0.5 | F92: 0.25 | G92: 1 | H92: =TRANSPOSE(G93:G$93) -> 0 | J92: Spread | K92: =A_10 -> 0 | L92: 0.5 | M92: 0.25 | N92: 0 | O92: 1 | P92: =TRANSPOSE(O93:O$93) -> 0
B93: Concentration | C93: 0 | D93: 0 | E93: 0 | F93: 0 | G93: 0 | H93: 1 | J93: Concentration | K93: 0 | L93: 0 | M93: 0 | N93: 0 | O93: 0 | P93: 1
B95: Selection of A_200 in MarketCorr * | D95: A_200 | L95: A_10
B96: Marketinterest = MarketinterestUp | D96: 0 | L96: 0
B97: Marketinterest = MarketinterestDown | D97: 0.5 | L97: 0.25
C98: Selected: | D98: =0 -> 0 | K98: Selected: | L98: =IF(Mkt_Interest_10=Mkt_Int_Up_10,$L$96,$L$97) -> 0
B101: EqCorr * | C101: Type 1 | D101: Type 2 | J101: EqCorr (10) * | K101: Type 1 | L101: Type 2
B102: Type 1 | C102: 1 | D102: 0.75 | J102: Type 1 | K102: 1 | L102: 0.5
B103: Type 2 | C103: 0.75 | D103: 1 | J103: Type 2 | K103: 0.5 | L103: 1
B106: CurrencyCorr * | C106: 1 | D106: 2 | E106: 3 | F106: 4 | G106: 5 | H106: 6 | I106: 7 | J106: 8 | K106: 9 | L106: 10 | M106: 11 | N106: 12 | O106: 13 | P106: 14 | Q106: 15
B107: CurrGroup1 | C107: 1 | D107: =TRANSPOSE(C108:C$121) -> 0.5 | E107: 0.5 | F107: 0.5 | G107: 0.5 | H107: 0.5 | I107: 0.5 | J107: 0.5 | K107: 0.5 | L107: 0.5 | M107: 0.5 | N107: 0.5 | O107: 0.5 | P107: 0.5 | Q107: 0.5
B108: CurrGroup2 | C108: 0.5 | D108: 1 | E108: =TRANSPOSE(D109:D$121) -> 0.5 | F108: 0.5 | G108: 0.5 | H108: 0.5 | I108: 0.5 | J108: 0.5 | K108: 0.5 | L108: 0.5 | M108: 0.5 | N108: 0.5 | O108: 0.5 | P108: 0.5 | Q108: 0.5
B109: CurrGroup3 | C109: 0.5 | D109: 0.5 | E109: 1 | F109: =TRANSPOSE(E110:E$121) -> 0.5 | G109: 0.5 | H109: 0.5 | I109: 0.5 | J109: 0.5 | K109: 0.5 | L109: 0.5 | M109: 0.5 | N109: 0.5 | O109: 0.5 | P109: 0.5 | Q109: 0.5
B110: CurrGroup4 | C110: 0.5 | D110: 0.5 | E110: 0.5 | F110: 1 | G110: =TRANSPOSE(F111:F$121) -> 0.5 | H110: 0.5 | I110: 0.5 | J110: 0.5 | K110: 0.5 | L110: 0.5 | M110: 0.5 | N110: 0.5 | O110: 0.5 | P110: 0.5 | Q110: 0.5
B111: CurrGroup5 | C111: 0.5 | D111: 0.5 | E111: 0.5 | F111: 0.5 | G111: 1 | H111: =TRANSPOSE(G112:G$121) -> 0.5 | I111: 0.5 | J111: 0.5 | K111: 0.5 | L111: 0.5 | M111: 0.5 | N111: 0.5 | O111: 0.5 | P111: 0.5 | Q111: 0.5
B112: CurrGroup6 | C112: 0.5 | D112: 0.5 | E112: 0.5 | F112: 0.5 | G112: 0.5 | H112: 1 | I112: =TRANSPOSE(H113:H$121) -> 0.5 | J112: 0.5 | K112: 0.5 | L112: 0.5 | M112: 0.5 | N112: 0.5 | O112: 0.5 | P112: 0.5 | Q112: 0.5
B113: CurrGroup7 | C113: 0.5 | D113: 0.5 | E113: 0.5 | F113: 0.5 | G113: 0.5 | H113: 0.5 | I113: 1 | J113: =TRANSPOSE(I114:I$121) -> 0.5 | K113: 0.5 | L113: 0.5 | M113: 0.5 | N113: 0.5 | O113: 0.5 | P113: 0.5 | Q113: 0.5
B114: CurrGroup8 | C114: 0.5 | D114: 0.5 | E114: 0.5 | F114: 0.5 | G114: 0.5 | H114: 0.5 | I114: 0.5 | J114: 1 | K114: =TRANSPOSE(J115:J$121) -> 0.5 | L114: 0.5 | M114: 0.5 | N114: 0.5 | O114: 0.5 | P114: 0.5 | Q114: 0.5
B115: CurrGroup9 | C115: 0.5 | D115: 0.5 | E115: 0.5 | F115: 0.5 | G115: 0.5 | H115: 0.5 | I115: 0.5 | J115: 0.5 | K115: 1 | L115: =TRANSPOSE(K116:K$121) -> 0.5 | M115: 0.5 | N115: 0.5 | O115: 0.5 | P115: 0.5 | Q115: 0.5
B116: CurrGroup10 | C116: 0.5 | D116: 0.5 | E116: 0.5 | F116: 0.5 | G116: 0.5 | H116: 0.5 | I116: 0.5 | J116: 0.5 | K116: 0.5 | L116: 1 | M116: =TRANSPOSE(L117:L$121) -> 0.5 | N116: 0.5 | O116: 0.5 | P116: 0.5 | Q116: 0.5
B117: CurrGroup11 | C117: 0.5 | D117: 0.5 | E117: 0.5 | F117: 0.5 | G117: 0.5 | H117: 0.5 | I117: 0.5 | J117: 0.5 | K117: 0.5 | L117: 0.5 | M117: 1 | N117: =TRANSPOSE(M118:M$121) -> 0.5 | O117: 0.5 | P117: 0.5 | Q117: 0.5
B118: CurrGroup12 | C118: 0.5 | D118: 0.5 | E118: 0.5 | F118: 0.5 | G118: 0.5 | H118: 0.5 | I118: 0.5 | J118: 0.5 | K118: 0.5 | L118: 0.5 | M118: 0.5 | N118: 1 | O118: =TRANSPOSE(N119:N$121) -> 0.5 | P118: 0.5 | Q118: 0.5
B119: CurrGroup13 | C119: 0.5 | D119: 0.5 | E119: 0.5 | F119: 0.5 | G119: 0.5 | H119: 0.5 | I119: 0.5 | J119: 0.5 | K119: 0.5 | L119: 0.5 | M119: 0.5 | N119: 0.5 | O119: 1 | P119: =TRANSPOSE(O120:O$121) -> 0.5 | Q119: 0.5
B120: CurrGroup14 | C120: 0.5 | D120: 0.5 | E120: 0.5 | F120: 0.5 | G120: 0.5 | H120: 0.5 | I120: 0.5 | J120: 0.5 | K120: 0.5 | L120: 0.5 | M120: 0.5 | N120: 0.5 | O120: 0.5 | P120: 1 | Q120: =TRANSPOSE(P121:P$121) -> 0.5
B121: CurrGroup15 | C121: 0.5 | D121: 0.5 | E121: 0.5 | F121: 0.5 | G121: 0.5 | H121: 0.5 | I121: 0.5 | J121: 0.5 | K121: 0.5 | L121: 0.5 | M121: 0.5 | N121: 0.5 | O121: 0.5 | P121: 0.5 | Q121: 1
B124: Credit Quality (CQ) Step | C124: S & P's / Fitch | D124: Moody's | E124: AM Best
B126: 0 | C126: AAA | D126: Aaa | E126: A++
B127: 1 | C127: AA | D127: Aa | E127: A+
B128: 2 | C128: A | D128: A | E128: A
B129: 3 | C129: BBB | D129: Baa | E129: A-
B130: 4 | C130: BB | D130: Ba | E130: B++ to B
B131: 5 | C131: B | D131: B | E131: B- to C+
B132: 6 | C132: CCC or lower | D132: Lower | E132: C or lower
B136: 1 in 10 Credit Spread Risk
B137: Bonds - Base Factors | D137: Credit Quality Step | N137: MCR not met
B138: Duration | C138: Range | D138: 0 | E138: 1 | F138: 2 | G138: 3 | H138: 4 | I138: 5 | J138: 6 | L138: Unrated
B139: dur ≤ 5 | C139: 0 | D139: 0 | E139: 0 | F139: 0 | G139: 0 | H139: 0 | I139: 0 | J139: 0 | L139: 0 | N139: 0
B140: 5 < dur ≤ 10 | C140: 5 | D140: 0 | E140: 0 | F140: 0 | G140: 0 | H140: 0 | I140: 0 | J140: 0 | L140: 0 | N140: 0
B141: 10 < dur ≤ 15 | C141: 10 | D141: 0 | E141: 0 | F141: 0 | G141: 0 | H141: 0 | I141: 0 | J141: 0 | L141: 0 | N141: 0
B142: 15 < dur ≤ 20 | C142: 15 | D142: 0 | E142: 0 | F142: 0 | G142: 0 | H142: 0 | I142: 0 | J142: 0 | L142: 0 | N142: 0
B143: 20 < dur | C143: 20 | D143: 0 | E143: 0 | F143: 0 | G143: 0 | H143: 0 | I143: 0 | J143: 0 | L143: 0 | N143: 0
B145: Bonds - Factor Multiples | D145: Credit Quality Step | N145: MCR not met
B146: Duration | C146: Range | D146: 0 | E146: 1 | F146: 2 | G146: 3 | H146: 4 | I146: 5 | J146: 6 | L146: Unrated
B147: dur ≤ 5 | C147: 0 | D147: 0.004 | E147: 0.005 | F147: 0.007 | G147: 0.012 | H147: 0.022 | I147: 0.037 | J147: 0.037 | L147: 0.015 | N147: 0.037
B148: 5 < dur ≤ 10 | C148: 5 | D148: 0.004 | E148: 0.005 | F148: 0.007 | G148: 0.012 | H148: 0.022 | I148: 0.037 | J148: 0.037 | L148: 0.015 | N148: 0.037
B149: 10 < dur ≤ 15 | C149: 10 | D149: 0.004 | E149: 0.005 | F149: 0.007 | G149: 0.012 | H149: 0.022 | I149: 0.037 | J149: 0.037 | L149: 0.015 | N149: 0.037
B150: 15 < dur ≤ 20 | C150: 15 | D150: 0.004 | E150: 0.005 | F150: 0.007 | G150: 0.012 | H150: 0.022 | I150: 0.037 | J150: 0.037 | L150: 0.015 | N150: 0.037
B151: 20 < dur | C151: 20 | D151: 0.004 | E151: 0.005 | F151: 0.007 | G151: 0.012 | H151: 0.022 | I151: 0.037 | J151: 0.037 | L151: 0.015 | N151: 0.037
B154: DefaultCorr (200) * | C154: Type 1 | D154: Type 2 | J154: DefaultCorr(10) * | K154: Type 1 | L154: Type 2
B155: Type 1 | C155: 1 | D155: 0.75 | J155: Type 1 | K155: 1 | L155: 0.5
B156: Type 2 | C156: 0.75 | D156: 1 | J156: Type 2 | K156: 0.5 | L156: 1
B159: NLCorr (200) * | C159: Premium | D159: Lapse | E159: Catastrophe | J159: HealthCorr (200) * | K159: Premium | L159: Lapse | M159: Catastrophe
B160: Premium_Reserve | C160: 1 | D160: =TRANSPOSE(C161:C$162) -> 0 | E160: 0.25 | J160: Premium_Reserve | K160: 1 | L160: =TRANSPOSE(K161:K$162) -> 0 | M160: 0.25
B161: Lapse | C161: 0 | D161: 1 | E161: =TRANSPOSE(D162:D$162) -> 0 | J161: Lapse | K161: 0 | L161: 1 | M161: =TRANSPOSE(L162:L$162) -> 0.25
B162: Catastrophe | C162: 0.25 | D162: 0 | E162: 1 | J162: Catastrophe | K162: 0.25 | L162: 0.25 | M162: 1
B165: NLCorr (10) * | C165: Premium | D165: Lapse | E165: Catastrophe | J165: HealthCorr (10) * | K165: Premium | L165: Lapse | M165: Catastrophe
B166: Premium_Reserve | C166: 1 | D166: 0 | E166: 0 | J166: Premium_Reserve | K166: 1 | L166: 0 | M166: 0
B167: Lapse | C167: 0 | D167: 1 | E167: 0 | J167: Lapse | K167: 0 | L167: 1 | M167: 0
B168: Catastrophe | C168: 0 | D168: 0 | E168: 1 | J168: Catastrophe | K168: 0 | L168: 0 | M168: 1
B173: CorrPR (200) * | C173: 1 | D173: 2 | E173: 3 | F173: 4 | G173: 5 | H173: 6 | I173: 7 | J173: 8 | K173: 9 | L173: 10 | M173: 11 | N173: 12
B174: 1. Motor Vehicle Liability | C174: 1 | D174: 0.5 | E174: 0.5 | F174: 0.25 | G174: 0.5 | H174: 0.25 | I174: 0.5 | J174: 0.25 | K174: 0.5 | L174: 0.25 | M174: 0.25 | N174: 0.25
B175: 2. Other Motor | C175: 0.5 | D175: 1 | E175: 0.25 | F175: 0.25 | G175: 0.25 | H175: 0.25 | I175: 0.5 | J175: 0.5 | K175: 0.5 | L175: 0.25 | M175: 0.25 | N175: 0.25
B176: 3. Marine, Aviation & Transport (MAT) | C176: 0.5 | D176: 0.25 | E176: 1 | F176: 0.25 | G176: 0.25 | H176: 0.25 | I176: 0.25 | J176: 0.5 | K176: 0.5 | L176: 0.25 | M176: 0.5 | N176: 0.25
B177: 4. Fire & Other Damage to Property | C177: 0.25 | D177: 0.25 | E177: 0.25 | F177: 1 | G177: 0.25 | H177: 0.25 | I177: 0.25 | J177: 0.5 | K177: 0.5 | L177: 0.25 | M177: 0.5 | N177: 0.5
B178: 5. General Liability | C178: 0.5 | D178: 0.25 | E178: 0.25 | F178: 0.25 | G178: 1 | H178: 0.5 | I178: 0.5 | J178: 0.25 | K178: 0.5 | L178: 0.5 | M178: 0.25 | N178: 0.25
B179: 6. Credit & Suretyship | C179: 0.25 | D179: 0.25 | E179: 0.25 | F179: 0.25 | G179: 0.5 | H179: 1 | I179: 0.5 | J179: 0.25 | K179: 0.5 | L179: 0.5 | M179: 0.25 | N179: 0.25
B180: 7. Legal Expenses | C180: 0.5 | D180: 0.5 | E180: 0.25 | F180: 0.25 | G180: 0.5 | H180: 0.5 | I180: 1 | J180: 0.25 | K180: 0.5 | L180: 0.5 | M180: 0.25 | N180: 0.25
B181: 8. Assistance | C181: 0.25 | D181: 0.5 | E181: 0.5 | F181: 0.5 | G181: 0.25 | H181: 0.25 | I181: 0.25 | J181: 1 | K181: 0.5 | L181: 0.25 | M181: 0.25 | N181: 0.5
B182: 9. Miscellaneous Financial Loss | C182: 0.5 | D182: 0.5 | E182: 0.5 | F182: 0.5 | G182: 0.5 | H182: 0.5 | I182: 0.5 | J182: 0.5 | K182: 1 | L182: 0.25 | M182: 0.5 | N182: 0.25
B183: 10. NP reinsurance - Casualty | C183: 0.25 | D183: 0.25 | E183: 0.25 | F183: 0.25 | G183: 0.5 | H183: 0.5 | I183: 0.5 | J183: 0.25 | K183: 0.25 | L183: 1 | M183: 0.25 | N183: 0.25
B184: 11. NP reinsurance - MAT | C184: 0.25 | D184: 0.25 | E184: 0.5 | F184: 0.5 | G184: 0.25 | H184: 0.25 | I184: 0.25 | J184: 0.25 | K184: 0.5 | L184: 0.25 | M184: 1 | N184: 0.25
B185: 12. NP reinsurance - Property | C185: 0.25 | D185: 0.25 | E185: 0.25 | F185: 0.5 | G185: 0.25 | H185: 0.25 | I185: 0.25 | J185: 0.5 | K185: 0.25 | L185: 0.25 | M185: 0.25 | N185: 1
B188: CorrPR (10) * | C188: 1 | D188: 2 | E188: 3 | F188: 4 | G188: 5 | H188: 6 | I188: 7 | J188: 8 | K188: 9 | L188: 10 | M188: 11 | N188: 12
B189: 1. Motor Vehicle Liability | C189: 1 | D189: =D174-0.25 -> 0.25 | E189: =E174-0.25 -> 0.25 | F189: 0 | G189: =G174-0.25 -> 0.25 | H189: 0 | I189: =I174-0.25 -> 0.25 | J189: 0 | K189: =K174-0.25 -> 0.25 | L189: 0 | M189: 0 | N189: =N174-0.25 -> 0
B190: 2. Other Motor | C190: =C175-0.25 -> 0.25 | D190: 1 | E190: 0 | F190: 0 | G190: =G175-0.25 -> 0 | H190: 0 | I190: 0.25 | J190: 0.25 | K190: =K175-0.25 -> 0.25 | L190: 0 | M190: 0 | N190: 0
B191: 3. Marine, Aviation & Transport (MAT) | C191: =C176-0.25 -> 0.25 | D191: 0 | E191: 1 | F191: 0 | G191: =G176-0.25 -> 0 | H191: 0 | I191: 0 | J191: 0.25 | K191: =K176-0.25 -> 0.25 | L191: 0 | M191: 0.25 | N191: 0
B192: 4. Fire & Other Damage to Property | C192: 0 | D192: 0 | E192: =E177-0.25 -> 0 | F192: 1 | G192: =G177-0.25 -> 0 | H192: 0 | I192: 0 | J192: 0.25 | K192: =K177-0.25 -> 0.25 | L192: 0 | M192: 0.25 | N192: 0.25
B193: 5. General Liability | C193: 0.25 | D193: 0 | E193: 0 | F193: =F178-0.25 -> 0 | G193: 1 | H193: =H178-0.25 -> 0.25 | I193: 0.25 | J193: 0 | K193: =K178-0.25 -> 0.25 | L193: 0.25 | M193: 0 | N193: 0
B194: 6. Credit & Suretyship | C194: 0 | D194: 0 | E194: 0 | F194: =F179-0.25 -> 0 | G194: 0.25 | H194: 1 | I194: =I179-0.25 -> 0.25 | J194: 0 | K194: =K179-0.25 -> 0.25 | L194: 0.25 | M194: 0 | N194: 0
B195: 7. Legal Expenses | C195: 0.25 | D195: 0.25 | E195: 0 | F195: =F180-0.25 -> 0 | G195: 0.25 | H195: 0.25 | I195: 1 | J195: 0 | K195: =K180-0.25 -> 0.25 | L195: 0.25 | M195: 0 | N195: 0
B196: 8. Assistance | C196: 0 | D196: 0.25 | E196: 0.25 | F196: =F181-0.25 -> 0.25 | G196: 0 | H196: 0 | I196: 0 | J196: 1 | K196: =K181-0.25 -> 0.25 | L196: 0 | M196: 0 | N196: 0.25
B197: 9. Miscellaneous Financial Loss | C197: 0.25 | D197: 0.25 | E197: 0.25 | F197: =F182-0.25 -> 0.25 | G197: 0.25 | H197: 0.25 | I197: 0.25 | J197: 0.25 | K197: 1 | L197: =L182-0.25 -> 0 | M197: 0.25 | N197: 0
B198: 10. NP reinsurance - Casualty | C198: 0 | D198: 0 | E198: 0 | F198: =F183-0.25 -> 0 | G198: 0.25 | H198: 0.25 | I198: 0.25 | J198: 0 | K198: 0 | L198: 1 | M198: =M183-0.25 -> 0 | N198: 0
B199: 11. NP reinsurance - MAT | C199: 0 | D199: 0 | E199: 0.25 | F199: =F184-0.25 -> 0.25 | G199: 0 | H199: 0 | I199: 0 | J199: 0 | K199: 0.25 | L199: 0 | M199: 1 | N199: =N184-0.25 -> 0
B200: 12. NP reinsurance - Property | C200: 0 | D200: 0 | E200: 0 | F200: =F185-0.25 -> 0.25 | G200: 0 | H200: 0 | I200: 0 | J200: 0.25 | K200: 0 | L200: 0 | M200: 0 | N200: 1
B203: CorrCAT (200) * | C203: Natural | D203: NP Prop. | E203: Man-Made | F203: Other
B204: Natural | C204: 1 | D204: =TRANSPOSE(C205:C$207) -> 1 | E204: 0 | F204: 0
B205: NP Prop. | C205: 1 | D205: 1 | E205: =TRANSPOSE(D206:D$207) -> 0 | F205: 0
B206: Man-Made | C206: 0 | D206: 0 | E206: 1 | F206: =TRANSPOSE(E207:E$207) -> 0
B207: Other | C207: 0 | D207: 0 | E207: 0 | F207: 1
B210: CorrCAT (10) * | C210: Natural | D210: NP Prop. | E210: Man-Made | F210: Other
B211: Natural | C211: 1 | D211: =TRANSPOSE(C$212:C214) -> 0.75 | E211: 0 | F211: 0
B212: NP Prop. | C212: 0.75 | D212: 1 | E212: =TRANSPOSE(D$213:D214) -> 0 | F212: 0
B213: Man-Made | C213: 0 | D213: 0 | E213: 1 | F213: =E214 -> 0
B214: Other | C214: 0 | D214: 0 | E214: 0 | F214: 1
B217: CorrLiab (200) * | C217: 1 | D217: 2 | E217: 3 | F217: 4 | G217: 5
B218: 1. Professional Malpractice Liability | C218: 1 | D218: =TRANSPOSE(C219:C$222) -> 0 | E218: 0.5 | F218: 0.25 | G218: 0.5
B219: 2. Employers Liability | C219: 0 | D219: 1 | E219: =TRANSPOSE(D220:D$222) -> 0 | F219: 0.25 | G219: 0.5
B220: 3. Directors and Officers | C220: 0.5 | D220: 0 | E220: 1 | F220: =TRANSPOSE(E221:E$222) -> 0.25 | G220: 0.5
B221: 4. Personal Liability | C221: 0.25 | D221: 0.25 | E221: 0.25 | F221: 1 | G221: =TRANSPOSE(F222:F$222) -> 0.5
B222: 5. Non-Proportional Reinsurance | C222: 0.5 | D222: 0.5 | E222: 0.5 | F222: 0.5 | G222: 1
B225: CorrLiab (10) * | C225: 1 | D225: 2 | E225: 3 | F225: 4 | G225: 5
B226: 1. Professional Malpractice Liability | C226: 1 | D226: 0 | E226: 0.25 | F226: 0 | G226: 0.25
B227: 2. Employers Liability | C227: 0 | D227: 1 | E227: 0 | F227: 0 | G227: 0.25
B228: 3. Directors and Officers | C228: 0.25 | D228: 0 | E228: 1 | F228: 0 | G228: 0.25
B229: 4. Personal Liability | C229: 0 | D229: 0 | E229: 0 | F229: 1 | G229: 0.25
B230: 5. Non-Proportional Reinsurance | C230: 0.25 | D230: 0.25 | E230: 0.25 | F230: 0.25 | G230: 1
B233: CorrOther (200) * | C233: 1 | D233: 2 | E233: 3 | F233: 4 | G233: 5
B234: 1. Transport (other than marine/aviation) | C234: 1 | D234: =TRANSPOSE(C235:C$238) -> 1 | E234: 0 | F234: 0 | G234: 0
B235: 2. NP Transport | C235: 1 | D235: 1 | E235: =TRANSPOSE(D236:D$238) -> 0 | F235: 0 | G235: 0
B236: 3. Miscellaneous Financial Loss | C236: 0 | D236: 0 | E236: 1 | F236: =TRANSPOSE(E237:E$238) -> 0 | G236: 0
B237: 4. NP Casualty | C237: 0 | D237: 0 | E237: 0 | F237: 1 | G237: =TRANSPOSE(F238:F$238) -> 0
B238: 5. NP Credit & Suretyship | C238: 0 | D238: 0 | E238: 0 | F238: 0 | G238: 1
B241: CorrOther (10) * | C241: 1 | D241: 2 | E241: 3 | F241: 4 | G241: 5
B242: 1. Transport (other than marine/aviation) | C242: 1 | D242: 0.75 | E242: 0 | F242: 0 | G242: 0
B243: 2. NP Transport | C243: 0.75 | D243: 1 | E243: 0 | F243: 0 | G243: 0
... 31 more rows

Sheet SCR Structure
Y3: SCR
Q8: Adj | Y8: BSCR | AG8: Op
E13: Market | K13: Life | V13: Health | AG13: Non-Life | AM13: Default | AS13: Intangibles
Q17: SLT Health | V17: CAT | AA17: Non-SLT Health
E21: Interest Rate | K21: Mortality | Q21: Mortality | AA21: Premium Reserve | AG21: Premium Reserve
E24: Equity | K24: Longevity | Q24: Longevity | AA24: Lapse | AG24: Lapse
E27: Property | K27: Disability & Morbidity | Q27: Disability & Morbidity | AG27: CAT
E30: Spread | K30: Lapse | Q30: Lapse
W31: Natural Catastrophe | AB31: Non-Prop. Reinsurance | AG31: Man Made Catastrophe | AM31: Non-Life CAT Other | AR31: Key:
E33: Currency | K33: Expenses | Q33: Expenses | AR33: Tested in QIS5 for 1 in 10 non-life insurers
W35: Windstorm | AG35: Motor Vehicle Liability | AM35: Transport w/o MA
E36: Concentration | K36: Revision | Q36: Revision | AR36: Not tested in QIS5 for 1 in 10 non-life insurers
W38: Flood | AG38: Marine | AM38: NP reins. Transport w/o MA
K39: CAT
W41: Earthquake | AG41: Aviation | AM41: Other propety insurance
W44: Hail | AG44: Fire (Buildings) | AM44: NP reinsurance MVL
W47: Subsidence | AG47: Liability | AM47: NP reinsurance C&S
AG50: Credit & Suretyship
